{"text_format":"1","workbook":"xlsx","n_sheets":11,"sheets":["Instructions","Proposal","Staff","Fees","Vat Determination Guide for RAO","Roles","SalaryPoints","Period","Salary","Rates","PRSI"],"not_rendered":{"charts":0,"images":4,"macros":1,"external_links":0,"defined_names":54,"comments":0,"pivot_tables":0},"unopened":[],"bounds":{"document_bytes":16777216,"sheet_cells":100000,"rows_first":2000,"rows_last":500,"rows_between":2000,"halvings":0,"cell_chars":16384,"cell_head_chars":4096},"cells_cut":0,"cells_raw":0,"read":"whole","date_system":"1900"}

{"sheet":"Instructions","index":0,"n_rows":37,"n_cols":2,"rows_kept":37,"cut":false,"hidden":false,"merged":[]}
[null,"Instructions for Labour Cost Calculator "]
[]
[null,"Step 1"]
["a","Enable Content"]
["b","Open the \"Staff\" Sheet"]
["c","Enter the name of the Resource in Column A - This is optional if you don’t know the name of the Resource"]
["d","Select the relevant position from the dropdown box in column C"]
["e","Select the relevant salary point from the dropdown box in column D"]
["f","If you know the increment date  (which is the date the resource started on the Point on the salary scale which they are currently on) enter the date  in column E, this date must be earlier than their start date on the project."]
["g","Enter the start date in column F"]
["h","Enter the end date in column G"]
["i","With a cell on that row selected, use the shortcut combination “Ctrl + y” to run the macro to break this resource into line items over different periods and add the cost for each."]
["j","If applicable Adjust the FTE and % charged in columns M and N "]
[null,"The TOTAL Committed Costs is the cost calculated based on the role, salary point and payscale, but also on the values in the FTE and % Charged columns. "]
[]
[null,"Step 2"]
[null,"Repeat step 1 for any additional resources leaving a blank row between resources "]
[null,"If you wish to edit/update any of your inputs after you’ve generated the data, you will need to first delete the rows above your input line for that entry, otherwise the data will be duplicated"]
[]
[null,"Step 3"]
[null,"When all resources have been added and broken out into line items, use the shortcut combination “Ctrl + q” to break out the costs over Year 1, Year 2 etc for the project and provide a total for each year. "]
[null,"Note: This step only needs to be run once and will insert the cost for each year for all resources added. "]
[]
[]
[]
[null,"Examles of data input"]
[]
[]
[]
[]
[]
[]
[]
[]
[]
[]
[null,"Example of data output once you click \"Ctrl + y\" and \"Ctrl + q\""]

{"sheet":"Proposal","index":1,"n_rows":86,"n_cols":7,"rows_kept":86,"cut":false,"hidden":false,"merged":[[3,1,3,6],[4,1,4,6],[5,1,5,6]]}
[]
[null,"Budget Proposal"]
[]
["Proposed Principal Investigator"]
["Funder"]
["Programme"]
["Summary Sheet (not editable except for Overhead Rate)"]
["COST ITEMS","Year 1","Year 2","Year 3","Year 4","Year 5","Total"]
[{"$f":"A21","v":"LABOUR(USE THE APPROPIATE SALARY SCALE E.G. UOG, IUA, SFI) and CHOOSE THE ANNUAL COST APPLICABLE AS PER FUNDER"},{"$f":"B34","v":0},{"$f":"C34","v":0},{"$f":"D34","v":0},{"$f":"E34","v":0},{"$f":"F34","v":0},{"$f":"SUM(B9:F9)","v":0}]
[{"$f":"A50","v":"MATERIALS AND CONSUMABLES (REFER TO THE FUNDER'S TERMS AND CONDITIONS)"},{"$f":"B55","v":0},{"$f":"C55","v":0},{"$f":"D55","v":0},{"$f":"E55","v":0},{"$f":"F55","v":0},0]
[{"$f":"A58","v":"SERVICES AND SUBCONTRACTS (REFER TO THE FUNDER'S TERMS AND CONDITIONS)"},{"$f":"+B63","v":0},{"$f":"+C63","v":0},{"$f":"+D63","v":0},{"$f":"+E63","v":0},{"$f":"+F63","v":0},0]
[{"$f":"A66","v":"OTHER (REFER TO THE FUNDER'S TERMS AND CONDITIONS)"},{"$f":"+B73","v":0},{"$f":"+C73","v":0},{"$f":"+D73","v":0},{"$f":"+E73","v":0},{"$f":"+F73","v":0},0]
[{"$f":"A75","v":"TRAVEL (REFER TO THE FUNDER'S TERMS AND CONDITIONS)"},{"$f":"B81","v":0},{"$f":"C81","v":0},{"$f":"D81","v":0},{"$f":"E81","v":0},{"$f":"F81","v":0},0]
[{"$f":"A37","v":"EQUIPMENT (REFER TO THE FUNDER'S TERMS AND CONDITIONS)"},{"$f":"B47","v":0},{"$f":"C47","v":0},{"$f":"D47","v":0},{"$f":"E47","v":0},{"$f":"F47","v":0},0]
["TOTAL DIRECT COSTS",{"$f":"SUM(B9:B14)","v":0},0,0,0,0,0]
["OVERHEAD RATE(USE THE OVERHEAD WORKSHEET)",0.3,{"$f":"B16","v":0.3},{"$f":"B16","v":0.3},{"$f":"B16","v":0.3},{"$f":"B16","v":0.3},{"$f":"B16","v":0.3}]
["OVERHEAD",{"$f":"(B15-B11-B14)*B16","v":0},{"$f":"(C15-C11-C14)*C16","v":0},0,0,0,{"$f":"SUM(B17:F17)","v":0}]
["TOTAL",{"$f":"B17+B15","v":0},{"$f":"C17+C15","v":0},0,0,0,{"$f":"SUM(B18:F18)","v":0}]
[]
["Link to SALARY COSINTG CALCULATOR - UOG OLD SCALES",null,null,"Link to SALARY COSINTG CALCULATOR - IUA SCALES"]
["LABOUR(USE THE APPROPIATE SALARY SCALE E.G. UOG, IUA, SFI) and CHOOSE THE ANNUAL COST APPLICABLE AS PER FUNDER"]
["Employees","Year 1","Year 2","Year 3","Year 4","Year 5","Total"]
[null,null,null,null,null,null,{"$f":"SUM(B23:F23)","v":0}]
[null,null,null,null,null,null,0]
[null,null,null,null,null,null,0]
[null,null,null,null,null,null,0]
[null,null,null,null,null,null,0]
[null,null,null,null,null,null,0]
["Students(USE THE FEES WORKSHEET IF APPLICABLE)","Year 1","Year 2","Year 3","Year 4","Year 5","Total"]
[null,null,null,null,null,null,0]
[null,null,null,null,null,null,0]
[null,null,null,null,null,null,0]
[null,null,null,null,null,null,0]
["Total",{"$f":"SUM(B23:B33)","v":0},{"$f":"SUM(C23:C33)","v":0},0,0,0,0]
[]
[]
["EQUIPMENT (REFER TO THE FUNDER'S TERMS AND CONDITIONS)"]
["Items","Year 1","Year 2","Year 3","Year 4","Year 5","Total"]
[null,null,null,null,null,null,{"$f":"SUM(B39:F39)","v":0}]
[null,null,null,null,null,null,0]
[null,null,null,null,null,null,0]
[null,null,null,null,null,null,0]
[null,null,null,null,null,null,0]
[null,null,null,null,null,null,0]
[null,null,null,null,null,null,0]
[null,null,null,null,null,null,0]
["Total",{"$f":"SUM(B39:B46)","v":0},{"$f":"SUM(C39:C46)","v":0},{"$f":"SUM(D39:D46)","v":0},{"$f":"SUM(E39:E46)","v":0},{"$f":"SUM(F39:F46)","v":0},{"$f":"SUM(B47:F47)","v":0}]
[]
[]
["MATERIALS AND CONSUMABLES (REFER TO THE FUNDER'S TERMS AND CONDITIONS)"]
["Description","Year 1","Year 2","Year 3","Year 4","Year 5","Total"]
[null,null,null,null,null,null,{"$f":"SUM(B52:F52)","v":0}]
[null,null,null,null,null,null,0]
[null,null,null,null,null,null,0]
["Total",{"$f":"SUM(B52:B54)","v":0},{"$f":"SUM(C52:C54)","v":0},{"$f":"SUM(D52:D54)","v":0},{"$f":"SUM(E52:E54)","v":0},{"$f":"SUM(F52:F54)","v":0},{"$f":"SUM(B55:F55)","v":0}]
[]
[]
["SERVICES AND SUBCONTRACTS (REFER TO THE FUNDER'S TERMS AND CONDITIONS)"]
["Description","Year 1","Year 2","Year 3","Year 4","Year 5","Total"]
[null,null,null,null,null,null,{"$f":"SUM(B60:F60)","v":0}]
[null,null,null,null,null,null,0]
[null,null,null,null,null,null,0]
["Total",{"$f":"SUM(B60:B62)","v":0},{"$f":"SUM(C60:C62)","v":0},{"$f":"SUM(D60:D62)","v":0},{"$f":"SUM(E60:E62)","v":0},{"$f":"SUM(F60:F62)","v":0},{"$f":"SUM(B63:F63)","v":0}]
[]
[]
["OTHER (REFER TO THE FUNDER'S TERMS AND CONDITIONS)"]
["Description","Year 1","Year 2","Year 3","Year 4","Year 5","Total"]
[null,null,null,null,null,null,{"$f":"SUM(B68:F68)","v":0}]
[null,null,null,null,null,null,0]
[null,null,null,null,null,null,0]
[null,null,null,null,null,null,0]
[null,null,null,null,null,null,0]
["Total",{"$f":"SUM(B68:B72)","v":0},{"$f":"SUM(C68:C72)","v":0},{"$f":"SUM(D68:D72)","v":0},{"$f":"SUM(E68:E72)","v":0},{"$f":"SUM(F68:F72)","v":0},{"$f":"SUM(B73:F73)","v":0}]
[]
["TRAVEL (REFER TO THE FUNDER'S TERMS AND CONDITIONS)"]
["Description","Year 1","Year 2","Year 3","Year 4","Year 5","Total"]
[null,null,null,null,null,null,{"$f":"SUM(B77:F77)","v":0}]
[null,null,null,null,null,null,0]
[null,null,null,null,null,null,0]
[null,null,null,null,null,null,0]
["Total",{"$f":"SUM(B77:B80)","v":0},{"$f":"SUM(C77:C80)","v":0},{"$f":"SUM(D77:D80)","v":0},{"$f":"SUM(E77:E80)","v":0},{"$f":"SUM(F77:F80)","v":0},{"$f":"SUM(B81:F81)","v":0}]
[]
["Principal Investigator","Name",null,"Date"]
["I agree that the above complies with University of Galway and the Funder's Terms and Conditions"]
[]
["Research Accounts Contact","Name",null,"Date"]

{"sheet":"Staff","index":2,"n_rows":2,"n_cols":30,"rows_kept":2,"cut":false,"hidden":false,"merged":[[0,0,0,6],[0,7,0,19],[0,20,0,24],[0,25,0,29]]}
["<===Enter data here ===>",null,null,null,null,null,null,"<=== Data Generated ===>",null,null,null,null,null,null,null,null,null,null,null,null,"No. of Months",null,null,null,null,"Annual Costs"]
["Employee Name","Notes","Role","Salary Point","Salary Point Start Date","Start date","End Date","PayScale","Annual Gross","Pension Rate","Social Cost %","No Months","FTE","% Charged"," Gross Committed ","Pension Committed  ","Social Costs Committed","Eers PRSI","FEES","TOTAL Committed Costs","Year 1","Year 2","Year 3","Year 4","Year 5","Year 1","Year 2","Year 3","Year 4","Year 5"]

{"sheet":"Fees","index":3,"n_rows":4,"n_cols":4,"rows_kept":4,"cut":false,"hidden":false,"merged":[]}
[]
["Go to","Fees Office Website for Fee Schedule","and then click on","POSTGRADUATES - HOW MUCH DO I PAY? - CLICK HERE"]
[]
["As the Fee Schedule is updated every year click on the Fees Website for the appropriate fee."]

{"sheet":"Vat Determination Guide for RAO","index":4,"n_rows":31,"n_cols":11,"rows_kept":31,"cut":false,"hidden":false,"merged":[]}
["VAT STEPS",null,null,null,null,null,null,null,"Outside Europe",null,"Y"]
[null,null,null,null,null,null,null,null,"Europe",null,"N"]
["Highlight where Applicable",null,null,null,null,null,null,null,"Ireland"]
[]
["Customer Location ",null,"Europe"]
[]
["Agreement negotiation",null,"Y"]
["Is a report/deliverable provided to the customer",null,"Y"]
[]
["          A."]
["Other Agreements e.g. IP/Consortium"]
[null,"If Y to IP","Does the company have commercial access to the IP rights exist during the contract period"]
[null,null,"Do IP potential rights after the contract term"]
[]
["         B."]
["Service Offered where no IP involved"]
[]
["Money paid to University of Galway"]
["VAT Registration Number"]
[]
["For Information:"]
["Country of establishment of supplier","Country in which customer established","Status of customer",null,"Place of supply","Person liable to account for Irish VAT","VAT Rate on Invoice"]
["University of Galway","Ireland","Business or Private",null,"Ireland","Supplier","Service Rate"]
["University of Galway","Other EU State","Business",null,"Other EU State","No Irish VAT","Zero Rated","Need Customer VAT number"]
["University of Galway","Other EU State","Private",null,"Ireland","Supplier","Service Rate"]
["University of Galway","Outside EU","Business",null,"Outside EU","No Irish VAT","No VAT(NOT ZERO RATED)"]
["University of Galway","Outside EU","Private",null,"Depends on nature of the Service","Supplier (if VAT occurs)","Service Rate"]
["Other EU State","University of Galway","Business",null,"Ireland","Business Customer","University of Galway pays VAT on Service received at service VAT rate"]
["Outside EU","University of Galway","Business",null,"Ireland","Business Customer","University of Galway pays VAT on Service received at service VAT rate"]
[]
["University of Galway","Company based in Ireland who export 80/90 of goods","Business",null,"University of Galway","No Irish VAT","Zero Rated","Need Customer VAT number and 13b form"]

{"sheet":"Roles","index":5,"n_rows":49,"n_cols":2,"rows_kept":49,"cut":false,"hidden":true,"merged":[]}
["Original Post","Post"]
["Research Assistant","Research_Assistant"]
["Post-Doctoral Researcher PD1","Post_Doctoral_Researcher_PD1"]
["Post-Doctoral Researcher PD2","Post_Doctoral_Researcher_PD2"]
["Research Fellow","Research_Fellow"]
["Senior Research Fellow","Senior_Research_Fellow"]
["Admin. Officer 01D","Admin_Officer_01D"]
["Admin. Officer Current Serving Employee 01A","Admin_Officer_Current_Serving_Employee_01A"]
["Chief Technical Officer 17A","Chief_Technical_Officer_17A"]
["Chief Technical Officer 17D","Chief_Technical_Officer_17D"]
["Clinical Research Support Officer 166A","Clinical_Research_Support_Officer_166A"]
["Grade 2    1761.75 Hrs. 06A","Grade_2_1761.75_Hrs._06A"]
["Grade 2    1761.75 Hrs. 06D","Grade_2_1761.75_Hrs._06D"]
["Grade 3        1761.75 Hrs. 11A","Grade_3_1761.75_Hrs._11A"]
["Grade 3        1761.75 Hrs. 11D","Grade_3_1761.75_Hrs._11D"]
["Grade 4 02A","Grade_4_02A"]
["Grade 4 02D","Grade_4_02D"]
["Grade 5 25A","Grade_5_25A"]
["Grade 5 25D","Grade_5_25D"]
["Junior Lecturer_Old Scale 62D","Junior_Lecturer_Old_Scale_62D"]
["Lecturer 128A","Lecturer_128A"]
["Lecturer_Above_Bar_College 36A","Lecturer_Above_Bar_College_36A"]
["Lecturer_Above_Bar_College 36D","Lecturer_Above_Bar_College_36D"]
["Lecturer_Below_Bar_Junior 33A","Lecturer_Below_Bar_Junior_33A"]
["Lecturer_Below_Bar_Junior 33D","Lecturer_Below_Bar_Junior_33D"]
["Lecturer_Fixed Term 19A","Lecturer_Fixed_Term_19A"]
["Lecturer_Fixed Term 19D","Lecturer_Fixed_Term_19D"]
["Personal Professor 20A","Personal_Professor_20A"]
["Personal Professor 20D","Personal_Professor_20D"]
["Professor In 117A","Professor_In_117A"]
["Professor In 117D","Professor_In_117D"]
["Professors 116A","Professors_116A"]
["Professors 116D","Professors_116D"]
["Salaried University Fellow 83A","Salaried_University_Fellow_83A"]
["Salaried University Fellow 83D","Salaried_University_Fellow_83D"]
["Senior_Statutory Lecturers 21A","Senior_Statutory_Lecturers_21A"]
["Senior_Statutory Lecturers 21D","Senior_Statutory_Lecturers_21D"]
["Technical Officer 09A","Technical_Officer_09A"]
["Technical Officer 09D","Technical_Officer_09D"]
["Post Doc Res_ Res Ass Iua 2013 66A-13","Post_Doc_Res_Res_Ass_Iua_2013_66A_13"]
["Post Doc Researcher_Research Associate 66A","Post_Doc_Researcher_Research_Associate_66A"]
["Post Doc Researcher_Research Associate 66D","Post_Doc_Researcher_Research_Associate_66D"]
["Research Assistant 65A","Research_Assistant_65A"]
["Research Assistant 65A-20","Research_Assistant_65A_20"]
["Research Assistant Iua 2013 65A-13","Research_Assistant_Iua_2013_65A_13"]
["Research Fellow 67A","Research_Fellow_67A"]
["Research Fellow Iua 2013 67A-13","Research_Fellow_Iua_2013_67A_13"]
["Senior Research Fellow 68A","Senior_Research_Fellow_68A"]
["Fixed Amount","Fixed_Amount"]

{"sheet":"SalaryPoints","index":6,"n_rows":345,"n_cols":4,"rows_kept":345,"cut":false,"hidden":true,"merged":[]}
["Role","SalaryPoint","SalaryPoint","Column1"]
["Research_Assistant","Point 1","Point 1"]
["Research_Assistant","Point 2","Point 2"]
["Research_Assistant","Point 3","Point 3"]
["Research_Assistant","Point 4","Point 4"]
["Research_Assistant","Point 5","Point 5"]
["Research_Assistant","Point 6","Point 6"]
["Research_Assistant","Point 7","Point 7"]
["Research_Assistant","Point 8","Point 8"]
["Research_Assistant","Point 9","Point 9"]
["Research_Assistant","Point 10","Point 10"]
["Research_Assistant","Point 11","Point 11"]
["Research_Assistant","Point 12","Point 12"]
["Research_Assistant","Point 13","Point 13"]
["Post_Doctoral_Researcher_PD1","PD1 Point 1","PD1 Point 1"]
["Post_Doctoral_Researcher_PD1","PD1 Point 2","PD1 Point 2"]
["Post_Doctoral_Researcher_PD1","PD1 Point 3","PD1 Point 3"]
["Post_Doctoral_Researcher_PD1","PD1 Point 4","PD1 Point 4"]
["Post_Doctoral_Researcher_PD1","PD1 Point 5","PD1 Point 5"]
["Post_Doctoral_Researcher_PD1","PD1 Point 6","PD1 Point 6"]
["Post_Doctoral_Researcher_PD2","PD2 Point 1","PD2 Point 1"]
["Post_Doctoral_Researcher_PD2","PD2 Point 2","PD2 Point 2"]
["Post_Doctoral_Researcher_PD2","PD2 Point 3","PD2 Point 3"]
["Post_Doctoral_Researcher_PD2","PD2 Point 4","PD2 Point 4"]
["Research_Fellow","Point 1","Point 1"]
["Research_Fellow","Point 2","Point 2"]
["Research_Fellow","Point 3","Point 3"]
["Research_Fellow","Point 4","Point 4"]
["Senior_Research_Fellow","Point 1","Point 1"]
["Senior_Research_Fellow","Point 2","Point 2"]
["Senior_Research_Fellow","Point 3","Point 3"]
["Senior_Research_Fellow","Point 4","Point 4"]
["Admin_Officer_01D","Point 1"]
["Admin_Officer_01D","Point 2"]
["Admin_Officer_01D","Point 3"]
["Admin_Officer_01D","Point 4"]
["Admin_Officer_01D","Point 5"]
["Admin_Officer_Current_Serving_Employee_01A","Point 1"]
["Admin_Officer_Current_Serving_Employee_01A","Point 2"]
["Admin_Officer_Current_Serving_Employee_01A","Point 3"]
["Admin_Officer_Current_Serving_Employee_01A","Point 4"]
["Admin_Officer_Current_Serving_Employee_01A","Point 5"]
["Chief_Technical_Officer_17A","Point 1"]
["Chief_Technical_Officer_17A","Point 2"]
["Chief_Technical_Officer_17A","Point 3"]
["Chief_Technical_Officer_17A","Point 4"]
["Chief_Technical_Officer_17A","Point 5"]
["Chief_Technical_Officer_17D","Point 1"]
["Chief_Technical_Officer_17D","Point 2"]
["Chief_Technical_Officer_17D","Point 3"]
["Chief_Technical_Officer_17D","Point 4"]
["Chief_Technical_Officer_17D","Point 5"]
["Clinical_Research_Support_Officer_166A","Point 1"]
["Clinical_Research_Support_Officer_166A","Point 2"]
["Clinical_Research_Support_Officer_166A","Point 3"]
["Clinical_Research_Support_Officer_166A","Point 4"]
["Grade_2_1761.75_Hrs._06A","Point 1"]
["Grade_2_1761.75_Hrs._06A","Point 2"]
["Grade_2_1761.75_Hrs._06A","Point 3"]
["Grade_2_1761.75_Hrs._06A","Point 4"]
["Grade_2_1761.75_Hrs._06A","Point 5"]
["Grade_2_1761.75_Hrs._06A","Point 6"]
["Grade_2_1761.75_Hrs._06A","Point 7"]
["Grade_2_1761.75_Hrs._06A","Point 8"]
["Grade_2_1761.75_Hrs._06A","Point 9"]
["Grade_2_1761.75_Hrs._06A","Point 10"]
["Grade_2_1761.75_Hrs._06A","Point 11"]
["Grade_2_1761.75_Hrs._06A","Point 12"]
["Grade_2_1761.75_Hrs._06D","Point 1"]
["Grade_2_1761.75_Hrs._06D","Point 2"]
["Grade_2_1761.75_Hrs._06D","Point 3"]
["Grade_2_1761.75_Hrs._06D","Point 4"]
["Grade_2_1761.75_Hrs._06D","Point 5"]
["Grade_2_1761.75_Hrs._06D","Point 6"]
["Grade_2_1761.75_Hrs._06D","Point 7"]
["Grade_2_1761.75_Hrs._06D","Point 8"]
["Grade_2_1761.75_Hrs._06D","Point 9"]
["Grade_2_1761.75_Hrs._06D","Point 10"]
["Grade_2_1761.75_Hrs._06D","Point 11"]
["Grade_2_1761.75_Hrs._06D","Point 12"]
["Grade_3_1761.75_Hrs._11A","Point 1"]
["Grade_3_1761.75_Hrs._11A","Point 2"]
["Grade_3_1761.75_Hrs._11A","Point 3"]
["Grade_3_1761.75_Hrs._11A","Point 4"]
["Grade_3_1761.75_Hrs._11A","Point 5"]
["Grade_3_1761.75_Hrs._11A","Point 6"]
["Grade_3_1761.75_Hrs._11A","Point 7"]
["Grade_3_1761.75_Hrs._11A","Point 8"]
["Grade_3_1761.75_Hrs._11A","Point 9"]
["Grade_3_1761.75_Hrs._11A","Point 10"]
["Grade_3_1761.75_Hrs._11A","Point 11"]
["Grade_3_1761.75_Hrs._11D","Point 1"]
["Grade_3_1761.75_Hrs._11D","Point 2"]
["Grade_3_1761.75_Hrs._11D","Point 3"]
["Grade_3_1761.75_Hrs._11D","Point 4"]
["Grade_3_1761.75_Hrs._11D","Point 5"]
["Grade_3_1761.75_Hrs._11D","Point 6"]
["Grade_3_1761.75_Hrs._11D","Point 7"]
["Grade_3_1761.75_Hrs._11D","Point 8"]
["Grade_3_1761.75_Hrs._11D","Point 9"]
["Grade_3_1761.75_Hrs._11D","Point 10"]
["Grade_3_1761.75_Hrs._11D","Point 11"]
["Grade_4_02A","Point 1"]
["Grade_4_02A","Point 2"]
["Grade_4_02A","Point 3"]
["Grade_4_02A","Point 4"]
["Grade_4_02A","Point 5"]
["Grade_4_02A","Point 6"]
["Grade_4_02A","Point 7"]
["Grade_4_02A","Point 8"]
["Grade_4_02A","Point 9"]
["Grade_4_02D","Point 1"]
["Grade_4_02D","Point 2"]
["Grade_4_02D","Point 3"]
["Grade_4_02D","Point 4"]
["Grade_4_02D","Point 5"]
["Grade_4_02D","Point 6"]
["Grade_4_02D","Point 7"]
["Grade_4_02D","Point 8"]
["Grade_4_02D","Point 9"]
["Grade_5_25A","Point 1"]
["Grade_5_25A","Point 2"]
["Grade_5_25A","Point 3"]
["Grade_5_25A","Point 4"]
["Grade_5_25A","Point 5"]
["Grade_5_25A","Point 6"]
["Grade_5_25A","Point 7"]
["Grade_5_25D","Point 1"]
["Grade_5_25D","Point 2"]
["Grade_5_25D","Point 3"]
["Grade_5_25D","Point 4"]
["Grade_5_25D","Point 5"]
["Grade_5_25D","Point 6"]
["Grade_5_25D","Point 7"]
["Junior_Lecturer_Old_Scale_62D","Point 1"]
["Lecturer_128A","Point 1"]
["Lecturer_128A","Point 2"]
["Lecturer_128A","Point 3"]
["Lecturer_128A","Point 4"]
["Lecturer_128A","Point 5"]
["Lecturer_128A","Point 6"]
["Lecturer_128A","Point 7"]
["Lecturer_128A","Point 8"]
["Lecturer_128A","Point 9"]
["Lecturer_128A","Point 10"]
["Lecturer_Above_Bar_College_36A","Point 1"]
["Lecturer_Above_Bar_College_36A","Point 2"]
["Lecturer_Above_Bar_College_36A","Point 3"]
["Lecturer_Above_Bar_College_36A","Point 4"]
["Lecturer_Above_Bar_College_36A","Point 5"]
["Lecturer_Above_Bar_College_36D","Point 1"]
["Lecturer_Above_Bar_College_36D","Point 2"]
["Lecturer_Above_Bar_College_36D","Point 3"]
["Lecturer_Above_Bar_College_36D","Point 4"]
["Lecturer_Above_Bar_College_36D","Point 5"]
["Lecturer_Below_Bar_Junior_33A","Point 1"]
["Lecturer_Below_Bar_Junior_33A","Point 2"]
["Lecturer_Below_Bar_Junior_33A","Point 3"]
["Lecturer_Below_Bar_Junior_33A","Point 4"]
["Lecturer_Below_Bar_Junior_33A","Point 5"]
["Lecturer_Below_Bar_Junior_33A","Point 6"]
["Lecturer_Below_Bar_Junior_33A","Point 7"]
["Lecturer_Below_Bar_Junior_33A","Point 8"]
["Lecturer_Below_Bar_Junior_33A","Point 9"]
["Lecturer_Below_Bar_Junior_33A","Point 10"]
["Lecturer_Below_Bar_Junior_33A","Point 11"]
["Lecturer_Below_Bar_Junior_33D","Point 1"]
["Lecturer_Below_Bar_Junior_33D","Point 2"]
["Lecturer_Below_Bar_Junior_33D","Point 3"]
["Lecturer_Below_Bar_Junior_33D","Point 4"]
["Lecturer_Below_Bar_Junior_33D","Point 5"]
["Lecturer_Below_Bar_Junior_33D","Point 6"]
["Lecturer_Below_Bar_Junior_33D","Point 7"]
["Lecturer_Below_Bar_Junior_33D","Point 8"]
["Lecturer_Below_Bar_Junior_33D","Point 9"]
["Lecturer_Below_Bar_Junior_33D","Point 10"]
["Lecturer_Below_Bar_Junior_33D","Point 11"]
["Lecturer_Fixed_Term_19A","Point 1"]
["Lecturer_Fixed_Term_19A","Point 2"]
["Lecturer_Fixed_Term_19A","Point 3"]
["Lecturer_Fixed_Term_19A","Point 4"]
["Lecturer_Fixed_Term_19A","Point 5"]
["Lecturer_Fixed_Term_19A","Point 6"]
["Lecturer_Fixed_Term_19A","Point 7"]
["Lecturer_Fixed_Term_19A","Point 8"]
["Lecturer_Fixed_Term_19A","Point 9"]
["Lecturer_Fixed_Term_19A","Point 10"]
["Lecturer_Fixed_Term_19A","Point 11"]
["Lecturer_Fixed_Term_19D","Point 1"]
["Lecturer_Fixed_Term_19D","Point 2"]
["Lecturer_Fixed_Term_19D","Point 3"]
["Lecturer_Fixed_Term_19D","Point 4"]
["Lecturer_Fixed_Term_19D","Point 5"]
["Lecturer_Fixed_Term_19D","Point 6"]
["Lecturer_Fixed_Term_19D","Point 7"]
["Lecturer_Fixed_Term_19D","Point 8"]
["Lecturer_Fixed_Term_19D","Point 9"]
["Lecturer_Fixed_Term_19D","Point 10"]
["Lecturer_Fixed_Term_19D","Point 11"]
["Personal_Professor_20A","Point 1"]
["Personal_Professor_20D","Point 1"]
["Professor_In_117A","Point 1"]
["Professor_In_117A","Point 2"]
["Professor_In_117A","Point 3"]
["Professor_In_117A","Point 4"]
["Professor_In_117A","Point 5"]
["Professor_In_117A","Point 6"]
["Professor_In_117D","Point 1"]
["Professor_In_117D","Point 2"]
["Professor_In_117D","Point 3"]
["Professor_In_117D","Point 4"]
["Professor_In_117D","Point 5"]
["Professor_In_117D","Point 6"]
["Professors_116A","Point 1"]
["Professors_116A","Point 2"]
["Professors_116A","Point 3"]
["Professors_116A","Point 4"]
["Professors_116A","Point 5"]
["Professors_116A","Point 6"]
["Professors_116D","Point 1"]
["Professors_116D","Point 2"]
["Professors_116D","Point 3"]
["Professors_116D","Point 4"]
["Professors_116D","Point 5"]
["Professors_116D","Point 6"]
["Salaried_University_Fellow_83A","Point 1"]
["Salaried_University_Fellow_83A","Point 2"]
["Salaried_University_Fellow_83A","Point 3"]
["Salaried_University_Fellow_83D","Point 1"]
["Salaried_University_Fellow_83D","Point 2"]
["Salaried_University_Fellow_83D","Point 3"]
["Senior_Statutory_Lecturers_21A","Point 1"]
["Senior_Statutory_Lecturers_21A","Point 2"]
["Senior_Statutory_Lecturers_21A","Point 3"]
["Senior_Statutory_Lecturers_21A","Point 4"]
["Senior_Statutory_Lecturers_21A","Point 5"]
["Senior_Statutory_Lecturers_21A","Point 6"]
["Senior_Statutory_Lecturers_21A","Point 7"]
["Senior_Statutory_Lecturers_21A","Point 8"]
["Senior_Statutory_Lecturers_21D","Point 1"]
["Senior_Statutory_Lecturers_21D","Point 2"]
["Senior_Statutory_Lecturers_21D","Point 3"]
["Senior_Statutory_Lecturers_21D","Point 4"]
["Senior_Statutory_Lecturers_21D","Point 5"]
["Senior_Statutory_Lecturers_21D","Point 6"]
["Senior_Statutory_Lecturers_21D","Point 7"]
["Senior_Statutory_Lecturers_21D","Point 8"]
["Technical_Officer_09A","Point 1"]
["Technical_Officer_09A","Point 2"]
["Technical_Officer_09A","Point 3"]
["Technical_Officer_09A","Point 4"]
["Technical_Officer_09A","Point 5"]
["Technical_Officer_09D","Point 1"]
["Technical_Officer_09D","Point 2"]
["Technical_Officer_09D","Point 3"]
["Technical_Officer_09D","Point 4"]
["Technical_Officer_09D","Point 5"]
["Post_Doc_Res_Res_Ass_Iua_2013_66A_13","Point 1"]
["Post_Doc_Res_Res_Ass_Iua_2013_66A_13","Point 2"]
["Post_Doc_Res_Res_Ass_Iua_2013_66A_13","Point 3"]
["Post_Doc_Res_Res_Ass_Iua_2013_66A_13","Point 4"]
["Post_Doc_Res_Res_Ass_Iua_2013_66A_13","Point 5"]
["Post_Doc_Res_Res_Ass_Iua_2013_66A_13","Point 6"]
["Post_Doc_Res_Res_Ass_Iua_2013_66A_13","Point 7"]
["Post_Doc_Res_Res_Ass_Iua_2013_66A_13","Point 8"]
["Post_Doc_Researcher_Research_Associate_66A","Point 1"]
["Post_Doc_Researcher_Research_Associate_66A","Point 2"]
["Post_Doc_Researcher_Research_Associate_66A","Point 3"]
["Post_Doc_Researcher_Research_Associate_66A","Point 4"]
["Post_Doc_Researcher_Research_Associate_66A","Point 5"]
["Post_Doc_Researcher_Research_Associate_66A","Point 6"]
["Post_Doc_Researcher_Research_Associate_66A","Point 7"]
["Post_Doc_Researcher_Research_Associate_66A","Point 8"]
["Post_Doc_Researcher_Research_Associate_66A","Point 9"]
["Post_Doc_Researcher_Research_Associate_66A","Point 10"]
["Post_Doc_Researcher_Research_Associate_66A","Point 11"]
["Post_Doc_Researcher_Research_Associate_66D","Point 1"]
["Post_Doc_Researcher_Research_Associate_66D","Point 2"]
["Post_Doc_Researcher_Research_Associate_66D","Point 3"]
["Post_Doc_Researcher_Research_Associate_66D","Point 4"]
["Post_Doc_Researcher_Research_Associate_66D","Point 5"]
["Post_Doc_Researcher_Research_Associate_66D","Point 6"]
["Post_Doc_Researcher_Research_Associate_66D","Point 7"]
["Post_Doc_Researcher_Research_Associate_66D","Point 8"]
["Post_Doc_Researcher_Research_Associate_66D","Point 9"]
["Post_Doc_Researcher_Research_Associate_66D","Point 10"]
["Post_Doc_Researcher_Research_Associate_66D","Point 11"]
["Research_Assistant_65A","Point 1"]
["Research_Assistant_65A","Point 2"]
["Research_Assistant_65A","Point 3"]
["Research_Assistant_65A","Point 4"]
["Research_Assistant_65A","Point 5"]
["Research_Assistant_65A","Point 6"]
["Research_Assistant_65A","Point 7"]
["Research_Assistant_65A","Point 8"]
["Research_Assistant_65A","Point 9"]
["Research_Assistant_65A","Point 10"]
["Research_Assistant_65A","Point 11"]
["Research_Assistant_65A","Point 12"]
["Research_Assistant_65A","Point 13"]
["Research_Assistant_65A","Point 14"]
["Research_Assistant_65A","Point 15"]
["Research_Assistant_65A_20","Point 1"]
["Research_Assistant_65A_20","Point 2"]
["Research_Assistant_65A_20","Point 3"]
["Research_Assistant_65A_20","Point 4"]
["Research_Assistant_65A_20","Point 5"]
["Research_Assistant_65A_20","Point 6"]
["Research_Assistant_65A_20","Point 7"]
["Research_Assistant_65A_20","Point 8"]
["Research_Assistant_65A_20","Point 9"]
["Research_Assistant_65A_20","Point 10"]
["Research_Assistant_65A_20","Point 11"]
["Research_Assistant_65A_20","Point 12"]
["Research_Assistant_65A_20","Point 13"]
["Research_Assistant_Iua_2013_65A_13","Point 1"]
["Research_Assistant_Iua_2013_65A_13","Point 2"]
["Research_Assistant_Iua_2013_65A_13","Point 3"]
["Research_Assistant_Iua_2013_65A_13","Point 4"]
["Research_Assistant_Iua_2013_65A_13","Point 5"]
["Research_Assistant_Iua_2013_65A_13","Point 6"]
["Research_Assistant_Iua_2013_65A_13","Point 7"]
["Research_Assistant_Iua_2013_65A_13","Point 8"]
["Research_Assistant_Iua_2013_65A_13","Point 9"]
["Research_Assistant_Iua_2013_65A_13","Point 10"]
["Research_Assistant_Iua_2013_65A_13","Point 11"]
["Research_Assistant_Iua_2013_65A_13","Point 12"]
["Research_Assistant_Iua_2013_65A_13","Point 13"]
["Research_Assistant_Iua_2013_65A_13","Point 14"]
["Research_Assistant_Iua_2013_65A_13","Point 15"]
["Research_Fellow_67A","Point 1"]
["Research_Fellow_67A","Point 2"]
["Research_Fellow_67A","Point 3"]
["Research_Fellow_67A","Point 4"]
["Research_Fellow_67A","Point 5"]
["Research_Fellow_Iua_2013_67A_13","Point 1"]
["Research_Fellow_Iua_2013_67A_13","Point 2"]
["Research_Fellow_Iua_2013_67A_13","Point 3"]
["Research_Fellow_Iua_2013_67A_13","Point 4"]
["Senior_Research_Fellow_68A","Point 1"]
["Senior_Research_Fellow_68A","Point 2"]
["Senior_Research_Fellow_68A","Point 3"]
["Senior_Research_Fellow_68A","Point 4"]
["Senior_Research_Fellow_68A","Point 5"]
["Fixed_Amount","Point 1"]

{"sheet":"Period","index":7,"n_rows":8,"n_cols":3,"rows_kept":8,"cut":false,"hidden":true,"merged":[]}
["SalaryScale","StartDate","EndDate"]
["Jan2024","2024-01-01","2024-05-31"]
["June2024","2024-06-01","2024-09-30"]
["October2024","2024-10-01","2025-02-28"]
["March2025","2025-03-01","2025-07-31"]
["August2025","2025-08-01","2026-01-31"]
["Feb2026","2026-02-01","2026-05-31"]
["June2026","2026-06-01","2030-12-31"]

{"sheet":"Salary","index":8,"n_rows":2410,"n_cols":30,"rows_kept":2410,"cut":false,"hidden":true,"merged":[]}
["Role","SalaryPoint","Period","Lookup_Key","Salary"]
["Research_Assistant","Point 1","Jan2024","Research_AssistantPoint 1Jan2024",31150.29895264026]
["Research_Assistant","Point 2","Jan2024","Research_AssistantPoint 2Jan2024",31962.596405056011]
["Research_Assistant","Point 3","Jan2024","Research_AssistantPoint 3Jan2024",32378.832945996135]
["Research_Assistant","Point 4","Jan2024","Research_AssistantPoint 4Jan2024",33229.927429238189]
["Research_Assistant","Point 5","Jan2024","Research_AssistantPoint 5Jan2024",34104.23876216005]
["Research_Assistant","Point 6","Jan2024","Research_AssistantPoint 6Jan2024",35005.8942176614]
["Research_Assistant","Point 7","Jan2024","Research_AssistantPoint 7Jan2024",35936.670176909232]
["Research_Assistant","Point 8","Jan2024","Research_AssistantPoint 8Jan2024",36553.717847765241]
["Research_Assistant","Point 9","Jan2024","Research_AssistantPoint 9Jan2024",37503.475666908511]
["Research_Assistant","Point 10","Jan2024","Research_AssistantPoint 10Jan2024",38305.037344921082]
["Research_Assistant","Point 11","Jan2024","Research_AssistantPoint 11Jan2024",38957.735281699664]
["Research_Assistant","Point 12","Jan2024","Research_AssistantPoint 12Jan2024",39980.033254967326]
["Research_Assistant","Point 13","Jan2024","Research_AssistantPoint 13Jan2024",41032.663146123181]
["Post_Doctoral_Researcher_PD1","PD1 Point 1","Jan2024","Post_Doctoral_Researcher_PD1PD1 Point 1Jan2024",43907.836988013842]
["Post_Doctoral_Researcher_PD1","PD1 Point 2","Jan2024","Post_Doctoral_Researcher_PD1PD1 Point 2Jan2024",44495.781785894884]
["Post_Doctoral_Researcher_PD1","PD1 Point 3","Jan2024","Post_Doctoral_Researcher_PD1PD1 Point 3Jan2024",46447.472191343149]
["Post_Doctoral_Researcher_PD1","PD1 Point 4","Jan2024","Post_Doctoral_Researcher_PD1PD1 Point 4Jan2024",47694.451037856452]
["Post_Doctoral_Researcher_PD1","PD1 Point 5","Jan2024","Post_Doctoral_Researcher_PD1PD1 Point 5Jan2024",48978.502228455298]
["Post_Doctoral_Researcher_PD1","PD1 Point 6","Jan2024","Post_Doctoral_Researcher_PD1PD1 Point 6Jan2024",50301.87257187214]
["Post_Doctoral_Researcher_PD2","PD2 Point 1","Jan2024","Post_Doctoral_Researcher_PD2PD2 Point 1Jan2024",51676.70221463935]
["Post_Doctoral_Researcher_PD2","PD2 Point 2","Jan2024","Post_Doctoral_Researcher_PD2PD2 Point 2Jan2024",53129.823408542703]
["Post_Doctoral_Researcher_PD2","PD2 Point 3","Jan2024","Post_Doctoral_Researcher_PD2PD2 Point 3Jan2024",54641.937530115429]
["Post_Doctoral_Researcher_PD2","PD2 Point 4","Jan2024","Post_Doctoral_Researcher_PD2PD2 Point 4Jan2024",56202.218165325685]
["Research_Fellow","Point 1","Jan2024","Research_FellowPoint 1Jan2024",62697.563400302985]
["Research_Fellow","Point 2","Jan2024","Research_FellowPoint 2Jan2024",64516.073424566246]
["Research_Fellow","Point 3","Jan2024","Research_FellowPoint 3Jan2024",66389.293364536614]
["Research_Fellow","Point 4","Jan2024","Research_FellowPoint 4Jan2024",68318.412566207655]
["Senior_Research_Fellow","Point 1","Jan2024","Senior_Research_FellowPoint 1Jan2024",76266.811841650124]
["Senior_Research_Fellow","Point 2","Jan2024","Senior_Research_FellowPoint 2Jan2024",78492.078195735579]
["Senior_Research_Fellow","Point 3","Jan2024","Senior_Research_FellowPoint 3Jan2024",79549.406784074352]
["Senior_Research_Fellow","Point 4","Jan2024","Senior_Research_FellowPoint 4Jan2024",81847.223243771339]
["Admin_Officer_01D","Point 1","Jan2024","Admin_Officer_01DPoint 1Jan2024",77541.287499999991]
["Admin_Officer_01D","Point 2","Jan2024","Admin_Officer_01DPoint 2Jan2024",81551.532500000001]
["Admin_Officer_01D","Point 3","Jan2024","Admin_Officer_01DPoint 3Jan2024",86799.002500000002]
["Admin_Officer_01D","Point 4","Jan2024","Admin_Officer_01DPoint 4Jan2024",92045.45]
["Admin_Officer_01D","Point 5","Jan2024","Admin_Officer_01DPoint 5Jan2024",97315.414999999994]
["Admin_Officer_Current_Serving_Employee_01A","Point 1","Jan2024","Admin_Officer_Current_Serving_Employee_01APoint 1Jan2024",80303.06]
["Admin_Officer_Current_Serving_Employee_01A","Point 2","Jan2024","Admin_Officer_Current_Serving_Employee_01APoint 2Jan2024",85840.92]
["Admin_Officer_Current_Serving_Employee_01A","Point 3","Jan2024","Admin_Officer_Current_Serving_Employee_01APoint 3Jan2024",91370.599999999991]
["Admin_Officer_Current_Serving_Employee_01A","Point 4","Jan2024","Admin_Officer_Current_Serving_Employee_01APoint 4Jan2024",96892.099999999991]
["Admin_Officer_Current_Serving_Employee_01A","Point 5","Jan2024","Admin_Officer_Current_Serving_Employee_01APoint 5Jan2024",102436.095]
["Chief_Technical_Officer_17A","Point 1","Jan2024","Chief_Technical_Officer_17APoint 1Jan2024",64972.717499999999]
["Chief_Technical_Officer_17A","Point 2","Jan2024","Chief_Technical_Officer_17APoint 2Jan2024",67672.117499999993]
["Chief_Technical_Officer_17A","Point 3","Jan2024","Chief_Technical_Officer_17APoint 3Jan2024",70272.334999999992]
["Chief_Technical_Officer_17A","Point 4","Jan2024","Chief_Technical_Officer_17APoint 4Jan2024",72956.397499999992]
["Chief_Technical_Officer_17A","Point 5","Jan2024","Chief_Technical_Officer_17APoint 5Jan2024",75695.675000000003]
["Chief_Technical_Officer_17D","Point 1","Jan2024","Chief_Technical_Officer_17DPoint 1Jan2024",61830.574999999997]
["Chief_Technical_Officer_17D","Point 2","Jan2024","Chief_Technical_Officer_17DPoint 2Jan2024",64390.915000000001]
["Chief_Technical_Officer_17D","Point 3","Jan2024","Chief_Technical_Officer_17DPoint 3Jan2024",66855.14]
["Chief_Technical_Officer_17D","Point 4","Jan2024","Chief_Technical_Officer_17DPoint 4Jan2024",69413.434999999998]
["Chief_Technical_Officer_17D","Point 5","Jan2024","Chief_Technical_Officer_17DPoint 5Jan2024",72013.652499999997]
["Clinical_Research_Support_Officer_166A","Point 1","Jan2024","Clinical_Research_Support_Officer_166APoint 1Jan2024",43907]
["Clinical_Research_Support_Officer_166A","Point 2","Jan2024","Clinical_Research_Support_Officer_166APoint 2Jan2024",44496]
["Clinical_Research_Support_Officer_166A","Point 3","Jan2024","Clinical_Research_Support_Officer_166APoint 3Jan2024",46448]
["Clinical_Research_Support_Officer_166A","Point 4","Jan2024","Clinical_Research_Support_Officer_166APoint 4Jan2024",47695]
["Grade_2_1761.75_Hrs._06A","Point 1","Jan2024","Grade_2_1761.75_Hrs._06APoint 1Jan2024",34182]
["Grade_2_1761.75_Hrs._06A","Point 2","Jan2024","Grade_2_1761.75_Hrs._06APoint 2Jan2024",35415]
["Grade_2_1761.75_Hrs._06A","Point 3","Jan2024","Grade_2_1761.75_Hrs._06APoint 3Jan2024",36668]
["Grade_2_1761.75_Hrs._06A","Point 4","Jan2024","Grade_2_1761.75_Hrs._06APoint 4Jan2024",37535]
["Grade_2_1761.75_Hrs._06A","Point 5","Jan2024","Grade_2_1761.75_Hrs._06APoint 5Jan2024",38562]
["Grade_2_1761.75_Hrs._06A","Point 6","Jan2024","Grade_2_1761.75_Hrs._06APoint 6Jan2024",39375]
["Grade_2_1761.75_Hrs._06A","Point 7","Jan2024","Grade_2_1761.75_Hrs._06APoint 7Jan2024",40567]
["Grade_2_1761.75_Hrs._06A","Point 8","Jan2024","Grade_2_1761.75_Hrs._06APoint 8Jan2024",42236]
["Grade_2_1761.75_Hrs._06A","Point 9","Jan2024","Grade_2_1761.75_Hrs._06APoint 9Jan2024",44000]
["Grade_2_1761.75_Hrs._06A","Point 10","Jan2024","Grade_2_1761.75_Hrs._06APoint 10Jan2024",45751]
["Grade_2_1761.75_Hrs._06A","Point 11","Jan2024","Grade_2_1761.75_Hrs._06APoint 11Jan2024",47513]
["Grade_2_1761.75_Hrs._06A","Point 12","Jan2024","Grade_2_1761.75_Hrs._06APoint 12Jan2024",49281]
["Grade_2_1761.75_Hrs._06D","Point 1","Jan2024","Grade_2_1761.75_Hrs._06DPoint 1Jan2024",32674]
["Grade_2_1761.75_Hrs._06D","Point 2","Jan2024","Grade_2_1761.75_Hrs._06DPoint 2Jan2024",33851]
["Grade_2_1761.75_Hrs._06D","Point 3","Jan2024","Grade_2_1761.75_Hrs._06DPoint 3Jan2024",35036]
["Grade_2_1761.75_Hrs._06D","Point 4","Jan2024","Grade_2_1761.75_Hrs._06DPoint 4Jan2024",36219]
["Grade_2_1761.75_Hrs._06D","Point 5","Jan2024","Grade_2_1761.75_Hrs._06DPoint 5Jan2024",37045]
["Grade_2_1761.75_Hrs._06D","Point 6","Jan2024","Grade_2_1761.75_Hrs._06DPoint 6Jan2024",37990]
["Grade_2_1761.75_Hrs._06D","Point 7","Jan2024","Grade_2_1761.75_Hrs._06DPoint 7Jan2024",39129]
["Grade_2_1761.75_Hrs._06D","Point 8","Jan2024","Grade_2_1761.75_Hrs._06DPoint 8Jan2024",40359]
["Grade_2_1761.75_Hrs._06D","Point 9","Jan2024","Grade_2_1761.75_Hrs._06DPoint 9Jan2024",42049]
["Grade_2_1761.75_Hrs._06D","Point 10","Jan2024","Grade_2_1761.75_Hrs._06DPoint 10Jan2024",43702]
["Grade_2_1761.75_Hrs._06D","Point 11","Jan2024","Grade_2_1761.75_Hrs._06DPoint 11Jan2024",45381]
["Grade_2_1761.75_Hrs._06D","Point 12","Jan2024","Grade_2_1761.75_Hrs._06DPoint 12Jan2024",47058]
["Grade_3_1761.75_Hrs._11A","Point 1","Jan2024","Grade_3_1761.75_Hrs._11APoint 1Jan2024",40446]
["Grade_3_1761.75_Hrs._11A","Point 2","Jan2024","Grade_3_1761.75_Hrs._11APoint 2Jan2024",42236]
["Grade_3_1761.75_Hrs._11A","Point 3","Jan2024","Grade_3_1761.75_Hrs._11APoint 3Jan2024",44000]
["Grade_3_1761.75_Hrs._11A","Point 4","Jan2024","Grade_3_1761.75_Hrs._11APoint 4Jan2024",45751]
["Grade_3_1761.75_Hrs._11A","Point 5","Jan2024","Grade_3_1761.75_Hrs._11APoint 5Jan2024",47513]
["Grade_3_1761.75_Hrs._11A","Point 6","Jan2024","Grade_3_1761.75_Hrs._11APoint 6Jan2024",49281]
["Grade_3_1761.75_Hrs._11A","Point 7","Jan2024","Grade_3_1761.75_Hrs._11APoint 7Jan2024",51034]
["Grade_3_1761.75_Hrs._11A","Point 8","Jan2024","Grade_3_1761.75_Hrs._11APoint 8Jan2024",52826.439999999995]
["Grade_3_1761.75_Hrs._11A","Point 9","Jan2024","Grade_3_1761.75_Hrs._11APoint 9Jan2024",53265.092499999999]
["Grade_3_1761.75_Hrs._11A","Point 10","Jan2024","Grade_3_1761.75_Hrs._11APoint 10Jan2024",55146.4925]
["Grade_3_1761.75_Hrs._11A","Point 11","Jan2024","Grade_3_1761.75_Hrs._11APoint 11Jan2024",56523.799999999996]
["Grade_3_1761.75_Hrs._11D","Point 1","Jan2024","Grade_3_1761.75_Hrs._11DPoint 1Jan2024",39015]
["Grade_3_1761.75_Hrs._11D","Point 2","Jan2024","Grade_3_1761.75_Hrs._11DPoint 2Jan2024",40359]
["Grade_3_1761.75_Hrs._11D","Point 3","Jan2024","Grade_3_1761.75_Hrs._11DPoint 3Jan2024",42049]
["Grade_3_1761.75_Hrs._11D","Point 4","Jan2024","Grade_3_1761.75_Hrs._11DPoint 4Jan2024",43702]
["Grade_3_1761.75_Hrs._11D","Point 5","Jan2024","Grade_3_1761.75_Hrs._11DPoint 5Jan2024",45381]
["Grade_3_1761.75_Hrs._11D","Point 6","Jan2024","Grade_3_1761.75_Hrs._11DPoint 6Jan2024",47058]
["Grade_3_1761.75_Hrs._11D","Point 7","Jan2024","Grade_3_1761.75_Hrs._11DPoint 7Jan2024",48727]
["Grade_3_1761.75_Hrs._11D","Point 8","Jan2024","Grade_3_1761.75_Hrs._11DPoint 8Jan2024",50386]
["Grade_3_1761.75_Hrs._11D","Point 9","Jan2024","Grade_3_1761.75_Hrs._11DPoint 9Jan2024",50779]
["Grade_3_1761.75_Hrs._11D","Point 10","Jan2024","Grade_3_1761.75_Hrs._11DPoint 10Jan2024",52524.802499999998]
["Grade_3_1761.75_Hrs._11D","Point 11","Jan2024","Grade_3_1761.75_Hrs._11DPoint 11Jan2024",53825.422500000001]
["Grade_4_02A","Point 1","Jan2024","Grade_4_02APoint 1Jan2024",51425.614999999998]
["Grade_4_02A","Point 2","Jan2024","Grade_4_02APoint 2Jan2024",53265.092499999999]
["Grade_4_02A","Point 3","Jan2024","Grade_4_02APoint 3Jan2024",55146.4925]
["Grade_4_02A","Point 4","Jan2024","Grade_4_02APoint 4Jan2024",56523.799999999996]
["Grade_4_02A","Point 5","Jan2024","Grade_4_02APoint 5Jan2024",57942.0075]
["Grade_4_02A","Point 6","Jan2024","Grade_4_02APoint 6Jan2024",59434.857499999998]
["Grade_4_02A","Point 7","Jan2024","Grade_4_02APoint 7Jan2024",60887.829999999994]
["Grade_4_02A","Point 8","Jan2024","Grade_4_02APoint 8Jan2024",64399.095000000001]
["Grade_4_02A","Point 9","Jan2024","Grade_4_02APoint 9Jan2024",66419.554999999993]
["Grade_4_02D","Point 1","Jan2024","Grade_4_02DPoint 1Jan2024",49094]
["Grade_4_02D","Point 2","Jan2024","Grade_4_02DPoint 2Jan2024",50779]
["Grade_4_02D","Point 3","Jan2024","Grade_4_02DPoint 3Jan2024",52524.802499999998]
["Grade_4_02D","Point 4","Jan2024","Grade_4_02DPoint 4Jan2024",53825.422500000001]
["Grade_4_02D","Point 5","Jan2024","Grade_4_02DPoint 5Jan2024",55158.762499999997]
["Grade_4_02D","Point 6","Jan2024","Grade_4_02DPoint 6Jan2024",56565.722499999996]
["Grade_4_02D","Point 7","Jan2024","Grade_4_02DPoint 7Jan2024",57953.254999999997]
["Grade_4_02D","Point 8","Jan2024","Grade_4_02DPoint 8Jan2024",61277.402499999997]
["Grade_4_02D","Point 9","Jan2024","Grade_4_02DPoint 9Jan2024",63199.702499999999]
["Grade_5_25A","Point 1","Jan2024","Grade_5_25APoint 1Jan2024",59234.447499999995]
["Grade_5_25A","Point 2","Jan2024","Grade_5_25APoint 2Jan2024",61761.044999999998]
["Grade_5_25A","Point 3","Jan2024","Grade_5_25APoint 3Jan2024",64399.095000000001]
["Grade_5_25A","Point 4","Jan2024","Grade_5_25APoint 4Jan2024",66419.554999999993]
["Grade_5_25A","Point 5","Jan2024","Grade_5_25APoint 5Jan2024",68508.522499999992]
["Grade_5_25A","Point 6","Jan2024","Grade_5_25APoint 6Jan2024",70567.837499999994]
["Grade_5_25A","Point 7","Jan2024","Grade_5_25APoint 7Jan2024",80303.06]
["Grade_5_25D","Point 1","Jan2024","Grade_5_25DPoint 1Jan2024",56370.424999999996]
["Grade_5_25D","Point 2","Jan2024","Grade_5_25DPoint 2Jan2024",58777.39]
["Grade_5_25D","Point 3","Jan2024","Grade_5_25DPoint 3Jan2024",61277.402499999997]
["Grade_5_25D","Point 4","Jan2024","Grade_5_25DPoint 4Jan2024",63199.702499999999]
["Grade_5_25D","Point 5","Jan2024","Grade_5_25DPoint 5Jan2024",65190.509999999995]
["Grade_5_25D","Point 6","Jan2024","Grade_5_25DPoint 6Jan2024",67143.485000000001]
["Grade_5_25D","Point 7","Jan2024","Grade_5_25DPoint 7Jan2024",77541.287499999991]
["Junior_Lecturer_Old_Scale_62D","Point 1","Jan2024","Junior_Lecturer_Old_Scale_62DPoint 1Jan2024",48469]
["Lecturer_128A","Point 1","Jan2024","Lecturer_128APoint 1Jan2024",61146.522499999999]
["Lecturer_128A","Point 2","Jan2024","Lecturer_128APoint 2Jan2024",63068.822499999995]
["Lecturer_128A","Point 3","Jan2024","Lecturer_128APoint 3Jan2024",64994.189999999995]
["Lecturer_128A","Point 4","Jan2024","Lecturer_128APoint 4Jan2024",66951.255000000005]
["Lecturer_128A","Point 5","Jan2024","Lecturer_128APoint 5Jan2024",68724.27]
["Lecturer_128A","Point 6","Jan2024","Lecturer_128APoint 6Jan2024",75000.375]
["Lecturer_128A","Point 7","Jan2024","Lecturer_128APoint 7Jan2024",79687.514999999999]
["Lecturer_128A","Point 8","Jan2024","Lecturer_128APoint 8Jan2024",85648.69]
["Lecturer_128A","Point 9","Jan2024","Lecturer_128APoint 9Jan2024",91613.955000000002]
["Lecturer_128A","Point 10","Jan2024","Lecturer_128APoint 10Jan2024",97547.522499999992]
["Lecturer_Above_Bar_College_36A","Point 1","Jan2024","Lecturer_Above_Bar_College_36APoint 1Jan2024",75000.375]
["Lecturer_Above_Bar_College_36A","Point 2","Jan2024","Lecturer_Above_Bar_College_36APoint 2Jan2024",79687.514999999999]
["Lecturer_Above_Bar_College_36A","Point 3","Jan2024","Lecturer_Above_Bar_College_36APoint 3Jan2024",85648.69]
["Lecturer_Above_Bar_College_36A","Point 4","Jan2024","Lecturer_Above_Bar_College_36APoint 4Jan2024",91613.955000000002]
["Lecturer_Above_Bar_College_36A","Point 5","Jan2024","Lecturer_Above_Bar_College_36APoint 5Jan2024",97547.522499999992]
["Lecturer_Above_Bar_College_36D","Point 1","Jan2024","Lecturer_Above_Bar_College_36DPoint 1Jan2024",71349.027499999997]
["Lecturer_Above_Bar_College_36D","Point 2","Jan2024","Lecturer_Above_Bar_College_36DPoint 2Jan2024",76955.395000000004]
["Lecturer_Above_Bar_College_36D","Point 3","Jan2024","Lecturer_Above_Bar_College_36DPoint 3Jan2024",81362.37]
["Lecturer_Above_Bar_College_36D","Point 4","Jan2024","Lecturer_Above_Bar_College_36DPoint 4Jan2024",87027.02]
["Lecturer_Above_Bar_College_36D","Point 5","Jan2024","Lecturer_Above_Bar_College_36DPoint 5Jan2024",92674.287499999991]
["Lecturer_Below_Bar_Junior_33A","Point 1","Jan2024","Lecturer_Below_Bar_Junior_33APoint 1Jan2024",49264]
["Lecturer_Below_Bar_Junior_33A","Point 2","Jan2024","Lecturer_Below_Bar_Junior_33APoint 2Jan2024",51396.985000000001]
["Lecturer_Below_Bar_Junior_33A","Point 3","Jan2024","Lecturer_Below_Bar_Junior_33APoint 3Jan2024",53650.574999999997]
["Lecturer_Below_Bar_Junior_33A","Point 4","Jan2024","Lecturer_Below_Bar_Junior_33APoint 4Jan2024",55481.872499999998]
["Lecturer_Below_Bar_Junior_33A","Point 5","Jan2024","Lecturer_Below_Bar_Junior_33APoint 5Jan2024",57316.237499999996]
["Lecturer_Below_Bar_Junior_33A","Point 6","Jan2024","Lecturer_Below_Bar_Junior_33APoint 6Jan2024",59220.1325]
["Lecturer_Below_Bar_Junior_33A","Point 7","Jan2024","Lecturer_Below_Bar_Junior_33APoint 7Jan2024",61146.522499999999]
["Lecturer_Below_Bar_Junior_33A","Point 8","Jan2024","Lecturer_Below_Bar_Junior_33APoint 8Jan2024",63068.822499999995]
["Lecturer_Below_Bar_Junior_33A","Point 9","Jan2024","Lecturer_Below_Bar_Junior_33APoint 9Jan2024",64994.189999999995]
["Lecturer_Below_Bar_Junior_33A","Point 10","Jan2024","Lecturer_Below_Bar_Junior_33APoint 10Jan2024",66951.255000000005]
["Lecturer_Below_Bar_Junior_33A","Point 11","Jan2024","Lecturer_Below_Bar_Junior_33APoint 11Jan2024",68724.27]
["Lecturer_Below_Bar_Junior_33D","Point 1","Jan2024","Lecturer_Below_Bar_Junior_33DPoint 1Jan2024",47050]
["Lecturer_Below_Bar_Junior_33D","Point 2","Jan2024","Lecturer_Below_Bar_Junior_33DPoint 2Jan2024",49071]
["Lecturer_Below_Bar_Junior_33D","Point 3","Jan2024","Lecturer_Below_Bar_Junior_33DPoint 3Jan2024",51130.112499999996]
["Lecturer_Below_Bar_Junior_33D","Point 4","Jan2024","Lecturer_Below_Bar_Junior_33DPoint 4Jan2024",52839.732499999998]
["Lecturer_Below_Bar_Junior_33D","Point 5","Jan2024","Lecturer_Below_Bar_Junior_33DPoint 5Jan2024",54573.892499999994]
["Lecturer_Below_Bar_Junior_33D","Point 6","Jan2024","Lecturer_Below_Bar_Junior_33DPoint 6Jan2024",56365.3125]
["Lecturer_Below_Bar_Junior_33D","Point 7","Jan2024","Lecturer_Below_Bar_Junior_33DPoint 7Jan2024",58198.654999999999]
["Lecturer_Below_Bar_Junior_33D","Point 8","Jan2024","Lecturer_Below_Bar_Junior_33DPoint 8Jan2024",60025.862499999996]
["Lecturer_Below_Bar_Junior_33D","Point 9","Jan2024","Lecturer_Below_Bar_Junior_33DPoint 9Jan2024",61857.159999999996]
["Lecturer_Below_Bar_Junior_33D","Point 10","Jan2024","Lecturer_Below_Bar_Junior_33DPoint 10Jan2024",63703.794999999998]
["Lecturer_Below_Bar_Junior_33D","Point 11","Jan2024","Lecturer_Below_Bar_Junior_33DPoint 11Jan2024",65391.942499999997]
["Lecturer_Fixed_Term_19A","Point 1","Jan2024","Lecturer_Fixed_Term_19APoint 1Jan2024",49264]
["Lecturer_Fixed_Term_19A","Point 2","Jan2024","Lecturer_Fixed_Term_19APoint 2Jan2024",51396.985000000001]
["Lecturer_Fixed_Term_19A","Point 3","Jan2024","Lecturer_Fixed_Term_19APoint 3Jan2024",53650.574999999997]
["Lecturer_Fixed_Term_19A","Point 4","Jan2024","Lecturer_Fixed_Term_19APoint 4Jan2024",55481.872499999998]
["Lecturer_Fixed_Term_19A","Point 5","Jan2024","Lecturer_Fixed_Term_19APoint 5Jan2024",57316.237499999996]
["Lecturer_Fixed_Term_19A","Point 6","Jan2024","Lecturer_Fixed_Term_19APoint 6Jan2024",59220.1325]
["Lecturer_Fixed_Term_19A","Point 7","Jan2024","Lecturer_Fixed_Term_19APoint 7Jan2024",61146.522499999999]
["Lecturer_Fixed_Term_19A","Point 8","Jan2024","Lecturer_Fixed_Term_19APoint 8Jan2024",63068.822499999995]
["Lecturer_Fixed_Term_19A","Point 9","Jan2024","Lecturer_Fixed_Term_19APoint 9Jan2024",64994.189999999995]
["Lecturer_Fixed_Term_19A","Point 10","Jan2024","Lecturer_Fixed_Term_19APoint 10Jan2024",66951.255000000005]
["Lecturer_Fixed_Term_19A","Point 11","Jan2024","Lecturer_Fixed_Term_19APoint 11Jan2024",68724.27]
["Lecturer_Fixed_Term_19D","Point 1","Jan2024","Lecturer_Fixed_Term_19DPoint 1Jan2024",47050]
["Lecturer_Fixed_Term_19D","Point 2","Jan2024","Lecturer_Fixed_Term_19DPoint 2Jan2024",49071]
["Lecturer_Fixed_Term_19D","Point 3","Jan2024","Lecturer_Fixed_Term_19DPoint 3Jan2024",51130.112499999996]
["Lecturer_Fixed_Term_19D","Point 4","Jan2024","Lecturer_Fixed_Term_19DPoint 4Jan2024",52839.732499999998]
["Lecturer_Fixed_Term_19D","Point 5","Jan2024","Lecturer_Fixed_Term_19DPoint 5Jan2024",54573.892499999994]
["Lecturer_Fixed_Term_19D","Point 6","Jan2024","Lecturer_Fixed_Term_19DPoint 6Jan2024",56365.3125]
["Lecturer_Fixed_Term_19D","Point 7","Jan2024","Lecturer_Fixed_Term_19DPoint 7Jan2024",58198.654999999999]
["Lecturer_Fixed_Term_19D","Point 8","Jan2024","Lecturer_Fixed_Term_19DPoint 8Jan2024",60025.862499999996]
["Lecturer_Fixed_Term_19D","Point 9","Jan2024","Lecturer_Fixed_Term_19DPoint 9Jan2024",61857.159999999996]
["Lecturer_Fixed_Term_19D","Point 10","Jan2024","Lecturer_Fixed_Term_19DPoint 10Jan2024",63703.794999999998]
["Lecturer_Fixed_Term_19D","Point 11","Jan2024","Lecturer_Fixed_Term_19DPoint 11Jan2024",65391.942499999997]
["Personal_Professor_20A","Point 1","Jan2024","Personal_Professor_20APoint 1Jan2024",160796.30499999999]
["Personal_Professor_20D","Point 1","Jan2024","Personal_Professor_20DPoint 1Jan2024",152756.38749999998]
["Professor_In_117A","Point 1","Jan2024","Professor_In_117APoint 1Jan2024",99448.349999999991]
["Professor_In_117A","Point 2","Jan2024","Professor_In_117APoint 2Jan2024",106135.5]
["Professor_In_117A","Point 3","Jan2024","Professor_In_117APoint 3Jan2024",112836.965]
["Professor_In_117A","Point 4","Jan2024","Professor_In_117APoint 4Jan2024",119531.27249999999]
["Professor_In_117A","Point 5","Jan2024","Professor_In_117APoint 5Jan2024",126232.73749999999]
["Professor_In_117A","Point 6","Jan2024","Professor_In_117APoint 6Jan2024",132925]
["Professor_In_117D","Point 1","Jan2024","Professor_In_117DPoint 1Jan2024",94472.864999999991]
["Professor_In_117D","Point 2","Jan2024","Professor_In_117DPoint 2Jan2024",100832.815]
["Professor_In_117D","Point 3","Jan2024","Professor_In_117DPoint 3Jan2024",107199.9225]
["Professor_In_117D","Point 4","Jan2024","Professor_In_117DPoint 4Jan2024",113557.8275]
["Professor_In_117D","Point 5","Jan2024","Professor_In_117DPoint 5Jan2024",119922.89]
["Professor_In_117D","Point 6","Jan2024","Professor_In_117DPoint 6Jan2024",126280.795]
["Professors_116A","Point 1","Jan2024","Professors_116APoint 1Jan2024",137308.45749999999]
["Professors_116A","Point 2","Jan2024","Professors_116APoint 2Jan2024",145137.74]
["Professors_116A","Point 3","Jan2024","Professors_116APoint 3Jan2024",152967.02249999999]
["Professors_116A","Point 4","Jan2024","Professors_116APoint 4Jan2024",160796.30499999999]
["Professors_116A","Point 5","Jan2024","Professors_116APoint 5Jan2024",168626.61]
["Professors_116A","Point 6","Jan2024","Professors_116APoint 6Jan2024",173589.82499999998]
["Professors_116D","Point 1","Jan2024","Professors_116DPoint 1Jan2024",130441.34749999999]
["Professors_116D","Point 2","Jan2024","Professors_116DPoint 2Jan2024",137882.07999999999]
["Professors_116D","Point 3","Jan2024","Professors_116DPoint 3Jan2024",145319.745]
["Professors_116D","Point 4","Jan2024","Professors_116DPoint 4Jan2024",152756.38749999998]
["Professors_116D","Point 5","Jan2024","Professors_116DPoint 5Jan2024",160194.05249999999]
["Professors_116D","Point 6","Jan2024","Professors_116DPoint 6Jan2024",167631.7175]
["Salaried_University_Fellow_83A","Point 1","Jan2024","Salaried_University_Fellow_83APoint 1Jan2024",43058]
["Salaried_University_Fellow_83A","Point 2","Jan2024","Salaried_University_Fellow_83APoint 2Jan2024",44373]
["Salaried_University_Fellow_83A","Point 3","Jan2024","Salaried_University_Fellow_83APoint 3Jan2024",45704]
["Salaried_University_Fellow_83D","Point 1","Jan2024","Salaried_University_Fellow_83DPoint 1Jan2024",41149]
["Salaried_University_Fellow_83D","Point 2","Jan2024","Salaried_University_Fellow_83DPoint 2Jan2024",42399]
["Salaried_University_Fellow_83D","Point 3","Jan2024","Salaried_University_Fellow_83DPoint 3Jan2024",43667]
["Senior_Statutory_Lecturers_21A","Point 1","Jan2024","Senior_Statutory_Lecturers_21APoint 1Jan2024",79798.967499999999]
["Senior_Statutory_Lecturers_21A","Point 2","Jan2024","Senior_Statutory_Lecturers_21APoint 2Jan2024",84549.502500000002]
["Senior_Statutory_Lecturers_21A","Point 3","Jan2024","Senior_Statutory_Lecturers_21APoint 3Jan2024",89321.51]
["Senior_Statutory_Lecturers_21A","Point 4","Jan2024","Senior_Statutory_Lecturers_21APoint 4Jan2024",94081.247499999998]
["Senior_Statutory_Lecturers_21A","Point 5","Jan2024","Senior_Statutory_Lecturers_21APoint 5Jan2024",98824.625]
["Senior_Statutory_Lecturers_21A","Point 6","Jan2024","Senior_Statutory_Lecturers_21APoint 6Jan2024",103607.87999999999]
["Senior_Statutory_Lecturers_21A","Point 7","Jan2024","Senior_Statutory_Lecturers_21APoint 7Jan2024",108364.55]
["Senior_Statutory_Lecturers_21A","Point 8","Jan2024","Senior_Statutory_Lecturers_21APoint 8Jan2024",113084.40999999999]
["Senior_Statutory_Lecturers_21D","Point 1","Jan2024","Senior_Statutory_Lecturers_21DPoint 1Jan2024",77064.802499999991]
["Senior_Statutory_Lecturers_21D","Point 2","Jan2024","Senior_Statutory_Lecturers_21DPoint 2Jan2024",80318.397499999992]
["Senior_Statutory_Lecturers_21D","Point 3","Jan2024","Senior_Statutory_Lecturers_21DPoint 3Jan2024",84856.252500000002]
["Senior_Statutory_Lecturers_21D","Point 4","Jan2024","Senior_Statutory_Lecturers_21DPoint 4Jan2024",89374.68]
["Senior_Statutory_Lecturers_21D","Point 5","Jan2024","Senior_Statutory_Lecturers_21DPoint 5Jan2024",93889.017500000002]
["Senior_Statutory_Lecturers_21D","Point 6","Jan2024","Senior_Statutory_Lecturers_21DPoint 6Jan2024",98435.052499999991]
["Senior_Statutory_Lecturers_21D","Point 7","Jan2024","Senior_Statutory_Lecturers_21DPoint 7Jan2024",102947.345]
["Senior_Statutory_Lecturers_21D","Point 8","Jan2024","Senior_Statutory_Lecturers_21DPoint 8Jan2024",107433.05249999999]
["Technical_Officer_09A","Point 1","Jan2024","Technical_Officer_09APoint 1Jan2024",48639]
["Technical_Officer_09A","Point 2","Jan2024","Technical_Officer_09APoint 2Jan2024",50764]
["Technical_Officer_09A","Point 3","Jan2024","Technical_Officer_09APoint 3Jan2024",53147.504999999997]
["Technical_Officer_09A","Point 4","Jan2024","Technical_Officer_09APoint 4Jan2024",55491.074999999997]
["Technical_Officer_09A","Point 5","Jan2024","Technical_Officer_09APoint 5Jan2024",57949.165000000001]
["Technical_Officer_09D","Point 1","Jan2024","Technical_Officer_09DPoint 1Jan2024",46452]
["Technical_Officer_09D","Point 2","Jan2024","Technical_Officer_09DPoint 2Jan2024",48471]
["Technical_Officer_09D","Point 3","Jan2024","Technical_Officer_09DPoint 3Jan2024",50674]
["Technical_Officer_09D","Point 4","Jan2024","Technical_Officer_09DPoint 4Jan2024",52854.047500000001]
["Technical_Officer_09D","Point 5","Jan2024","Technical_Officer_09DPoint 5Jan2024",55164.897499999999]
["Post_Doc_Res_Res_Ass_Iua_2013_66A_13","Point 1","Jan2024",{"$f":"A258&B258&C258","v":"Post_Doc_Res_Res_Ass_Iua_2013_66A_13Point 1Jan2024"},46448]
["Post_Doc_Res_Res_Ass_Iua_2013_66A_13","Point 2","Jan2024",{"$f":"A259&B259&C259","v":"Post_Doc_Res_Res_Ass_Iua_2013_66A_13Point 2Jan2024"},47695]
["Post_Doc_Res_Res_Ass_Iua_2013_66A_13","Point 3","Jan2024","Post_Doc_Res_Res_Ass_Iua_2013_66A_13Point 3Jan2024",48980]
["Post_Doc_Res_Res_Ass_Iua_2013_66A_13","Point 4","Jan2024","Post_Doc_Res_Res_Ass_Iua_2013_66A_13Point 4Jan2024",50304]
["Post_Doc_Res_Res_Ass_Iua_2013_66A_13","Point 5","Jan2024","Post_Doc_Res_Res_Ass_Iua_2013_66A_13Point 5Jan2024",51677.15]
["Post_Doc_Res_Res_Ass_Iua_2013_66A_13","Point 6","Jan2024","Post_Doc_Res_Res_Ass_Iua_2013_66A_13Point 6Jan2024",53130.122499999998]
["Post_Doc_Res_Res_Ass_Iua_2013_66A_13","Point 7","Jan2024","Post_Doc_Res_Res_Ass_Iua_2013_66A_13Point 7Jan2024",54641.377499999995]
["Post_Doc_Res_Res_Ass_Iua_2013_66A_13","Point 8","Jan2024","Post_Doc_Res_Res_Ass_Iua_2013_66A_13Point 8Jan2024",56203.7575]
["Post_Doc_Researcher_Research_Associate_66A","Point 1","Jan2024","Post_Doc_Researcher_Research_Associate_66APoint 1Jan2024",47050]
["Post_Doc_Researcher_Research_Associate_66A","Point 2","Jan2024","Post_Doc_Researcher_Research_Associate_66APoint 2Jan2024",49071]
["Post_Doc_Researcher_Research_Associate_66A","Point 3","Jan2024","Post_Doc_Researcher_Research_Associate_66APoint 3Jan2024",51130.112499999996]
["Post_Doc_Researcher_Research_Associate_66A","Point 4","Jan2024","Post_Doc_Researcher_Research_Associate_66APoint 4Jan2024",52839.732499999998]
["Post_Doc_Researcher_Research_Associate_66A","Point 5","Jan2024","Post_Doc_Researcher_Research_Associate_66APoint 5Jan2024",54573.892499999994]
["Post_Doc_Researcher_Research_Associate_66A","Point 6","Jan2024","Post_Doc_Researcher_Research_Associate_66APoint 6Jan2024",56365.3125]
["Post_Doc_Researcher_Research_Associate_66A","Point 7","Jan2024","Post_Doc_Researcher_Research_Associate_66APoint 7Jan2024",58198.654999999999]
["Post_Doc_Researcher_Research_Associate_66A","Point 8","Jan2024","Post_Doc_Researcher_Research_Associate_66APoint 8Jan2024",60025.862499999996]
["Post_Doc_Researcher_Research_Associate_66A","Point 9","Jan2024","Post_Doc_Researcher_Research_Associate_66APoint 9Jan2024",61857.159999999996]
["Post_Doc_Researcher_Research_Associate_66A","Point 10","Jan2024","Post_Doc_Researcher_Research_Associate_66APoint 10Jan2024",63703.794999999998]
["Post_Doc_Researcher_Research_Associate_66A","Point 11","Jan2024","Post_Doc_Researcher_Research_Associate_66APoint 11Jan2024",65391.942499999997]
["Post_Doc_Researcher_Research_Associate_66D","Point 1","Jan2024","Post_Doc_Researcher_Research_Associate_66DPoint 1Jan2024",44900]
["Post_Doc_Researcher_Research_Associate_66D","Point 2","Jan2024","Post_Doc_Researcher_Research_Associate_66DPoint 2Jan2024",46821]
["Post_Doc_Researcher_Research_Associate_66D","Point 3","Jan2024","Post_Doc_Researcher_Research_Associate_66DPoint 3Jan2024",48776]
["Post_Doc_Researcher_Research_Associate_66D","Point 4","Jan2024","Post_Doc_Researcher_Research_Associate_66DPoint 4Jan2024",50352]
["Post_Doc_Researcher_Research_Associate_66D","Point 5","Jan2024","Post_Doc_Researcher_Research_Associate_66DPoint 5Jan2024",51947.09]
["Post_Doc_Researcher_Research_Associate_66D","Point 6","Jan2024","Post_Doc_Researcher_Research_Associate_66DPoint 6Jan2024",53631.147499999999]
["Post_Doc_Researcher_Research_Associate_66D","Point 7","Jan2024","Post_Doc_Researcher_Research_Associate_66DPoint 7Jan2024",55357.127499999995]
["Post_Doc_Researcher_Research_Associate_66D","Point 8","Jan2024","Post_Doc_Researcher_Research_Associate_66DPoint 8Jan2024",57082.084999999999]
["Post_Doc_Researcher_Research_Associate_66D","Point 9","Jan2024","Post_Doc_Researcher_Research_Associate_66DPoint 9Jan2024",58823.402499999997]
["Post_Doc_Researcher_Research_Associate_66D","Point 10","Jan2024","Post_Doc_Researcher_Research_Associate_66DPoint 10Jan2024",60576.99]
["Post_Doc_Researcher_Research_Associate_66D","Point 11","Jan2024","Post_Doc_Researcher_Research_Associate_66DPoint 11Jan2024",62183.337500000001]
["Research_Assistant_65A","Point 1","Jan2024","Research_Assistant_65APoint 1Jan2024",29612]
["Research_Assistant_65A","Point 2","Jan2024","Research_Assistant_65APoint 2Jan2024",30607]
["Research_Assistant_65A","Point 3","Jan2024","Research_Assistant_65APoint 3Jan2024",31625]
["Research_Assistant_65A","Point 4","Jan2024","Research_Assistant_65APoint 4Jan2024",32258]
["Research_Assistant_65A","Point 5","Jan2024","Research_Assistant_65APoint 5Jan2024",33339]
["Research_Assistant_65A","Point 6","Jan2024","Research_Assistant_65APoint 6Jan2024",34250]
["Research_Assistant_65A","Point 7","Jan2024","Research_Assistant_65APoint 7Jan2024",35219]
["Research_Assistant_65A","Point 8","Jan2024","Research_Assistant_65APoint 8Jan2024",36141]
["Research_Assistant_65A","Point 9","Jan2024","Research_Assistant_65APoint 9Jan2024",36219]
["Research_Assistant_65A","Point 10","Jan2024","Research_Assistant_65APoint 10Jan2024",37045]
["Research_Assistant_65A","Point 11","Jan2024","Research_Assistant_65APoint 11Jan2024",37990]
["Research_Assistant_65A","Point 12","Jan2024","Research_Assistant_65APoint 12Jan2024",39129]
["Research_Assistant_65A","Point 13","Jan2024","Research_Assistant_65APoint 13Jan2024",40183]
["Research_Assistant_65A","Point 14","Jan2024","Research_Assistant_65APoint 14Jan2024",41893]
["Research_Assistant_65A","Point 15","Jan2024","Research_Assistant_65APoint 15Jan2024",43598]
["Research_Assistant_65A_20","Point 1","Jan2024","Research_Assistant_65A_20Point 1Jan2024",31150]
["Research_Assistant_65A_20","Point 2","Jan2024","Research_Assistant_65A_20Point 2Jan2024",31963]
["Research_Assistant_65A_20","Point 3","Jan2024","Research_Assistant_65A_20Point 3Jan2024",32380]
["Research_Assistant_65A_20","Point 4","Jan2024","Research_Assistant_65A_20Point 4Jan2024",33231]
["Research_Assistant_65A_20","Point 5","Jan2024","Research_Assistant_65A_20Point 5Jan2024",34105]
["Research_Assistant_65A_20","Point 6","Jan2024","Research_Assistant_65A_20Point 6Jan2024",35005]
["Research_Assistant_65A_20","Point 7","Jan2024","Research_Assistant_65A_20Point 7Jan2024",35937]
["Research_Assistant_65A_20","Point 8","Jan2024","Research_Assistant_65A_20Point 8Jan2024",36554]
["Research_Assistant_65A_20","Point 9","Jan2024","Research_Assistant_65A_20Point 9Jan2024",37504]
["Research_Assistant_65A_20","Point 10","Jan2024","Research_Assistant_65A_20Point 10Jan2024",38306]
["Research_Assistant_65A_20","Point 11","Jan2024","Research_Assistant_65A_20Point 11Jan2024",38958]
["Research_Assistant_65A_20","Point 12","Jan2024","Research_Assistant_65A_20Point 12Jan2024",39980]
["Research_Assistant_65A_20","Point 13","Jan2024","Research_Assistant_65A_20Point 13Jan2024",41033]
["Research_Assistant_Iua_2013_65A_13","Point 1","Jan2024","Research_Assistant_Iua_2013_65A_13Point 1Jan2024",28842]
["Research_Assistant_Iua_2013_65A_13","Point 2","Jan2024","Research_Assistant_Iua_2013_65A_13Point 2Jan2024",29587]
["Research_Assistant_Iua_2013_65A_13","Point 3","Jan2024","Research_Assistant_Iua_2013_65A_13Point 3Jan2024",30354]
["Research_Assistant_Iua_2013_65A_13","Point 4","Jan2024","Research_Assistant_Iua_2013_65A_13Point 4Jan2024",31143]
["Research_Assistant_Iua_2013_65A_13","Point 5","Jan2024","Research_Assistant_Iua_2013_65A_13Point 5Jan2024",31954]
["Research_Assistant_Iua_2013_65A_13","Point 6","Jan2024","Research_Assistant_Iua_2013_65A_13Point 6Jan2024",32791]
["Research_Assistant_Iua_2013_65A_13","Point 7","Jan2024","Research_Assistant_Iua_2013_65A_13Point 7Jan2024",33653]
["Research_Assistant_Iua_2013_65A_13","Point 8","Jan2024",{"$f":"A323&B323&C323","v":"Research_Assistant_Iua_2013_65A_13Point 8Jan2024"},34542]
["Research_Assistant_Iua_2013_65A_13","Point 9","Jan2024","Research_Assistant_Iua_2013_65A_13Point 9Jan2024",35456]
["Research_Assistant_Iua_2013_65A_13","Point 10","Jan2024","Research_Assistant_Iua_2013_65A_13Point 10Jan2024",36067]
["Research_Assistant_Iua_2013_65A_13","Point 11","Jan2024","Research_Assistant_Iua_2013_65A_13Point 11Jan2024",37003]
["Research_Assistant_Iua_2013_65A_13","Point 12","Jan2024","Research_Assistant_Iua_2013_65A_13Point 12Jan2024",37967]
["Research_Assistant_Iua_2013_65A_13","Point 13","Jan2024","Research_Assistant_Iua_2013_65A_13Point 13Jan2024",38959]
["Research_Assistant_Iua_2013_65A_13","Point 14","Jan2024","Research_Assistant_Iua_2013_65A_13Point 14Jan2024",39981]
["Research_Assistant_Iua_2013_65A_13","Point 15","Jan2024","Research_Assistant_Iua_2013_65A_13Point 15Jan2024",41033]
["Research_Fellow_67A","Point 1","Jan2024","Research_Fellow_67APoint 1Jan2024",71349.027499999997]
["Research_Fellow_67A","Point 2","Jan2024","Research_Fellow_67APoint 2Jan2024",76955.395000000004]
["Research_Fellow_67A","Point 3","Jan2024","Research_Fellow_67APoint 3Jan2024",81362.37]
["Research_Fellow_67A","Point 4","Jan2024","Research_Fellow_67APoint 4Jan2024",87027.02]
["Research_Fellow_67A","Point 5","Jan2024","Research_Fellow_67APoint 5Jan2024",92674.287499999991]
["Research_Fellow_Iua_2013_67A_13","Point 1","Jan2024","Research_Fellow_Iua_2013_67A_13Point 1Jan2024",62697.654999999999]
["Research_Fellow_Iua_2013_67A_13","Point 2","Jan2024","Research_Fellow_Iua_2013_67A_13Point 2Jan2024",64514.637499999997]
["Research_Fellow_Iua_2013_67A_13","Point 3","Jan2024","Research_Fellow_Iua_2013_67A_13Point 3Jan2024",66388.88]
["Research_Fellow_Iua_2013_67A_13","Point 4","Jan2024","Research_Fellow_Iua_2013_67A_13Point 4Jan2024",68317.315000000002]
["Senior_Research_Fellow_68A","Point 1","Jan2024","Senior_Research_Fellow_68APoint 1Jan2024",89374.68]
["Senior_Research_Fellow_68A","Point 2","Jan2024","Senior_Research_Fellow_68APoint 2Jan2024",93889.017500000002]
["Senior_Research_Fellow_68A","Point 3","Jan2024","Senior_Research_Fellow_68APoint 3Jan2024",98435.052499999991]
["Senior_Research_Fellow_68A","Point 4","Jan2024","Senior_Research_Fellow_68APoint 4Jan2024",102947.345]
["Senior_Research_Fellow_68A","Point 5","Jan2024","Senior_Research_Fellow_68APoint 5Jan2024",107433.05249999999]
["Fixed_Amount","Point 1","Jan2024","Fixed_AmountPoint 1Jan2024",0]
["Research_Assistant","Point 1","June2024","Research_AssistantPoint 1June2024",31461.801942166661]
["Research_Assistant","Point 2","June2024","Research_AssistantPoint 2June2024",32282.22236910657]
["Research_Assistant","Point 3","June2024","Research_AssistantPoint 3June2024",32702.621275456098]
["Research_Assistant","Point 4","June2024","Research_AssistantPoint 4June2024",33562.22670353057]
["Research_Assistant","Point 5","June2024","Research_AssistantPoint 5June2024",34445.281149781651]
["Research_Assistant","Point 6","June2024","Research_AssistantPoint 6June2024",35355.953159838013]
["Research_Assistant","Point 7","June2024","Research_AssistantPoint 7June2024",36296.036878678322]
["Research_Assistant","Point 8","June2024","Research_AssistantPoint 8June2024",36919.255026242892]
["Research_Assistant","Point 9","June2024","Research_AssistantPoint 9June2024",37878.510423577594]
["Research_Assistant","Point 10","June2024","Research_AssistantPoint 10June2024",38688.087718370291]
["Research_Assistant","Point 11","June2024","Research_AssistantPoint 11June2024",39347.31263451666]
["Research_Assistant","Point 12","June2024","Research_AssistantPoint 12June2024",40379.833587517001]
["Research_Assistant","Point 13","June2024","Research_AssistantPoint 13June2024",41442.989777584415]
["Post_Doctoral_Researcher_PD1","PD1 Point 1","June2024","Post_Doctoral_Researcher_PD1PD1 Point 1June2024",44346.91535789398]
["Post_Doctoral_Researcher_PD1","PD1 Point 2","June2024","Post_Doctoral_Researcher_PD1PD1 Point 2June2024",44940.739603753835]
["Post_Doctoral_Researcher_PD1","PD1 Point 3","June2024","Post_Doctoral_Researcher_PD1PD1 Point 3June2024",46911.946913256579]
["Post_Doctoral_Researcher_PD1","PD1 Point 4","June2024","Post_Doctoral_Researcher_PD1PD1 Point 4June2024",48171.395548235014]
["Post_Doctoral_Researcher_PD1","PD1 Point 5","June2024","Post_Doctoral_Researcher_PD1PD1 Point 5June2024",49468.28725073985]
["Post_Doctoral_Researcher_PD1","PD1 Point 6","June2024","Post_Doctoral_Researcher_PD1PD1 Point 6June2024",50804.891297590861]
["Post_Doctoral_Researcher_PD2","PD2 Point 1","June2024","Post_Doctoral_Researcher_PD2PD2 Point 1June2024",52193.469236785742]
["Post_Doctoral_Researcher_PD2","PD2 Point 2","June2024","Post_Doctoral_Researcher_PD2PD2 Point 2June2024",53661.121642628132]
["Post_Doctoral_Researcher_PD2","PD2 Point 3","June2024","Post_Doctoral_Researcher_PD2PD2 Point 3June2024",55188.356905416586]
["Post_Doctoral_Researcher_PD2","PD2 Point 4","June2024","Post_Doctoral_Researcher_PD2PD2 Point 4June2024",56764.240346978942]
["Research_Fellow","Point 1","June2024","Research_FellowPoint 1June2024",63324.539034306013]
["Research_Fellow","Point 2","June2024","Research_FellowPoint 2June2024",65161.234158811909]
["Research_Fellow","Point 3","June2024","Research_FellowPoint 3June2024",67053.186298181987]
["Research_Fellow","Point 4","June2024","Research_FellowPoint 4June2024",69001.596691869738]
["Senior_Research_Fellow","Point 1","June2024","Senior_Research_FellowPoint 1June2024",77029.47996006663]
["Senior_Research_Fellow","Point 2","June2024","Senior_Research_FellowPoint 2June2024",79276.998977692929]
["Senior_Research_Fellow","Point 3","June2024","Senior_Research_FellowPoint 3June2024",80344.900851915096]
["Senior_Research_Fellow","Point 4","June2024","Senior_Research_FellowPoint 4June2024",82665.695476209046]
["Admin_Officer_01D","Point 1","June2024","Admin_Officer_01DPoint 1June2024",78316.700374999986]
["Admin_Officer_01D","Point 2","June2024","Admin_Officer_01DPoint 2June2024",82367.047825000001]
["Admin_Officer_01D","Point 3","June2024","Admin_Officer_01DPoint 3June2024",87666.992525000009]
["Admin_Officer_01D","Point 4","June2024","Admin_Officer_01DPoint 4June2024",92965.904500000004]
["Admin_Officer_01D","Point 5","June2024","Admin_Officer_01DPoint 5June2024",98288.569149999996]
["Admin_Officer_Current_Serving_Employee_01A","Point 1","June2024","Admin_Officer_Current_Serving_Employee_01APoint 1June2024",81106.090599999996]
["Admin_Officer_Current_Serving_Employee_01A","Point 2","June2024","Admin_Officer_Current_Serving_Employee_01APoint 2June2024",86699.329199999993]
["Admin_Officer_Current_Serving_Employee_01A","Point 3","June2024","Admin_Officer_Current_Serving_Employee_01APoint 3June2024",92284.305999999997]
["Admin_Officer_Current_Serving_Employee_01A","Point 4","June2024","Admin_Officer_Current_Serving_Employee_01APoint 4June2024",97861.020999999993]
["Admin_Officer_Current_Serving_Employee_01A","Point 5","June2024","Admin_Officer_Current_Serving_Employee_01APoint 5June2024",103460.45595]
["Chief_Technical_Officer_17A","Point 1","June2024","Chief_Technical_Officer_17APoint 1June2024",65622.444675000006]
["Chief_Technical_Officer_17A","Point 2","June2024","Chief_Technical_Officer_17APoint 2June2024",68348.838674999992]
["Chief_Technical_Officer_17A","Point 3","June2024","Chief_Technical_Officer_17APoint 3June2024",70975.058349999992]
["Chief_Technical_Officer_17A","Point 4","June2024","Chief_Technical_Officer_17APoint 4June2024",73685.961474999989]
["Chief_Technical_Officer_17A","Point 5","June2024","Chief_Technical_Officer_17APoint 5June2024",76452.63175]
["Chief_Technical_Officer_17D","Point 1","June2024","Chief_Technical_Officer_17DPoint 1June2024",62448.880749999997]
["Chief_Technical_Officer_17D","Point 2","June2024","Chief_Technical_Officer_17DPoint 2June2024",65034.82415]
["Chief_Technical_Officer_17D","Point 3","June2024","Chief_Technical_Officer_17DPoint 3June2024",67523.691399999996]
["Chief_Technical_Officer_17D","Point 4","June2024","Chief_Technical_Officer_17DPoint 4June2024",70107.569350000005]
["Chief_Technical_Officer_17D","Point 5","June2024","Chief_Technical_Officer_17DPoint 5June2024",72733.789024999991]
["Clinical_Research_Support_Officer_166A","Point 1","June2024","Clinical_Research_Support_Officer_166APoint 1June2024",44346.07]
["Clinical_Research_Support_Officer_166A","Point 2","June2024","Clinical_Research_Support_Officer_166APoint 2June2024",44940.959999999999]
["Clinical_Research_Support_Officer_166A","Point 3","June2024","Clinical_Research_Support_Officer_166APoint 3June2024",46912.480000000003]
["Clinical_Research_Support_Officer_166A","Point 4","June2024","Clinical_Research_Support_Officer_166APoint 4June2024",48171.95]
["Grade_2_1761.75_Hrs._06A","Point 1","June2024","Grade_2_1761.75_Hrs._06APoint 1June2024",34523.82]
["Grade_2_1761.75_Hrs._06A","Point 2","June2024","Grade_2_1761.75_Hrs._06APoint 2June2024",35769.15]
["Grade_2_1761.75_Hrs._06A","Point 3","June2024","Grade_2_1761.75_Hrs._06APoint 3June2024",37034.68]
["Grade_2_1761.75_Hrs._06A","Point 4","June2024","Grade_2_1761.75_Hrs._06APoint 4June2024",37910.35]
["Grade_2_1761.75_Hrs._06A","Point 5","June2024","Grade_2_1761.75_Hrs._06APoint 5June2024",38947.620000000003]
["Grade_2_1761.75_Hrs._06A","Point 6","June2024","Grade_2_1761.75_Hrs._06APoint 6June2024",39768.75]
["Grade_2_1761.75_Hrs._06A","Point 7","June2024","Grade_2_1761.75_Hrs._06APoint 7June2024",40972.67]
["Grade_2_1761.75_Hrs._06A","Point 8","June2024","Grade_2_1761.75_Hrs._06APoint 8June2024",42658.36]
["Grade_2_1761.75_Hrs._06A","Point 9","June2024","Grade_2_1761.75_Hrs._06APoint 9June2024",44440]
["Grade_2_1761.75_Hrs._06A","Point 10","June2024","Grade_2_1761.75_Hrs._06APoint 10June2024",46208.51]
["Grade_2_1761.75_Hrs._06A","Point 11","June2024","Grade_2_1761.75_Hrs._06APoint 11June2024",47988.13]
["Grade_2_1761.75_Hrs._06A","Point 12","June2024","Grade_2_1761.75_Hrs._06APoint 12June2024",49773.81]
["Grade_2_1761.75_Hrs._06D","Point 1","June2024","Grade_2_1761.75_Hrs._06DPoint 1June2024",33000.74]
["Grade_2_1761.75_Hrs._06D","Point 2","June2024","Grade_2_1761.75_Hrs._06DPoint 2June2024",34189.51]
["Grade_2_1761.75_Hrs._06D","Point 3","June2024","Grade_2_1761.75_Hrs._06DPoint 3June2024",35386.36]
["Grade_2_1761.75_Hrs._06D","Point 4","June2024","Grade_2_1761.75_Hrs._06DPoint 4June2024",36581.19]
["Grade_2_1761.75_Hrs._06D","Point 5","June2024","Grade_2_1761.75_Hrs._06DPoint 5June2024",37415.449999999997]
["Grade_2_1761.75_Hrs._06D","Point 6","June2024","Grade_2_1761.75_Hrs._06DPoint 6June2024",38369.9]
["Grade_2_1761.75_Hrs._06D","Point 7","June2024","Grade_2_1761.75_Hrs._06DPoint 7June2024",39520.29]
["Grade_2_1761.75_Hrs._06D","Point 8","June2024","Grade_2_1761.75_Hrs._06DPoint 8June2024",40762.590000000004]
["Grade_2_1761.75_Hrs._06D","Point 9","June2024","Grade_2_1761.75_Hrs._06DPoint 9June2024",42469.49]
["Grade_2_1761.75_Hrs._06D","Point 10","June2024","Grade_2_1761.75_Hrs._06DPoint 10June2024",44139.02]
["Grade_2_1761.75_Hrs._06D","Point 11","June2024","Grade_2_1761.75_Hrs._06DPoint 11June2024",45834.81]
["Grade_2_1761.75_Hrs._06D","Point 12","June2024","Grade_2_1761.75_Hrs._06DPoint 12June2024",47528.58]
["Grade_3_1761.75_Hrs._11A","Point 1","June2024","Grade_3_1761.75_Hrs._11APoint 1June2024",40850.46]
["Grade_3_1761.75_Hrs._11A","Point 2","June2024","Grade_3_1761.75_Hrs._11APoint 2June2024",42658.36]
["Grade_3_1761.75_Hrs._11A","Point 3","June2024","Grade_3_1761.75_Hrs._11APoint 3June2024",44440]
["Grade_3_1761.75_Hrs._11A","Point 4","June2024","Grade_3_1761.75_Hrs._11APoint 4June2024",46208.51]
["Grade_3_1761.75_Hrs._11A","Point 5","June2024","Grade_3_1761.75_Hrs._11APoint 5June2024",47988.13]
["Grade_3_1761.75_Hrs._11A","Point 6","June2024","Grade_3_1761.75_Hrs._11APoint 6June2024",49773.81]
["Grade_3_1761.75_Hrs._11A","Point 7","June2024","Grade_3_1761.75_Hrs._11APoint 7June2024",51544.340000000004]
["Grade_3_1761.75_Hrs._11A","Point 8","June2024","Grade_3_1761.75_Hrs._11APoint 8June2024",53354.704399999995]
["Grade_3_1761.75_Hrs._11A","Point 9","June2024","Grade_3_1761.75_Hrs._11APoint 9June2024",53797.743425000001]
["Grade_3_1761.75_Hrs._11A","Point 10","June2024","Grade_3_1761.75_Hrs._11APoint 10June2024",55697.957425000001]
["Grade_3_1761.75_Hrs._11A","Point 11","June2024","Grade_3_1761.75_Hrs._11APoint 11June2024",57089.037999999993]
["Grade_3_1761.75_Hrs._11D","Point 1","June2024","Grade_3_1761.75_Hrs._11DPoint 1June2024",39405.15]
["Grade_3_1761.75_Hrs._11D","Point 2","June2024","Grade_3_1761.75_Hrs._11DPoint 2June2024",40762.590000000004]
["Grade_3_1761.75_Hrs._11D","Point 3","June2024","Grade_3_1761.75_Hrs._11DPoint 3June2024",42469.49]
["Grade_3_1761.75_Hrs._11D","Point 4","June2024","Grade_3_1761.75_Hrs._11DPoint 4June2024",44139.02]
["Grade_3_1761.75_Hrs._11D","Point 5","June2024","Grade_3_1761.75_Hrs._11DPoint 5June2024",45834.81]
["Grade_3_1761.75_Hrs._11D","Point 6","June2024","Grade_3_1761.75_Hrs._11DPoint 6June2024",47528.58]
["Grade_3_1761.75_Hrs._11D","Point 7","June2024","Grade_3_1761.75_Hrs._11DPoint 7June2024",49214.27]
["Grade_3_1761.75_Hrs._11D","Point 8","June2024","Grade_3_1761.75_Hrs._11DPoint 8June2024",50889.86]
["Grade_3_1761.75_Hrs._11D","Point 9","June2024","Grade_3_1761.75_Hrs._11DPoint 9June2024",51286.79]
["Grade_3_1761.75_Hrs._11D","Point 10","June2024","Grade_3_1761.75_Hrs._11DPoint 10June2024",53050.050524999999]
["Grade_3_1761.75_Hrs._11D","Point 11","June2024","Grade_3_1761.75_Hrs._11DPoint 11June2024",54363.676724999998]
["Grade_4_02A","Point 1","June2024","Grade_4_02APoint 1June2024",51939.871149999999]
["Grade_4_02A","Point 2","June2024","Grade_4_02APoint 2June2024",53797.743425000001]
["Grade_4_02A","Point 3","June2024","Grade_4_02APoint 3June2024",55697.957425000001]
["Grade_4_02A","Point 4","June2024","Grade_4_02APoint 4June2024",57089.037999999993]
["Grade_4_02A","Point 5","June2024","Grade_4_02APoint 5June2024",58521.427575000002]
["Grade_4_02A","Point 6","June2024","Grade_4_02APoint 6June2024",60029.206075000002]
["Grade_4_02A","Point 7","June2024","Grade_4_02APoint 7June2024",61496.708299999998]
["Grade_4_02A","Point 8","June2024","Grade_4_02APoint 8June2024",65043.085950000001]
["Grade_4_02A","Point 9","June2024","Grade_4_02APoint 9June2024",67083.750549999997]
["Grade_4_02D","Point 1","June2024","Grade_4_02DPoint 1June2024",49584.94]
["Grade_4_02D","Point 2","June2024","Grade_4_02DPoint 2June2024",51286.79]
["Grade_4_02D","Point 3","June2024","Grade_4_02DPoint 3June2024",53050.050524999999]
["Grade_4_02D","Point 4","June2024","Grade_4_02DPoint 4June2024",54363.676724999998]
["Grade_4_02D","Point 5","June2024","Grade_4_02DPoint 5June2024",55710.350124999997]
["Grade_4_02D","Point 6","June2024","Grade_4_02DPoint 6June2024",57131.379724999999]
["Grade_4_02D","Point 7","June2024","Grade_4_02DPoint 7June2024",58532.787550000001]
["Grade_4_02D","Point 8","June2024","Grade_4_02DPoint 8June2024",61890.176524999995]
["Grade_4_02D","Point 9","June2024","Grade_4_02DPoint 9June2024",63831.699524999996]
["Grade_5_25A","Point 1","June2024","Grade_5_25APoint 1June2024",59826.791974999993]
["Grade_5_25A","Point 2","June2024","Grade_5_25APoint 2June2024",62378.655449999998]
["Grade_5_25A","Point 3","June2024","Grade_5_25APoint 3June2024",65043.085950000001]
["Grade_5_25A","Point 4","June2024","Grade_5_25APoint 4June2024",67083.750549999997]
["Grade_5_25A","Point 5","June2024","Grade_5_25APoint 5June2024",69193.607724999994]
["Grade_5_25A","Point 6","June2024","Grade_5_25APoint 6June2024",71273.515874999997]
["Grade_5_25A","Point 7","June2024","Grade_5_25APoint 7June2024",81106.090599999996]
["Grade_5_25D","Point 1","June2024","Grade_5_25DPoint 1June2024",56934.129249999998]
["Grade_5_25D","Point 2","June2024","Grade_5_25DPoint 2June2024",59365.1639]
["Grade_5_25D","Point 3","June2024","Grade_5_25DPoint 3June2024",61890.176524999995]
["Grade_5_25D","Point 4","June2024","Grade_5_25DPoint 4June2024",63831.699524999996]
["Grade_5_25D","Point 5","June2024","Grade_5_25DPoint 5June2024",65842.415099999998]
["Grade_5_25D","Point 6","June2024","Grade_5_25DPoint 6June2024",67814.919850000006]
["Grade_5_25D","Point 7","June2024","Grade_5_25DPoint 7June2024",78316.700374999986]
["Junior_Lecturer_Old_Scale_62D","Point 1","June2024","Junior_Lecturer_Old_Scale_62DPoint 1June2024",48953.69]
["Lecturer_128A","Point 1","June2024","Lecturer_128APoint 1June2024",61757.987724999999]
["Lecturer_128A","Point 2","June2024","Lecturer_128APoint 2June2024",63699.510724999993]
["Lecturer_128A","Point 3","June2024","Lecturer_128APoint 3June2024",65644.131899999993]
["Lecturer_128A","Point 4","June2024","Lecturer_128APoint 4June2024",67620.767550000004]
["Lecturer_128A","Point 5","June2024","Lecturer_128APoint 5June2024",69411.512700000007]
["Lecturer_128A","Point 6","June2024","Lecturer_128APoint 6June2024",75750.378750000003]
["Lecturer_128A","Point 7","June2024","Lecturer_128APoint 7June2024",80484.390150000007]
["Lecturer_128A","Point 8","June2024","Lecturer_128APoint 8June2024",86505.176900000006]
["Lecturer_128A","Point 9","June2024","Lecturer_128APoint 9June2024",92530.094550000009]
["Lecturer_128A","Point 10","June2024","Lecturer_128APoint 10June2024",98522.997724999994]
["Lecturer_Above_Bar_College_36A","Point 1","June2024","Lecturer_Above_Bar_College_36APoint 1June2024",75750.378750000003]
["Lecturer_Above_Bar_College_36A","Point 2","June2024","Lecturer_Above_Bar_College_36APoint 2June2024",80484.390150000007]
["Lecturer_Above_Bar_College_36A","Point 3","June2024","Lecturer_Above_Bar_College_36APoint 3June2024",86505.176900000006]
["Lecturer_Above_Bar_College_36A","Point 4","June2024","Lecturer_Above_Bar_College_36APoint 4June2024",92530.094550000009]
["Lecturer_Above_Bar_College_36A","Point 5","June2024","Lecturer_Above_Bar_College_36APoint 5June2024",98522.997724999994]
["Lecturer_Above_Bar_College_36D","Point 1","June2024","Lecturer_Above_Bar_College_36DPoint 1June2024",72062.517775]
["Lecturer_Above_Bar_College_36D","Point 2","June2024","Lecturer_Above_Bar_College_36DPoint 2June2024",77724.948950000005]
["Lecturer_Above_Bar_College_36D","Point 3","June2024","Lecturer_Above_Bar_College_36DPoint 3June2024",82175.993699999992]
["Lecturer_Above_Bar_College_36D","Point 4","June2024","Lecturer_Above_Bar_College_36DPoint 4June2024",87897.290200000003]
["Lecturer_Above_Bar_College_36D","Point 5","June2024","Lecturer_Above_Bar_College_36DPoint 5June2024",93601.030374999988]
["Lecturer_Below_Bar_Junior_33A","Point 1","June2024","Lecturer_Below_Bar_Junior_33APoint 1June2024",49756.639999999999]
["Lecturer_Below_Bar_Junior_33A","Point 2","June2024","Lecturer_Below_Bar_Junior_33APoint 2June2024",51910.954850000002]
["Lecturer_Below_Bar_Junior_33A","Point 3","June2024","Lecturer_Below_Bar_Junior_33APoint 3June2024",54187.080750000001]
["Lecturer_Below_Bar_Junior_33A","Point 4","June2024","Lecturer_Below_Bar_Junior_33APoint 4June2024",56036.691224999995]
["Lecturer_Below_Bar_Junior_33A","Point 5","June2024","Lecturer_Below_Bar_Junior_33APoint 5June2024",57889.399874999996]
["Lecturer_Below_Bar_Junior_33A","Point 6","June2024","Lecturer_Below_Bar_Junior_33APoint 6June2024",59812.333825000002]
["Lecturer_Below_Bar_Junior_33A","Point 7","June2024","Lecturer_Below_Bar_Junior_33APoint 7June2024",61757.987724999999]
["Lecturer_Below_Bar_Junior_33A","Point 8","June2024","Lecturer_Below_Bar_Junior_33APoint 8June2024",63699.510724999993]
["Lecturer_Below_Bar_Junior_33A","Point 9","June2024","Lecturer_Below_Bar_Junior_33APoint 9June2024",65644.131899999993]
["Lecturer_Below_Bar_Junior_33A","Point 10","June2024","Lecturer_Below_Bar_Junior_33APoint 10June2024",67620.767550000004]
["Lecturer_Below_Bar_Junior_33A","Point 11","June2024","Lecturer_Below_Bar_Junior_33APoint 11June2024",69411.512700000007]
["Lecturer_Below_Bar_Junior_33D","Point 1","June2024","Lecturer_Below_Bar_Junior_33DPoint 1June2024",47520.5]
["Lecturer_Below_Bar_Junior_33D","Point 2","June2024","Lecturer_Below_Bar_Junior_33DPoint 2June2024",49561.71]
["Lecturer_Below_Bar_Junior_33D","Point 3","June2024","Lecturer_Below_Bar_Junior_33DPoint 3June2024",51641.413624999994]
["Lecturer_Below_Bar_Junior_33D","Point 4","June2024","Lecturer_Below_Bar_Junior_33DPoint 4June2024",53368.129824999996]
["Lecturer_Below_Bar_Junior_33D","Point 5","June2024","Lecturer_Below_Bar_Junior_33DPoint 5June2024",55119.631424999992]
["Lecturer_Below_Bar_Junior_33D","Point 6","June2024","Lecturer_Below_Bar_Junior_33DPoint 6June2024",56928.965624999997]
["Lecturer_Below_Bar_Junior_33D","Point 7","June2024","Lecturer_Below_Bar_Junior_33DPoint 7June2024",58780.64155]
["Lecturer_Below_Bar_Junior_33D","Point 8","June2024","Lecturer_Below_Bar_Junior_33DPoint 8June2024",60626.121124999998]
["Lecturer_Below_Bar_Junior_33D","Point 9","June2024","Lecturer_Below_Bar_Junior_33DPoint 9June2024",62475.731599999999]
["Lecturer_Below_Bar_Junior_33D","Point 10","June2024","Lecturer_Below_Bar_Junior_33DPoint 10June2024",64340.832949999996]
["Lecturer_Below_Bar_Junior_33D","Point 11","June2024","Lecturer_Below_Bar_Junior_33DPoint 11June2024",66045.861925000005]
["Lecturer_Fixed_Term_19A","Point 1","June2024","Lecturer_Fixed_Term_19APoint 1June2024",49756.639999999999]
["Lecturer_Fixed_Term_19A","Point 2","June2024","Lecturer_Fixed_Term_19APoint 2June2024",51910.954850000002]
["Lecturer_Fixed_Term_19A","Point 3","June2024","Lecturer_Fixed_Term_19APoint 3June2024",54187.080750000001]
["Lecturer_Fixed_Term_19A","Point 4","June2024","Lecturer_Fixed_Term_19APoint 4June2024",56036.691224999995]
["Lecturer_Fixed_Term_19A","Point 5","June2024","Lecturer_Fixed_Term_19APoint 5June2024",57889.399874999996]
["Lecturer_Fixed_Term_19A","Point 6","June2024","Lecturer_Fixed_Term_19APoint 6June2024",59812.333825000002]
["Lecturer_Fixed_Term_19A","Point 7","June2024","Lecturer_Fixed_Term_19APoint 7June2024",61757.987724999999]
["Lecturer_Fixed_Term_19A","Point 8","June2024","Lecturer_Fixed_Term_19APoint 8June2024",63699.510724999993]
["Lecturer_Fixed_Term_19A","Point 9","June2024","Lecturer_Fixed_Term_19APoint 9June2024",65644.131899999993]
["Lecturer_Fixed_Term_19A","Point 10","June2024","Lecturer_Fixed_Term_19APoint 10June2024",67620.767550000004]
["Lecturer_Fixed_Term_19A","Point 11","June2024","Lecturer_Fixed_Term_19APoint 11June2024",69411.512700000007]
["Lecturer_Fixed_Term_19D","Point 1","June2024","Lecturer_Fixed_Term_19DPoint 1June2024",47520.5]
["Lecturer_Fixed_Term_19D","Point 2","June2024","Lecturer_Fixed_Term_19DPoint 2June2024",49561.71]
["Lecturer_Fixed_Term_19D","Point 3","June2024","Lecturer_Fixed_Term_19DPoint 3June2024",51641.413624999994]
["Lecturer_Fixed_Term_19D","Point 4","June2024","Lecturer_Fixed_Term_19DPoint 4June2024",53368.129824999996]
["Lecturer_Fixed_Term_19D","Point 5","June2024","Lecturer_Fixed_Term_19DPoint 5June2024",55119.631424999992]
["Lecturer_Fixed_Term_19D","Point 6","June2024","Lecturer_Fixed_Term_19DPoint 6June2024",56928.965624999997]
["Lecturer_Fixed_Term_19D","Point 7","June2024","Lecturer_Fixed_Term_19DPoint 7June2024",58780.64155]
["Lecturer_Fixed_Term_19D","Point 8","June2024","Lecturer_Fixed_Term_19DPoint 8June2024",60626.121124999998]
["Lecturer_Fixed_Term_19D","Point 9","June2024","Lecturer_Fixed_Term_19DPoint 9June2024",62475.731599999999]
["Lecturer_Fixed_Term_19D","Point 10","June2024","Lecturer_Fixed_Term_19DPoint 10June2024",64340.832949999996]
["Lecturer_Fixed_Term_19D","Point 11","June2024","Lecturer_Fixed_Term_19DPoint 11June2024",66045.861925000005]
["Personal_Professor_20A","Point 1","June2024","Personal_Professor_20APoint 1June2024",162404.26804999998]
["Personal_Professor_20D","Point 1","June2024","Personal_Professor_20DPoint 1June2024",154283.95137499998]
["Professor_In_117A","Point 1","June2024","Professor_In_117APoint 1June2024",100442.83349999999]
["Professor_In_117A","Point 2","June2024","Professor_In_117APoint 2June2024",107196.855]
["Professor_In_117A","Point 3","June2024","Professor_In_117APoint 3June2024",113965.33465]
["Professor_In_117A","Point 4","June2024","Professor_In_117APoint 4June2024",120726.58522499999]
["Professor_In_117A","Point 5","June2024","Professor_In_117APoint 5June2024",127495.064875]
["Professor_In_117A","Point 6","June2024","Professor_In_117APoint 6June2024",134254.25]
["Professor_In_117D","Point 1","June2024","Professor_In_117DPoint 1June2024",95417.593649999995]
["Professor_In_117D","Point 2","June2024","Professor_In_117DPoint 2June2024",101841.14315]
["Professor_In_117D","Point 3","June2024","Professor_In_117DPoint 3June2024",108271.92172500001]
["Professor_In_117D","Point 4","June2024","Professor_In_117DPoint 4June2024",114693.40577500001]
["Professor_In_117D","Point 5","June2024","Professor_In_117DPoint 5June2024",121122.1189]
["Professor_In_117D","Point 6","June2024","Professor_In_117DPoint 6June2024",127543.60295]
["Professors_116A","Point 1","June2024","Professors_116APoint 1June2024",138681.542075]
["Professors_116A","Point 2","June2024","Professors_116APoint 2June2024",146589.11739999999]
["Professors_116A","Point 3","June2024","Professors_116APoint 3June2024",154496.692725]
["Professors_116A","Point 4","June2024","Professors_116APoint 4June2024",162404.26804999998]
["Professors_116A","Point 5","June2024","Professors_116APoint 5June2024",170312.87609999999]
["Professors_116A","Point 6","June2024","Professors_116APoint 6June2024",175325.72324999998]
["Professors_116D","Point 1","June2024","Professors_116DPoint 1June2024",131745.76097499998]
["Professors_116D","Point 2","June2024","Professors_116DPoint 2June2024",139260.90079999997]
["Professors_116D","Point 3","June2024","Professors_116DPoint 3June2024",146772.94245]
["Professors_116D","Point 4","June2024","Professors_116DPoint 4June2024",154283.95137499998]
["Professors_116D","Point 5","June2024","Professors_116DPoint 5June2024",161795.993025]
["Professors_116D","Point 6","June2024","Professors_116DPoint 6June2024",169308.034675]
["Salaried_University_Fellow_83A","Point 1","June2024","Salaried_University_Fellow_83APoint 1June2024",43488.58]
["Salaried_University_Fellow_83A","Point 2","June2024","Salaried_University_Fellow_83APoint 2June2024",44816.73]
["Salaried_University_Fellow_83A","Point 3","June2024","Salaried_University_Fellow_83APoint 3June2024",46161.04]
["Salaried_University_Fellow_83D","Point 1","June2024","Salaried_University_Fellow_83DPoint 1June2024",41560.49]
["Salaried_University_Fellow_83D","Point 2","June2024","Salaried_University_Fellow_83DPoint 2June2024",42822.99]
["Salaried_University_Fellow_83D","Point 3","June2024","Salaried_University_Fellow_83DPoint 3June2024",44103.67]
["Senior_Statutory_Lecturers_21A","Point 1","June2024","Senior_Statutory_Lecturers_21APoint 1June2024",80596.957175000003]
["Senior_Statutory_Lecturers_21A","Point 2","June2024","Senior_Statutory_Lecturers_21APoint 2June2024",85394.997524999999]
["Senior_Statutory_Lecturers_21A","Point 3","June2024","Senior_Statutory_Lecturers_21APoint 3June2024",90214.725099999996]
["Senior_Statutory_Lecturers_21A","Point 4","June2024","Senior_Statutory_Lecturers_21APoint 4June2024",95022.059974999996]
["Senior_Statutory_Lecturers_21A","Point 5","June2024","Senior_Statutory_Lecturers_21APoint 5June2024",99812.871249999997]
["Senior_Statutory_Lecturers_21A","Point 6","June2024","Senior_Statutory_Lecturers_21APoint 6June2024",104643.95879999999]
["Senior_Statutory_Lecturers_21A","Point 7","June2024","Senior_Statutory_Lecturers_21APoint 7June2024",109448.1955]
["Senior_Statutory_Lecturers_21A","Point 8","June2024","Senior_Statutory_Lecturers_21APoint 8June2024",114215.25409999999]
["Senior_Statutory_Lecturers_21D","Point 1","June2024","Senior_Statutory_Lecturers_21DPoint 1June2024",77835.450524999993]
["Senior_Statutory_Lecturers_21D","Point 2","June2024","Senior_Statutory_Lecturers_21DPoint 2June2024",81121.581474999999]
["Senior_Statutory_Lecturers_21D","Point 3","June2024","Senior_Statutory_Lecturers_21DPoint 3June2024",85704.815025000004]
["Senior_Statutory_Lecturers_21D","Point 4","June2024","Senior_Statutory_Lecturers_21DPoint 4June2024",90268.426799999987]
["Senior_Statutory_Lecturers_21D","Point 5","June2024","Senior_Statutory_Lecturers_21DPoint 5June2024",94827.907675000009]
["Senior_Statutory_Lecturers_21D","Point 6","June2024","Senior_Statutory_Lecturers_21DPoint 6June2024",99419.403024999992]
["Senior_Statutory_Lecturers_21D","Point 7","June2024","Senior_Statutory_Lecturers_21DPoint 7June2024",103976.81845000001]
["Senior_Statutory_Lecturers_21D","Point 8","June2024","Senior_Statutory_Lecturers_21DPoint 8June2024",108507.38302499999]
["Technical_Officer_09A","Point 1","June2024","Technical_Officer_09APoint 1June2024",49125.39]
["Technical_Officer_09A","Point 2","June2024","Technical_Officer_09APoint 2June2024",51271.64]
["Technical_Officer_09A","Point 3","June2024","Technical_Officer_09APoint 3June2024",53678.980049999998]
["Technical_Officer_09A","Point 4","June2024","Technical_Officer_09APoint 4June2024",56045.98575]
["Technical_Officer_09A","Point 5","June2024","Technical_Officer_09APoint 5June2024",58528.656650000004]
["Technical_Officer_09D","Point 1","June2024","Technical_Officer_09DPoint 1June2024",46916.52]
["Technical_Officer_09D","Point 2","June2024","Technical_Officer_09DPoint 2June2024",48955.71]
["Technical_Officer_09D","Point 3","June2024","Technical_Officer_09DPoint 3June2024",51180.74]
["Technical_Officer_09D","Point 4","June2024","Technical_Officer_09DPoint 4June2024",53382.587975000002]
["Technical_Officer_09D","Point 5","June2024","Technical_Officer_09DPoint 5June2024",55716.546475000003]
["Post_Doc_Res_Res_Ass_Iua_2013_66A_13","Point 1","June2024",{"$f":"A602&B602&C602","v":"Post_Doc_Res_Res_Ass_Iua_2013_66A_13Point 1June2024"},46912.480000000003]
["Post_Doc_Res_Res_Ass_Iua_2013_66A_13","Point 2","June2024","Post_Doc_Res_Res_Ass_Iua_2013_66A_13Point 2June2024",48171.95]
["Post_Doc_Res_Res_Ass_Iua_2013_66A_13","Point 3","June2024","Post_Doc_Res_Res_Ass_Iua_2013_66A_13Point 3June2024",49469.8]
["Post_Doc_Res_Res_Ass_Iua_2013_66A_13","Point 4","June2024","Post_Doc_Res_Res_Ass_Iua_2013_66A_13Point 4June2024",50807.040000000001]
["Post_Doc_Res_Res_Ass_Iua_2013_66A_13","Point 5","June2024","Post_Doc_Res_Res_Ass_Iua_2013_66A_13Point 5June2024",52193.921500000004]
["Post_Doc_Res_Res_Ass_Iua_2013_66A_13","Point 6","June2024","Post_Doc_Res_Res_Ass_Iua_2013_66A_13Point 6June2024",53661.423725000001]
["Post_Doc_Res_Res_Ass_Iua_2013_66A_13","Point 7","June2024","Post_Doc_Res_Res_Ass_Iua_2013_66A_13Point 7June2024",55187.791274999996]
["Post_Doc_Res_Res_Ass_Iua_2013_66A_13","Point 8","June2024","Post_Doc_Res_Res_Ass_Iua_2013_66A_13Point 8June2024",56765.795075000002]
["Post_Doc_Researcher_Research_Associate_66A","Point 1","June2024","Post_Doc_Researcher_Research_Associate_66APoint 1June2024",47520.5]
["Post_Doc_Researcher_Research_Associate_66A","Point 2","June2024","Post_Doc_Researcher_Research_Associate_66APoint 2June2024",49561.71]
["Post_Doc_Researcher_Research_Associate_66A","Point 3","June2024","Post_Doc_Researcher_Research_Associate_66APoint 3June2024",51641.413624999994]
["Post_Doc_Researcher_Research_Associate_66A","Point 4","June2024","Post_Doc_Researcher_Research_Associate_66APoint 4June2024",53368.129824999996]
["Post_Doc_Researcher_Research_Associate_66A","Point 5","June2024","Post_Doc_Researcher_Research_Associate_66APoint 5June2024",55119.631424999992]
["Post_Doc_Researcher_Research_Associate_66A","Point 6","June2024","Post_Doc_Researcher_Research_Associate_66APoint 6June2024",56928.965624999997]
["Post_Doc_Researcher_Research_Associate_66A","Point 7","June2024","Post_Doc_Researcher_Research_Associate_66APoint 7June2024",58780.64155]
["Post_Doc_Researcher_Research_Associate_66A","Point 8","June2024","Post_Doc_Researcher_Research_Associate_66APoint 8June2024",60626.121124999998]
["Post_Doc_Researcher_Research_Associate_66A","Point 9","June2024","Post_Doc_Researcher_Research_Associate_66APoint 9June2024",62475.731599999999]
["Post_Doc_Researcher_Research_Associate_66A","Point 10","June2024","Post_Doc_Researcher_Research_Associate_66APoint 10June2024",64340.832949999996]
["Post_Doc_Researcher_Research_Associate_66A","Point 11","June2024","Post_Doc_Researcher_Research_Associate_66APoint 11June2024",66045.861925000005]
["Post_Doc_Researcher_Research_Associate_66D","Point 1","June2024","Post_Doc_Researcher_Research_Associate_66DPoint 1June2024",45349]
["Post_Doc_Researcher_Research_Associate_66D","Point 2","June2024","Post_Doc_Researcher_Research_Associate_66DPoint 2June2024",47289.21]
["Post_Doc_Researcher_Research_Associate_66D","Point 3","June2024","Post_Doc_Researcher_Research_Associate_66DPoint 3June2024",49263.76]
["Post_Doc_Researcher_Research_Associate_66D","Point 4","June2024","Post_Doc_Researcher_Research_Associate_66DPoint 4June2024",50855.520000000004]
["Post_Doc_Researcher_Research_Associate_66D","Point 5","June2024","Post_Doc_Researcher_Research_Associate_66DPoint 5June2024",52466.560899999997]
["Post_Doc_Researcher_Research_Associate_66D","Point 6","June2024","Post_Doc_Researcher_Research_Associate_66DPoint 6June2024",54167.458975000001]
["Post_Doc_Researcher_Research_Associate_66D","Point 7","June2024","Post_Doc_Researcher_Research_Associate_66DPoint 7June2024",55910.698774999997]
["Post_Doc_Researcher_Research_Associate_66D","Point 8","June2024","Post_Doc_Researcher_Research_Associate_66DPoint 8June2024",57652.905850000003]
["Post_Doc_Researcher_Research_Associate_66D","Point 9","June2024","Post_Doc_Researcher_Research_Associate_66DPoint 9June2024",59411.636524999994]
["Post_Doc_Researcher_Research_Associate_66D","Point 10","June2024","Post_Doc_Researcher_Research_Associate_66DPoint 10June2024",61182.759899999997]
["Post_Doc_Researcher_Research_Associate_66D","Point 11","June2024","Post_Doc_Researcher_Research_Associate_66DPoint 11June2024",62805.170875000003]
["Research_Assistant_65A","Point 1","June2024","Research_Assistant_65APoint 1June2024",29908.12]
["Research_Assistant_65A","Point 2","June2024","Research_Assistant_65APoint 2June2024",30913.07]
["Research_Assistant_65A","Point 3","June2024","Research_Assistant_65APoint 3June2024",31941.25]
["Research_Assistant_65A","Point 4","June2024","Research_Assistant_65APoint 4June2024",32580.58]
["Research_Assistant_65A","Point 5","June2024","Research_Assistant_65APoint 5June2024",33672.39]
["Research_Assistant_65A","Point 6","June2024","Research_Assistant_65APoint 6June2024",34592.5]
["Research_Assistant_65A","Point 7","June2024","Research_Assistant_65APoint 7June2024",35571.19]
["Research_Assistant_65A","Point 8","June2024","Research_Assistant_65APoint 8June2024",36502.410000000003]
["Research_Assistant_65A","Point 9","June2024","Research_Assistant_65APoint 9June2024",36581.19]
["Research_Assistant_65A","Point 10","June2024","Research_Assistant_65APoint 10June2024",37415.449999999997]
["Research_Assistant_65A","Point 11","June2024","Research_Assistant_65APoint 11June2024",38369.9]
["Research_Assistant_65A","Point 12","June2024","Research_Assistant_65APoint 12June2024",39520.29]
["Research_Assistant_65A","Point 13","June2024","Research_Assistant_65APoint 13June2024",40584.83]
["Research_Assistant_65A","Point 14","June2024","Research_Assistant_65APoint 14June2024",42311.93]
["Research_Assistant_65A","Point 15","June2024","Research_Assistant_65APoint 15June2024",44033.98]
["Research_Assistant_65A_20","Point 1","June2024","Research_Assistant_65A_20Point 1June2024",31461.5]
["Research_Assistant_65A_20","Point 2","June2024","Research_Assistant_65A_20Point 2June2024",32282.63]
["Research_Assistant_65A_20","Point 3","June2024","Research_Assistant_65A_20Point 3June2024",32703.8]
["Research_Assistant_65A_20","Point 4","June2024","Research_Assistant_65A_20Point 4June2024",33563.31]
["Research_Assistant_65A_20","Point 5","June2024","Research_Assistant_65A_20Point 5June2024",34446.050000000003]
["Research_Assistant_65A_20","Point 6","June2024","Research_Assistant_65A_20Point 6June2024",35355.050000000003]
["Research_Assistant_65A_20","Point 7","June2024","Research_Assistant_65A_20Point 7June2024",36296.370000000003]
["Research_Assistant_65A_20","Point 8","June2024","Research_Assistant_65A_20Point 8June2024",36919.54]
["Research_Assistant_65A_20","Point 9","June2024","Research_Assistant_65A_20Point 9June2024",37879.040000000001]
["Research_Assistant_65A_20","Point 10","June2024","Research_Assistant_65A_20Point 10June2024",38689.06]
["Research_Assistant_65A_20","Point 11","June2024","Research_Assistant_65A_20Point 11June2024",39347.58]
["Research_Assistant_65A_20","Point 12","June2024","Research_Assistant_65A_20Point 12June2024",40379.800000000003]
["Research_Assistant_65A_20","Point 13","June2024","Research_Assistant_65A_20Point 13June2024",41443.33]
["Research_Assistant_Iua_2013_65A_13","Point 1","June2024","Research_Assistant_Iua_2013_65A_13Point 1June2024",29130.420000000002]
["Research_Assistant_Iua_2013_65A_13","Point 2","June2024","Research_Assistant_Iua_2013_65A_13Point 2June2024",29882.87]
["Research_Assistant_Iua_2013_65A_13","Point 3","June2024","Research_Assistant_Iua_2013_65A_13Point 3June2024",30657.54]
["Research_Assistant_Iua_2013_65A_13","Point 4","June2024","Research_Assistant_Iua_2013_65A_13Point 4June2024",31454.43]
["Research_Assistant_Iua_2013_65A_13","Point 5","June2024","Research_Assistant_Iua_2013_65A_13Point 5June2024",32273.54]
["Research_Assistant_Iua_2013_65A_13","Point 6","June2024","Research_Assistant_Iua_2013_65A_13Point 6June2024",33118.910000000003]
["Research_Assistant_Iua_2013_65A_13","Point 7","June2024",{"$f":"A666&B666&C666","v":"Research_Assistant_Iua_2013_65A_13Point 7June2024"},33989.53]
["Research_Assistant_Iua_2013_65A_13","Point 8","June2024","Research_Assistant_Iua_2013_65A_13Point 8June2024",34887.42]
["Research_Assistant_Iua_2013_65A_13","Point 9","June2024","Research_Assistant_Iua_2013_65A_13Point 9June2024",35810.559999999998]
["Research_Assistant_Iua_2013_65A_13","Point 10","June2024","Research_Assistant_Iua_2013_65A_13Point 10June2024",36427.67]
["Research_Assistant_Iua_2013_65A_13","Point 11","June2024","Research_Assistant_Iua_2013_65A_13Point 11June2024",37373.03]
["Research_Assistant_Iua_2013_65A_13","Point 12","June2024","Research_Assistant_Iua_2013_65A_13Point 12June2024",38346.67]
["Research_Assistant_Iua_2013_65A_13","Point 13","June2024","Research_Assistant_Iua_2013_65A_13Point 13June2024",39348.590000000004]
["Research_Assistant_Iua_2013_65A_13","Point 14","June2024","Research_Assistant_Iua_2013_65A_13Point 14June2024",40380.81]
["Research_Assistant_Iua_2013_65A_13","Point 15","June2024","Research_Assistant_Iua_2013_65A_13Point 15June2024",41443.33]
["Research_Fellow_67A","Point 1","June2024","Research_Fellow_67APoint 1June2024",72062.517775]
["Research_Fellow_67A","Point 2","June2024","Research_Fellow_67APoint 2June2024",77724.948950000005]
["Research_Fellow_67A","Point 3","June2024","Research_Fellow_67APoint 3June2024",82175.993699999992]
["Research_Fellow_67A","Point 4","June2024","Research_Fellow_67APoint 4June2024",87897.290200000003]
["Research_Fellow_67A","Point 5","June2024","Research_Fellow_67APoint 5June2024",93601.030374999988]
["Research_Fellow_Iua_2013_67A_13","Point 1","June2024","Research_Fellow_Iua_2013_67A_13Point 1June2024",63324.631549999998]
["Research_Fellow_Iua_2013_67A_13","Point 2","June2024","Research_Fellow_Iua_2013_67A_13Point 2June2024",65159.783875000001]
["Research_Fellow_Iua_2013_67A_13","Point 3","June2024","Research_Fellow_Iua_2013_67A_13Point 3June2024",67052.768800000005]
["Research_Fellow_Iua_2013_67A_13","Point 4","June2024","Research_Fellow_Iua_2013_67A_13Point 4June2024",69000.488150000005]
["Senior_Research_Fellow_68A","Point 1","June2024","Senior_Research_Fellow_68APoint 1June2024",90268.426799999987]
["Senior_Research_Fellow_68A","Point 2","June2024","Senior_Research_Fellow_68APoint 2June2024",94827.907675000009]
["Senior_Research_Fellow_68A","Point 3","June2024","Senior_Research_Fellow_68APoint 3June2024",99419.403024999992]
["Senior_Research_Fellow_68A","Point 4","June2024","Senior_Research_Fellow_68APoint 4June2024",103976.81845000001]
["Senior_Research_Fellow_68A","Point 5","June2024","Senior_Research_Fellow_68APoint 5June2024",108507.38302499999]
["Fixed_Amount","Point 1","June2024","Fixed_AmountPoint 1June2024",0]
["Research_Assistant","Point 1","October2024","Research_AssistantPoint 1October2024",31961.801942166661]
["Research_Assistant","Point 2","October2024","Research_AssistantPoint 2October2024",32782.222369106574]
["Research_Assistant","Point 3","October2024","Research_AssistantPoint 3October2024",33202.621275456098]
["Research_Assistant","Point 4","October2024","Research_AssistantPoint 4October2024",34062.22670353057]
["Research_Assistant","Point 5","October2024","Research_AssistantPoint 5October2024",34945.281149781651]
["Research_Assistant","Point 6","October2024","Research_AssistantPoint 6October2024",35855.953159838013]
["Research_Assistant","Point 7","October2024","Research_AssistantPoint 7October2024",36796.036878678322]
["Research_Assistant","Point 8","October2024","Research_AssistantPoint 8October2024",37419.255026242892]
["Research_Assistant","Point 9","October2024","Research_AssistantPoint 9October2024",38378.510423577594]
["Research_Assistant","Point 10","October2024","Research_AssistantPoint 10October2024",39188.087718370291]
["Research_Assistant","Point 11","October2024","Research_AssistantPoint 11October2024",39847.31263451666]
["Research_Assistant","Point 12","October2024","Research_AssistantPoint 12October2024",40879.833587517001]
["Research_Assistant","Point 13","October2024","Research_AssistantPoint 13October2024",41942.989777584415]
["Post_Doctoral_Researcher_PD1","PD1 Point 1","October2024","Post_Doctoral_Researcher_PD1PD1 Point 1October2024",44846.91535789398]
["Post_Doctoral_Researcher_PD1","PD1 Point 2","October2024","Post_Doctoral_Researcher_PD1PD1 Point 2October2024",45440.739603753835]
["Post_Doctoral_Researcher_PD1","PD1 Point 3","October2024","Post_Doctoral_Researcher_PD1PD1 Point 3October2024",47411.946913256579]
["Post_Doctoral_Researcher_PD1","PD1 Point 4","October2024","Post_Doctoral_Researcher_PD1PD1 Point 4October2024",48671.395548235014]
["Post_Doctoral_Researcher_PD1","PD1 Point 5","October2024","Post_Doctoral_Researcher_PD1PD1 Point 5October2024",49968.28725073985]
["Post_Doctoral_Researcher_PD1","PD1 Point 6","October2024","Post_Doctoral_Researcher_PD1PD1 Point 6October2024",51312.940210566769]
["Post_Doctoral_Researcher_PD2","PD2 Point 1","October2024","Post_Doctoral_Researcher_PD2PD2 Point 1October2024",52715.403929153603]
["Post_Doctoral_Researcher_PD2","PD2 Point 2","October2024","Post_Doctoral_Researcher_PD2PD2 Point 2October2024",54197.732859054413]
["Post_Doctoral_Researcher_PD2","PD2 Point 3","October2024","Post_Doctoral_Researcher_PD2PD2 Point 3October2024",55740.240474470753]
["Post_Doctoral_Researcher_PD2","PD2 Point 4","October2024","Post_Doctoral_Researcher_PD2PD2 Point 4October2024",57331.882750448734]
["Research_Fellow","Point 1","October2024","Research_FellowPoint 1October2024",63957.784424649071]
["Research_Fellow","Point 2","October2024","Research_FellowPoint 2October2024",65812.846500400032]
["Research_Fellow","Point 3","October2024","Research_FellowPoint 3October2024",67723.718161163808]
["Research_Fellow","Point 4","October2024","Research_FellowPoint 4October2024",69691.612658788436]
["Senior_Research_Fellow","Point 1","October2024","Senior_Research_FellowPoint 1October2024",77799.7747596673]
["Senior_Research_Fellow","Point 2","October2024","Senior_Research_FellowPoint 2October2024",80069.768967469863]
["Senior_Research_Fellow","Point 3","October2024","Senior_Research_FellowPoint 3October2024",81148.349860434246]
["Senior_Research_Fellow","Point 4","October2024","Senior_Research_FellowPoint 4October2024",83492.352430971136]
["Admin_Officer_01D","Point 1","October2024","Admin_Officer_01DPoint 1October2024",79099.867378749987]
["Admin_Officer_01D","Point 2","October2024","Admin_Officer_01DPoint 2October2024",83190.718303250003]
["Admin_Officer_01D","Point 3","October2024","Admin_Officer_01DPoint 3October2024",88543.662450250005]
["Admin_Officer_01D","Point 4","October2024","Admin_Officer_01DPoint 4October2024",93895.563545000012]
["Admin_Officer_01D","Point 5","October2024","Admin_Officer_01DPoint 5October2024",99271.454841500003]
["Admin_Officer_Current_Serving_Employee_01A","Point 1","October2024","Admin_Officer_Current_Serving_Employee_01APoint 1October2024",81917.151505999995]
["Admin_Officer_Current_Serving_Employee_01A","Point 2","October2024","Admin_Officer_Current_Serving_Employee_01APoint 2October2024",87566.322491999992]
["Admin_Officer_Current_Serving_Employee_01A","Point 3","October2024","Admin_Officer_Current_Serving_Employee_01APoint 3October2024",93207.149059999996]
["Admin_Officer_Current_Serving_Employee_01A","Point 4","October2024","Admin_Officer_Current_Serving_Employee_01APoint 4October2024",98839.631209999992]
["Admin_Officer_Current_Serving_Employee_01A","Point 5","October2024","Admin_Officer_Current_Serving_Employee_01APoint 5October2024",104495.06050950001]
["Chief_Technical_Officer_17A","Point 1","October2024","Chief_Technical_Officer_17APoint 1October2024",66278.669121750005]
["Chief_Technical_Officer_17A","Point 2","October2024","Chief_Technical_Officer_17APoint 2October2024",69032.327061749995]
["Chief_Technical_Officer_17A","Point 3","October2024","Chief_Technical_Officer_17APoint 3October2024",71684.808933499997]
["Chief_Technical_Officer_17A","Point 4","October2024","Chief_Technical_Officer_17APoint 4October2024",74422.821089749996]
["Chief_Technical_Officer_17A","Point 5","October2024","Chief_Technical_Officer_17APoint 5October2024",77217.1580675]
["Chief_Technical_Officer_17D","Point 1","October2024","Chief_Technical_Officer_17DPoint 1October2024",63073.369557499995]
["Chief_Technical_Officer_17D","Point 2","October2024","Chief_Technical_Officer_17DPoint 2October2024",65685.172391500004]
["Chief_Technical_Officer_17D","Point 3","October2024","Chief_Technical_Officer_17DPoint 3October2024",68198.92831399999]
["Chief_Technical_Officer_17D","Point 4","October2024","Chief_Technical_Officer_17DPoint 4October2024",70808.645043500001]
["Chief_Technical_Officer_17D","Point 5","October2024","Chief_Technical_Officer_17DPoint 5October2024",73461.126915249988]
["Clinical_Research_Support_Officer_166A","Point 1","October2024","Clinical_Research_Support_Officer_166APoint 1October2024",44846.07]
["Clinical_Research_Support_Officer_166A","Point 2","October2024","Clinical_Research_Support_Officer_166APoint 2October2024",45440.959999999999]
["Clinical_Research_Support_Officer_166A","Point 3","October2024","Clinical_Research_Support_Officer_166APoint 3October2024",47412.480000000003]
["Clinical_Research_Support_Officer_166A","Point 4","October2024","Clinical_Research_Support_Officer_166APoint 4October2024",48671.95]
["Grade_2_1761.75_Hrs._06A","Point 1","October2024","Grade_2_1761.75_Hrs._06APoint 1October2024",35023.82]
["Grade_2_1761.75_Hrs._06A","Point 2","October2024","Grade_2_1761.75_Hrs._06APoint 2October2024",36269.15]
["Grade_2_1761.75_Hrs._06A","Point 3","October2024","Grade_2_1761.75_Hrs._06APoint 3October2024",37534.68]
["Grade_2_1761.75_Hrs._06A","Point 4","October2024","Grade_2_1761.75_Hrs._06APoint 4October2024",38410.35]
["Grade_2_1761.75_Hrs._06A","Point 5","October2024","Grade_2_1761.75_Hrs._06APoint 5October2024",39447.620000000003]
["Grade_2_1761.75_Hrs._06A","Point 6","October2024","Grade_2_1761.75_Hrs._06APoint 6October2024",40268.75]
["Grade_2_1761.75_Hrs._06A","Point 7","October2024","Grade_2_1761.75_Hrs._06APoint 7October2024",41472.67]
["Grade_2_1761.75_Hrs._06A","Point 8","October2024","Grade_2_1761.75_Hrs._06APoint 8October2024",43158.36]
["Grade_2_1761.75_Hrs._06A","Point 9","October2024","Grade_2_1761.75_Hrs._06APoint 9October2024",44940]
["Grade_2_1761.75_Hrs._06A","Point 10","October2024","Grade_2_1761.75_Hrs._06APoint 10October2024",46708.51]
["Grade_2_1761.75_Hrs._06A","Point 11","October2024","Grade_2_1761.75_Hrs._06APoint 11October2024",48488.13]
["Grade_2_1761.75_Hrs._06A","Point 12","October2024","Grade_2_1761.75_Hrs._06APoint 12October2024",50273.81]
["Grade_2_1761.75_Hrs._06D","Point 1","October2024","Grade_2_1761.75_Hrs._06DPoint 1October2024",33500.74]
["Grade_2_1761.75_Hrs._06D","Point 2","October2024","Grade_2_1761.75_Hrs._06DPoint 2October2024",34689.51]
["Grade_2_1761.75_Hrs._06D","Point 3","October2024","Grade_2_1761.75_Hrs._06DPoint 3October2024",35886.36]
["Grade_2_1761.75_Hrs._06D","Point 4","October2024","Grade_2_1761.75_Hrs._06DPoint 4October2024",37081.19]
["Grade_2_1761.75_Hrs._06D","Point 5","October2024","Grade_2_1761.75_Hrs._06DPoint 5October2024",37915.449999999997]
["Grade_2_1761.75_Hrs._06D","Point 6","October2024","Grade_2_1761.75_Hrs._06DPoint 6October2024",38869.9]
["Grade_2_1761.75_Hrs._06D","Point 7","October2024","Grade_2_1761.75_Hrs._06DPoint 7October2024",40020.29]
["Grade_2_1761.75_Hrs._06D","Point 8","October2024","Grade_2_1761.75_Hrs._06DPoint 8October2024",41262.590000000004]
["Grade_2_1761.75_Hrs._06D","Point 9","October2024","Grade_2_1761.75_Hrs._06DPoint 9October2024",42969.49]
["Grade_2_1761.75_Hrs._06D","Point 10","October2024","Grade_2_1761.75_Hrs._06DPoint 10October2024",44639.02]
["Grade_2_1761.75_Hrs._06D","Point 11","October2024","Grade_2_1761.75_Hrs._06DPoint 11October2024",46334.81]
["Grade_2_1761.75_Hrs._06D","Point 12","October2024","Grade_2_1761.75_Hrs._06DPoint 12October2024",48028.58]
["Grade_3_1761.75_Hrs._11A","Point 1","October2024","Grade_3_1761.75_Hrs._11APoint 1October2024",41350.46]
["Grade_3_1761.75_Hrs._11A","Point 2","October2024","Grade_3_1761.75_Hrs._11APoint 2October2024",43158.36]
["Grade_3_1761.75_Hrs._11A","Point 3","October2024","Grade_3_1761.75_Hrs._11APoint 3October2024",44940]
["Grade_3_1761.75_Hrs._11A","Point 4","October2024","Grade_3_1761.75_Hrs._11APoint 4October2024",46708.51]
["Grade_3_1761.75_Hrs._11A","Point 5","October2024","Grade_3_1761.75_Hrs._11APoint 5October2024",48488.13]
["Grade_3_1761.75_Hrs._11A","Point 6","October2024","Grade_3_1761.75_Hrs._11APoint 6October2024",50273.81]
["Grade_3_1761.75_Hrs._11A","Point 7","October2024","Grade_3_1761.75_Hrs._11APoint 7October2024",52059.783400000008]
["Grade_3_1761.75_Hrs._11A","Point 8","October2024","Grade_3_1761.75_Hrs._11APoint 8October2024",53888.251443999994]
["Grade_3_1761.75_Hrs._11A","Point 9","October2024","Grade_3_1761.75_Hrs._11APoint 9October2024",54335.720859250003]
["Grade_3_1761.75_Hrs._11A","Point 10","October2024","Grade_3_1761.75_Hrs._11APoint 10October2024",56254.93699925]
["Grade_3_1761.75_Hrs._11A","Point 11","October2024","Grade_3_1761.75_Hrs._11APoint 11October2024",57659.92837999999]
["Grade_3_1761.75_Hrs._11D","Point 1","October2024","Grade_3_1761.75_Hrs._11DPoint 1October2024",39905.15]
["Grade_3_1761.75_Hrs._11D","Point 2","October2024","Grade_3_1761.75_Hrs._11DPoint 2October2024",41262.590000000004]
["Grade_3_1761.75_Hrs._11D","Point 3","October2024","Grade_3_1761.75_Hrs._11DPoint 3October2024",42969.49]
["Grade_3_1761.75_Hrs._11D","Point 4","October2024","Grade_3_1761.75_Hrs._11DPoint 4October2024",44639.02]
["Grade_3_1761.75_Hrs._11D","Point 5","October2024","Grade_3_1761.75_Hrs._11DPoint 5October2024",46334.81]
["Grade_3_1761.75_Hrs._11D","Point 6","October2024","Grade_3_1761.75_Hrs._11DPoint 6October2024",48028.58]
["Grade_3_1761.75_Hrs._11D","Point 7","October2024","Grade_3_1761.75_Hrs._11DPoint 7October2024",49714.27]
["Grade_3_1761.75_Hrs._11D","Point 8","October2024","Grade_3_1761.75_Hrs._11DPoint 8October2024",51398.758600000001]
["Grade_3_1761.75_Hrs._11D","Point 9","October2024","Grade_3_1761.75_Hrs._11DPoint 9October2024",51799.657899999998]
["Grade_3_1761.75_Hrs._11D","Point 10","October2024","Grade_3_1761.75_Hrs._11DPoint 10October2024",53580.551030249997]
["Grade_3_1761.75_Hrs._11D","Point 11","October2024","Grade_3_1761.75_Hrs._11DPoint 11October2024",54907.313492249996]
["Grade_4_02A","Point 1","October2024","Grade_4_02APoint 1October2024",52459.269861499997]
["Grade_4_02A","Point 2","October2024","Grade_4_02APoint 2October2024",54335.720859250003]
["Grade_4_02A","Point 3","October2024","Grade_4_02APoint 3October2024",56254.93699925]
["Grade_4_02A","Point 4","October2024","Grade_4_02APoint 4October2024",57659.92837999999]
["Grade_4_02A","Point 5","October2024","Grade_4_02APoint 5October2024",59106.641850750006]
["Grade_4_02A","Point 6","October2024","Grade_4_02APoint 6October2024",60629.49813575]
["Grade_4_02A","Point 7","October2024","Grade_4_02APoint 7October2024",62111.675383000002]
["Grade_4_02A","Point 8","October2024","Grade_4_02APoint 8October2024",65693.516809499997]
["Grade_4_02A","Point 9","October2024","Grade_4_02APoint 9October2024",67754.588055500004]
["Grade_4_02D","Point 1","October2024","Grade_4_02DPoint 1October2024",50084.94]
["Grade_4_02D","Point 2","October2024","Grade_4_02DPoint 2October2024",51799.657899999998]
["Grade_4_02D","Point 3","October2024","Grade_4_02DPoint 3October2024",53580.551030249997]
["Grade_4_02D","Point 4","October2024","Grade_4_02DPoint 4October2024",54907.313492249996]
["Grade_4_02D","Point 5","October2024","Grade_4_02DPoint 5October2024",56267.453626249997]
["Grade_4_02D","Point 6","October2024","Grade_4_02DPoint 6October2024",57702.693522249996]
["Grade_4_02D","Point 7","October2024","Grade_4_02DPoint 7October2024",59118.1154255]
["Grade_4_02D","Point 8","October2024","Grade_4_02DPoint 8October2024",62509.078290249992]
["Grade_4_02D","Point 9","October2024","Grade_4_02DPoint 9October2024",64470.016520249999]
["Grade_5_25A","Point 1","October2024","Grade_5_25APoint 1October2024",60425.059894749997]
["Grade_5_25A","Point 2","October2024","Grade_5_25APoint 2October2024",63002.442004500001]
["Grade_5_25A","Point 3","October2024","Grade_5_25APoint 3October2024",65693.516809499997]
["Grade_5_25A","Point 4","October2024","Grade_5_25APoint 4October2024",67754.588055500004]
["Grade_5_25A","Point 5","October2024","Grade_5_25APoint 5October2024",69885.543802250002]
["Grade_5_25A","Point 6","October2024","Grade_5_25APoint 6October2024",71986.251033749999]
["Grade_5_25A","Point 7","October2024","Grade_5_25APoint 7October2024",81917.151505999995]
["Grade_5_25D","Point 1","October2024","Grade_5_25DPoint 1October2024",57503.470542499999]
["Grade_5_25D","Point 2","October2024","Grade_5_25DPoint 2October2024",59958.815539000003]
["Grade_5_25D","Point 3","October2024","Grade_5_25DPoint 3October2024",62509.078290249992]
["Grade_5_25D","Point 4","October2024","Grade_5_25DPoint 4October2024",64470.016520249999]
["Grade_5_25D","Point 5","October2024","Grade_5_25DPoint 5October2024",66500.839250999998]
["Grade_5_25D","Point 6","October2024","Grade_5_25DPoint 6October2024",68493.069048500009]
["Grade_5_25D","Point 7","October2024","Grade_5_25DPoint 7October2024",79099.867378749987]
["Junior_Lecturer_Old_Scale_62D","Point 1","October2024","Junior_Lecturer_Old_Scale_62DPoint 1October2024",49453.69]
["Lecturer_128A","Point 1","October2024","Lecturer_128APoint 1October2024",62375.567602249997]
["Lecturer_128A","Point 2","October2024","Lecturer_128APoint 2October2024",64336.50583224999]
["Lecturer_128A","Point 3","October2024","Lecturer_128APoint 3October2024",66300.573218999998]
["Lecturer_128A","Point 4","October2024","Lecturer_128APoint 4October2024",68296.975225500006]
["Lecturer_128A","Point 5","October2024","Lecturer_128APoint 5October2024",70105.627827000004]
["Lecturer_128A","Point 6","October2024","Lecturer_128APoint 6October2024",76507.882537500001]
["Lecturer_128A","Point 7","October2024","Lecturer_128APoint 7October2024",81289.234051500011]
["Lecturer_128A","Point 8","October2024","Lecturer_128APoint 8October2024",87370.228669000004]
["Lecturer_128A","Point 9","October2024","Lecturer_128APoint 9October2024",93455.395495500008]
["Lecturer_128A","Point 10","October2024","Lecturer_128APoint 10October2024",99508.227702249991]
["Lecturer_Above_Bar_College_36A","Point 1","October2024","Lecturer_Above_Bar_College_36APoint 1October2024",76507.882537500001]
["Lecturer_Above_Bar_College_36A","Point 2","October2024","Lecturer_Above_Bar_College_36APoint 2October2024",81289.234051500011]
["Lecturer_Above_Bar_College_36A","Point 3","October2024","Lecturer_Above_Bar_College_36APoint 3October2024",87370.228669000004]
["Lecturer_Above_Bar_College_36A","Point 4","October2024","Lecturer_Above_Bar_College_36APoint 4October2024",93455.395495500008]
["Lecturer_Above_Bar_College_36A","Point 5","October2024","Lecturer_Above_Bar_College_36APoint 5October2024",99508.227702249991]
["Lecturer_Above_Bar_College_36D","Point 1","October2024","Lecturer_Above_Bar_College_36DPoint 1October2024",72783.14295275]
["Lecturer_Above_Bar_College_36D","Point 2","October2024","Lecturer_Above_Bar_College_36DPoint 2October2024",78502.198439500004]
["Lecturer_Above_Bar_College_36D","Point 3","October2024","Lecturer_Above_Bar_College_36DPoint 3October2024",82997.753636999987]
["Lecturer_Above_Bar_College_36D","Point 4","October2024","Lecturer_Above_Bar_College_36DPoint 4October2024",88776.263101999997]
["Lecturer_Above_Bar_College_36D","Point 5","October2024","Lecturer_Above_Bar_College_36DPoint 5October2024",94537.040678749981]
["Lecturer_Below_Bar_Junior_33A","Point 1","October2024","Lecturer_Below_Bar_Junior_33APoint 1October2024",50256.639999999999]
["Lecturer_Below_Bar_Junior_33A","Point 2","October2024","Lecturer_Below_Bar_Junior_33APoint 2October2024",52430.064398499999]
["Lecturer_Below_Bar_Junior_33A","Point 3","October2024","Lecturer_Below_Bar_Junior_33APoint 3October2024",54728.951557500004]
["Lecturer_Below_Bar_Junior_33A","Point 4","October2024","Lecturer_Below_Bar_Junior_33APoint 4October2024",56597.058137249995]
["Lecturer_Below_Bar_Junior_33A","Point 5","October2024","Lecturer_Below_Bar_Junior_33APoint 5October2024",58468.293873749994]
["Lecturer_Below_Bar_Junior_33A","Point 6","October2024","Lecturer_Below_Bar_Junior_33APoint 6October2024",60410.457163250001]
["Lecturer_Below_Bar_Junior_33A","Point 7","October2024","Lecturer_Below_Bar_Junior_33APoint 7October2024",62375.567602249997]
["Lecturer_Below_Bar_Junior_33A","Point 8","October2024","Lecturer_Below_Bar_Junior_33APoint 8October2024",64336.50583224999]
["Lecturer_Below_Bar_Junior_33A","Point 9","October2024","Lecturer_Below_Bar_Junior_33APoint 9October2024",66300.573218999998]
["Lecturer_Below_Bar_Junior_33A","Point 10","October2024","Lecturer_Below_Bar_Junior_33APoint 10October2024",68296.975225500006]
["Lecturer_Below_Bar_Junior_33A","Point 11","October2024","Lecturer_Below_Bar_Junior_33APoint 11October2024",70105.627827000004]
["Lecturer_Below_Bar_Junior_33D","Point 1","October2024","Lecturer_Below_Bar_Junior_33DPoint 1October2024",48020.5]
["Lecturer_Below_Bar_Junior_33D","Point 2","October2024","Lecturer_Below_Bar_Junior_33DPoint 2October2024",50061.71]
["Lecturer_Below_Bar_Junior_33D","Point 3","October2024","Lecturer_Below_Bar_Junior_33DPoint 3October2024",52157.827761249995]
["Lecturer_Below_Bar_Junior_33D","Point 4","October2024","Lecturer_Below_Bar_Junior_33DPoint 4October2024",53901.811123249994]
["Lecturer_Below_Bar_Junior_33D","Point 5","October2024","Lecturer_Below_Bar_Junior_33DPoint 5October2024",55670.827739249995]
["Lecturer_Below_Bar_Junior_33D","Point 6","October2024","Lecturer_Below_Bar_Junior_33DPoint 6October2024",57498.25528125]
["Lecturer_Below_Bar_Junior_33D","Point 7","October2024","Lecturer_Below_Bar_Junior_33DPoint 7October2024",59368.447965500003]
["Lecturer_Below_Bar_Junior_33D","Point 8","October2024","Lecturer_Below_Bar_Junior_33DPoint 8October2024",61232.382336249997]
["Lecturer_Below_Bar_Junior_33D","Point 9","October2024","Lecturer_Below_Bar_Junior_33DPoint 9October2024",63100.488916000002]
["Lecturer_Below_Bar_Junior_33D","Point 10","October2024","Lecturer_Below_Bar_Junior_33DPoint 10October2024",64984.241279499998]
["Lecturer_Below_Bar_Junior_33D","Point 11","October2024","Lecturer_Below_Bar_Junior_33DPoint 11October2024",66706.320544250004]
["Lecturer_Fixed_Term_19A","Point 1","October2024","Lecturer_Fixed_Term_19APoint 1October2024",50256.639999999999]
["Lecturer_Fixed_Term_19A","Point 2","October2024","Lecturer_Fixed_Term_19APoint 2October2024",52430.064398499999]
["Lecturer_Fixed_Term_19A","Point 3","October2024","Lecturer_Fixed_Term_19APoint 3October2024",54728.951557500004]
["Lecturer_Fixed_Term_19A","Point 4","October2024","Lecturer_Fixed_Term_19APoint 4October2024",56597.058137249995]
["Lecturer_Fixed_Term_19A","Point 5","October2024","Lecturer_Fixed_Term_19APoint 5October2024",58468.293873749994]
["Lecturer_Fixed_Term_19A","Point 6","October2024","Lecturer_Fixed_Term_19APoint 6October2024",60410.457163250001]
["Lecturer_Fixed_Term_19A","Point 7","October2024","Lecturer_Fixed_Term_19APoint 7October2024",62375.567602249997]
["Lecturer_Fixed_Term_19A","Point 8","October2024","Lecturer_Fixed_Term_19APoint 8October2024",64336.50583224999]
["Lecturer_Fixed_Term_19A","Point 9","October2024","Lecturer_Fixed_Term_19APoint 9October2024",66300.573218999998]
["Lecturer_Fixed_Term_19A","Point 10","October2024","Lecturer_Fixed_Term_19APoint 10October2024",68296.975225500006]
["Lecturer_Fixed_Term_19A","Point 11","October2024","Lecturer_Fixed_Term_19APoint 11October2024",70105.627827000004]
["Lecturer_Fixed_Term_19D","Point 1","October2024","Lecturer_Fixed_Term_19DPoint 1October2024",48020.5]
["Lecturer_Fixed_Term_19D","Point 2","October2024","Lecturer_Fixed_Term_19DPoint 2October2024",50061.71]
["Lecturer_Fixed_Term_19D","Point 3","October2024","Lecturer_Fixed_Term_19DPoint 3October2024",52157.827761249995]
["Lecturer_Fixed_Term_19D","Point 4","October2024","Lecturer_Fixed_Term_19DPoint 4October2024",53901.811123249994]
["Lecturer_Fixed_Term_19D","Point 5","October2024","Lecturer_Fixed_Term_19DPoint 5October2024",55670.827739249995]
["Lecturer_Fixed_Term_19D","Point 6","October2024","Lecturer_Fixed_Term_19DPoint 6October2024",57498.25528125]
["Lecturer_Fixed_Term_19D","Point 7","October2024","Lecturer_Fixed_Term_19DPoint 7October2024",59368.447965500003]
["Lecturer_Fixed_Term_19D","Point 8","October2024","Lecturer_Fixed_Term_19DPoint 8October2024",61232.382336249997]
["Lecturer_Fixed_Term_19D","Point 9","October2024","Lecturer_Fixed_Term_19DPoint 9October2024",63100.488916000002]
["Lecturer_Fixed_Term_19D","Point 10","October2024","Lecturer_Fixed_Term_19DPoint 10October2024",64984.241279499998]
["Lecturer_Fixed_Term_19D","Point 11","October2024","Lecturer_Fixed_Term_19DPoint 11October2024",66706.320544250004]
["Personal_Professor_20A","Point 1","October2024","Personal_Professor_20APoint 1October2024",164028.31073049997]
["Personal_Professor_20D","Point 1","October2024","Personal_Professor_20DPoint 1October2024",155826.79088874997]
["Professor_In_117A","Point 1","October2024","Professor_In_117APoint 1October2024",101447.261835]
["Professor_In_117A","Point 2","October2024","Professor_In_117APoint 2October2024",108268.82355]
["Professor_In_117A","Point 3","October2024","Professor_In_117APoint 3October2024",115104.9879965]
["Professor_In_117A","Point 4","October2024","Professor_In_117APoint 4October2024",121933.85107724999]
["Professor_In_117A","Point 5","October2024","Professor_In_117APoint 5October2024",128770.01552375]
["Professor_In_117A","Point 6","October2024","Professor_In_117APoint 6October2024",135596.79250000001]
["Professor_In_117D","Point 1","October2024","Professor_In_117DPoint 1October2024",96371.769586499999]
["Professor_In_117D","Point 2","October2024","Professor_In_117DPoint 2October2024",102859.55458150001]
["Professor_In_117D","Point 3","October2024","Professor_In_117DPoint 3October2024",109354.64094225001]
["Professor_In_117D","Point 4","October2024","Professor_In_117DPoint 4October2024",115840.33983275]
["Professor_In_117D","Point 5","October2024","Professor_In_117DPoint 5October2024",122333.340089]
["Professor_In_117D","Point 6","October2024","Professor_In_117DPoint 6October2024",128819.03897950001]
["Professors_116A","Point 1","October2024","Professors_116APoint 1October2024",140068.35749575001]
["Professors_116A","Point 2","October2024","Professors_116APoint 2October2024",148055.00857399998]
["Professors_116A","Point 3","October2024","Professors_116APoint 3October2024",156041.65965225]
["Professors_116A","Point 4","October2024","Professors_116APoint 4October2024",164028.31073049997]
["Professors_116A","Point 5","October2024","Professors_116APoint 5October2024",172016.00486099999]
["Professors_116A","Point 6","October2024","Professors_116APoint 6October2024",177078.98048249999]
["Professors_116D","Point 1","October2024","Professors_116DPoint 1October2024",133063.21858474999]
["Professors_116D","Point 2","October2024","Professors_116DPoint 2October2024",140653.50980799997]
["Professors_116D","Point 3","October2024","Professors_116DPoint 3October2024",148240.6718745]
["Professors_116D","Point 4","October2024","Professors_116DPoint 4October2024",155826.79088874997]
["Professors_116D","Point 5","October2024","Professors_116DPoint 5October2024",163413.95295525002]
["Professors_116D","Point 6","October2024","Professors_116DPoint 6October2024",171001.11502175001]
["Salaried_University_Fellow_83A","Point 1","October2024","Salaried_University_Fellow_83APoint 1October2024",43988.58]
["Salaried_University_Fellow_83A","Point 2","October2024","Salaried_University_Fellow_83APoint 2October2024",45316.73]
["Salaried_University_Fellow_83A","Point 3","October2024","Salaried_University_Fellow_83APoint 3October2024",46661.04]
["Salaried_University_Fellow_83D","Point 1","October2024","Salaried_University_Fellow_83DPoint 1October2024",42060.49]
["Salaried_University_Fellow_83D","Point 2","October2024","Salaried_University_Fellow_83DPoint 2October2024",43322.99]
["Salaried_University_Fellow_83D","Point 3","October2024","Salaried_University_Fellow_83DPoint 3October2024",44603.67]
["Senior_Statutory_Lecturers_21A","Point 1","October2024","Senior_Statutory_Lecturers_21APoint 1October2024",81402.926746750003]
["Senior_Statutory_Lecturers_21A","Point 2","October2024","Senior_Statutory_Lecturers_21APoint 2October2024",86248.947500249997]
["Senior_Statutory_Lecturers_21A","Point 3","October2024","Senior_Statutory_Lecturers_21APoint 3October2024",91116.872350999998]
["Senior_Statutory_Lecturers_21A","Point 4","October2024","Senior_Statutory_Lecturers_21APoint 4October2024",95972.280574749995]
["Senior_Statutory_Lecturers_21A","Point 5","October2024","Senior_Statutory_Lecturers_21APoint 5October2024",100810.99996249999]
["Senior_Statutory_Lecturers_21A","Point 6","October2024","Senior_Statutory_Lecturers_21APoint 6October2024",105690.39838799999]
["Senior_Statutory_Lecturers_21A","Point 7","October2024","Senior_Statutory_Lecturers_21APoint 7October2024",110542.677455]
["Senior_Statutory_Lecturers_21A","Point 8","October2024","Senior_Statutory_Lecturers_21APoint 8October2024",115357.40664099999]
["Senior_Statutory_Lecturers_21D","Point 1","October2024","Senior_Statutory_Lecturers_21DPoint 1October2024",78613.805030249991]
["Senior_Statutory_Lecturers_21D","Point 2","October2024","Senior_Statutory_Lecturers_21DPoint 2October2024",81932.79728975]
["Senior_Statutory_Lecturers_21D","Point 3","October2024","Senior_Statutory_Lecturers_21DPoint 3October2024",86561.863175250008]
["Senior_Statutory_Lecturers_21D","Point 4","October2024","Senior_Statutory_Lecturers_21DPoint 4October2024",91171.111067999984]
["Senior_Statutory_Lecturers_21D","Point 5","October2024","Senior_Statutory_Lecturers_21DPoint 5October2024",95776.186751750007]
["Senior_Statutory_Lecturers_21D","Point 6","October2024","Senior_Statutory_Lecturers_21DPoint 6October2024",100413.59705524999]
["Senior_Statutory_Lecturers_21D","Point 7","October2024","Senior_Statutory_Lecturers_21DPoint 7October2024",105016.58663450001]
["Senior_Statutory_Lecturers_21D","Point 8","October2024","Senior_Statutory_Lecturers_21DPoint 8October2024",109592.45685524998]
["Technical_Officer_09A","Point 1","October2024","Technical_Officer_09APoint 1October2024",49625.39]
["Technical_Officer_09A","Point 2","October2024","Technical_Officer_09APoint 2October2024",51784.356399999997]
["Technical_Officer_09A","Point 3","October2024","Technical_Officer_09APoint 3October2024",54215.769850500001]
["Technical_Officer_09A","Point 4","October2024","Technical_Officer_09APoint 4October2024",56606.445607499998]
["Technical_Officer_09A","Point 5","October2024","Technical_Officer_09APoint 5October2024",59113.943216500003]
["Technical_Officer_09D","Point 1","October2024","Technical_Officer_09DPoint 1October2024",47416.52]
["Technical_Officer_09D","Point 2","October2024","Technical_Officer_09DPoint 2October2024",49455.71]
["Technical_Officer_09D","Point 3","October2024","Technical_Officer_09DPoint 3October2024",51692.547399999996]
["Technical_Officer_09D","Point 4","October2024","Technical_Officer_09DPoint 4October2024",53916.413854750004]
["Technical_Officer_09D","Point 5","October2024","Technical_Officer_09DPoint 5October2024",56273.711939750006]
["Post_Doc_Res_Res_Ass_Iua_2013_66A_13","Point 1","October2024",{"$f":"A946&B946&C946","v":"Post_Doc_Res_Res_Ass_Iua_2013_66A_13Point 1October2024"},47412.480000000003]
["Post_Doc_Res_Res_Ass_Iua_2013_66A_13","Point 2","October2024","Post_Doc_Res_Res_Ass_Iua_2013_66A_13Point 2October2024",48671.95]
["Post_Doc_Res_Res_Ass_Iua_2013_66A_13","Point 3","October2024","Post_Doc_Res_Res_Ass_Iua_2013_66A_13Point 3October2024",49969.8]
["Post_Doc_Res_Res_Ass_Iua_2013_66A_13","Point 4","October2024","Post_Doc_Res_Res_Ass_Iua_2013_66A_13Point 4October2024",51315.110399999998]
["Post_Doc_Res_Res_Ass_Iua_2013_66A_13","Point 5","October2024","Post_Doc_Res_Res_Ass_Iua_2013_66A_13Point 5October2024",52715.860715000003]
["Post_Doc_Res_Res_Ass_Iua_2013_66A_13","Point 6","October2024","Post_Doc_Res_Res_Ass_Iua_2013_66A_13Point 6October2024",54198.037962250004]
["Post_Doc_Res_Res_Ass_Iua_2013_66A_13","Point 7","October2024","Post_Doc_Res_Res_Ass_Iua_2013_66A_13Point 7October2024",55739.669187749998]
["Post_Doc_Res_Res_Ass_Iua_2013_66A_13","Point 8","October2024","Post_Doc_Res_Res_Ass_Iua_2013_66A_13Point 8October2024",57333.453025750001]
["Post_Doc_Researcher_Research_Associate_66A","Point 1","October2024","Post_Doc_Researcher_Research_Associate_66APoint 1October2024",48020.5]
["Post_Doc_Researcher_Research_Associate_66A","Point 2","October2024","Post_Doc_Researcher_Research_Associate_66APoint 2October2024",50061.71]
["Post_Doc_Researcher_Research_Associate_66A","Point 3","October2024","Post_Doc_Researcher_Research_Associate_66APoint 3October2024",52157.827761249995]
["Post_Doc_Researcher_Research_Associate_66A","Point 4","October2024","Post_Doc_Researcher_Research_Associate_66APoint 4October2024",53901.811123249994]
["Post_Doc_Researcher_Research_Associate_66A","Point 5","October2024","Post_Doc_Researcher_Research_Associate_66APoint 5October2024",55670.827739249995]
["Post_Doc_Researcher_Research_Associate_66A","Point 6","October2024","Post_Doc_Researcher_Research_Associate_66APoint 6October2024",57498.25528125]
["Post_Doc_Researcher_Research_Associate_66A","Point 7","October2024","Post_Doc_Researcher_Research_Associate_66APoint 7October2024",59368.447965500003]
["Post_Doc_Researcher_Research_Associate_66A","Point 8","October2024","Post_Doc_Researcher_Research_Associate_66APoint 8October2024",61232.382336249997]
["Post_Doc_Researcher_Research_Associate_66A","Point 9","October2024","Post_Doc_Researcher_Research_Associate_66APoint 9October2024",63100.488916000002]
["Post_Doc_Researcher_Research_Associate_66A","Point 10","October2024","Post_Doc_Researcher_Research_Associate_66APoint 10October2024",64984.241279499998]
["Post_Doc_Researcher_Research_Associate_66A","Point 11","October2024","Post_Doc_Researcher_Research_Associate_66APoint 11October2024",66706.320544250004]
["Post_Doc_Researcher_Research_Associate_66D","Point 1","October2024","Post_Doc_Researcher_Research_Associate_66DPoint 1October2024",45849]
["Post_Doc_Researcher_Research_Associate_66D","Point 2","October2024","Post_Doc_Researcher_Research_Associate_66DPoint 2October2024",47789.21]
["Post_Doc_Researcher_Research_Associate_66D","Point 3","October2024","Post_Doc_Researcher_Research_Associate_66DPoint 3October2024",49763.76]
["Post_Doc_Researcher_Research_Associate_66D","Point 4","October2024","Post_Doc_Researcher_Research_Associate_66DPoint 4October2024",51364.075200000007]
["Post_Doc_Researcher_Research_Associate_66D","Point 5","October2024","Post_Doc_Researcher_Research_Associate_66DPoint 5October2024",52991.226509]
["Post_Doc_Researcher_Research_Associate_66D","Point 6","October2024","Post_Doc_Researcher_Research_Associate_66DPoint 6October2024",54709.133564750002]
["Post_Doc_Researcher_Research_Associate_66D","Point 7","October2024","Post_Doc_Researcher_Research_Associate_66DPoint 7October2024",56469.805762749995]
["Post_Doc_Researcher_Research_Associate_66D","Point 8","October2024","Post_Doc_Researcher_Research_Associate_66DPoint 8October2024",58229.434908500007]
["Post_Doc_Researcher_Research_Associate_66D","Point 9","October2024","Post_Doc_Researcher_Research_Associate_66DPoint 9October2024",60005.752890249998]
["Post_Doc_Researcher_Research_Associate_66D","Point 10","October2024","Post_Doc_Researcher_Research_Associate_66DPoint 10October2024",61794.587499000001]
["Post_Doc_Researcher_Research_Associate_66D","Point 11","October2024","Post_Doc_Researcher_Research_Associate_66DPoint 11October2024",63433.222583750001]
["Research_Assistant_65A","Point 1","October2024","Research_Assistant_65APoint 1October2024",30408.12]
["Research_Assistant_65A","Point 2","October2024","Research_Assistant_65APoint 2October2024",31413.07]
["Research_Assistant_65A","Point 3","October2024","Research_Assistant_65APoint 3October2024",32441.25]
["Research_Assistant_65A","Point 4","October2024","Research_Assistant_65APoint 4October2024",33080.58]
["Research_Assistant_65A","Point 5","October2024","Research_Assistant_65APoint 5October2024",34172.39]
["Research_Assistant_65A","Point 6","October2024","Research_Assistant_65APoint 6October2024",35092.5]
["Research_Assistant_65A","Point 7","October2024","Research_Assistant_65APoint 7October2024",36071.19]
["Research_Assistant_65A","Point 8","October2024","Research_Assistant_65APoint 8October2024",37002.410000000003]
["Research_Assistant_65A","Point 9","October2024","Research_Assistant_65APoint 9October2024",37081.19]
["Research_Assistant_65A","Point 10","October2024","Research_Assistant_65APoint 10October2024",37915.449999999997]
["Research_Assistant_65A","Point 11","October2024","Research_Assistant_65APoint 11October2024",38869.9]
["Research_Assistant_65A","Point 12","October2024","Research_Assistant_65APoint 12October2024",40020.29]
["Research_Assistant_65A","Point 13","October2024","Research_Assistant_65APoint 13October2024",41084.83]
["Research_Assistant_65A","Point 14","October2024","Research_Assistant_65APoint 14October2024",42811.93]
["Research_Assistant_65A","Point 15","October2024","Research_Assistant_65APoint 15October2024",44533.98]
["Research_Assistant_65A_20","Point 1","October2024","Research_Assistant_65A_20Point 1October2024",31961.5]
["Research_Assistant_65A_20","Point 2","October2024","Research_Assistant_65A_20Point 2October2024",32782.630000000005]
["Research_Assistant_65A_20","Point 3","October2024","Research_Assistant_65A_20Point 3October2024",33203.800000000003]
["Research_Assistant_65A_20","Point 4","October2024","Research_Assistant_65A_20Point 4October2024",34063.31]
["Research_Assistant_65A_20","Point 5","October2024","Research_Assistant_65A_20Point 5October2024",34946.050000000003]
["Research_Assistant_65A_20","Point 6","October2024","Research_Assistant_65A_20Point 6October2024",35855.050000000003]
["Research_Assistant_65A_20","Point 7","October2024","Research_Assistant_65A_20Point 7October2024",36796.370000000003]
["Research_Assistant_65A_20","Point 8","October2024","Research_Assistant_65A_20Point 8October2024",37419.54]
["Research_Assistant_65A_20","Point 9","October2024","Research_Assistant_65A_20Point 9October2024",38379.040000000001]
["Research_Assistant_65A_20","Point 10","October2024","Research_Assistant_65A_20Point 10October2024",39189.06]
["Research_Assistant_65A_20","Point 11","October2024","Research_Assistant_65A_20Point 11October2024",39847.58]
["Research_Assistant_65A_20","Point 12","October2024","Research_Assistant_65A_20Point 12October2024",40879.800000000003]
["Research_Assistant_65A_20","Point 13","October2024","Research_Assistant_65A_20Point 13October2024",41943.33]
["Research_Assistant_Iua_2013_65A_13","Point 1","October2024","Research_Assistant_Iua_2013_65A_13Point 1October2024",29630.420000000002]
["Research_Assistant_Iua_2013_65A_13","Point 2","October2024","Research_Assistant_Iua_2013_65A_13Point 2October2024",30382.87]
["Research_Assistant_Iua_2013_65A_13","Point 3","October2024","Research_Assistant_Iua_2013_65A_13Point 3October2024",31157.54]
["Research_Assistant_Iua_2013_65A_13","Point 4","October2024","Research_Assistant_Iua_2013_65A_13Point 4October2024",31954.43]
["Research_Assistant_Iua_2013_65A_13","Point 5","October2024","Research_Assistant_Iua_2013_65A_13Point 5October2024",32773.54]
["Research_Assistant_Iua_2013_65A_13","Point 6","October2024","Research_Assistant_Iua_2013_65A_13Point 6October2024",33618.910000000003]
["Research_Assistant_Iua_2013_65A_13","Point 7","October2024",{"$f":"A1010&B1010&C1010","v":"Research_Assistant_Iua_2013_65A_13Point 7October2024"},34489.53]
["Research_Assistant_Iua_2013_65A_13","Point 8","October2024","Research_Assistant_Iua_2013_65A_13Point 8October2024",35387.42]
["Research_Assistant_Iua_2013_65A_13","Point 9","October2024","Research_Assistant_Iua_2013_65A_13Point 9October2024",36310.559999999998]
["Research_Assistant_Iua_2013_65A_13","Point 10","October2024","Research_Assistant_Iua_2013_65A_13Point 10October2024",36927.67]
["Research_Assistant_Iua_2013_65A_13","Point 11","October2024","Research_Assistant_Iua_2013_65A_13Point 11October2024",37873.03]
["Research_Assistant_Iua_2013_65A_13","Point 12","October2024","Research_Assistant_Iua_2013_65A_13Point 12October2024",38846.67]
["Research_Assistant_Iua_2013_65A_13","Point 13","October2024","Research_Assistant_Iua_2013_65A_13Point 13October2024",39848.590000000004]
["Research_Assistant_Iua_2013_65A_13","Point 14","October2024","Research_Assistant_Iua_2013_65A_13Point 14October2024",40880.81]
["Research_Assistant_Iua_2013_65A_13","Point 15","October2024","Research_Assistant_Iua_2013_65A_13Point 15October2024",41943.33]
["Research_Fellow_67A","Point 1","October2024","Research_Fellow_67APoint 1October2024",72783.14295275]
["Research_Fellow_67A","Point 2","October2024","Research_Fellow_67APoint 2October2024",78502.198439500004]
["Research_Fellow_67A","Point 3","October2024","Research_Fellow_67APoint 3October2024",82997.753636999987]
["Research_Fellow_67A","Point 4","October2024","Research_Fellow_67APoint 4October2024",88776.263101999997]
["Research_Fellow_67A","Point 5","October2024","Research_Fellow_67APoint 5October2024",94537.040678749981]
["Research_Fellow_Iua_2013_67A_13","Point 1","October2024","Research_Fellow_Iua_2013_67A_13Point 1October2024",63957.877865499999]
["Research_Fellow_Iua_2013_67A_13","Point 2","October2024","Research_Fellow_Iua_2013_67A_13Point 2October2024",65811.381713750001]
["Research_Fellow_Iua_2013_67A_13","Point 3","October2024","Research_Fellow_Iua_2013_67A_13Point 3October2024",67723.296488000007]
["Research_Fellow_Iua_2013_67A_13","Point 4","October2024","Research_Fellow_Iua_2013_67A_13Point 4October2024",69690.493031500009]
["Senior_Research_Fellow_68A","Point 1","October2024","Senior_Research_Fellow_68APoint 1October2024",91171.111067999984]
["Senior_Research_Fellow_68A","Point 2","October2024","Senior_Research_Fellow_68APoint 2October2024",95776.186751750007]
["Senior_Research_Fellow_68A","Point 3","October2024","Senior_Research_Fellow_68APoint 3October2024",100413.59705524999]
["Senior_Research_Fellow_68A","Point 4","October2024","Senior_Research_Fellow_68APoint 4October2024",105016.58663450001]
["Senior_Research_Fellow_68A","Point 5","October2024","Senior_Research_Fellow_68APoint 5October2024",109592.45685524998]
["Fixed_Amount","Point 1","October2024","Fixed_AmountPoint 1October2024",0]
["Research_Assistant","Point 1","March2025","Research_AssistantPoint 1March2025",32961.801942166661]
["Research_Assistant","Point 2","March2025","Research_AssistantPoint 2March2025",33782.222369106574]
["Research_Assistant","Point 3","March2025","Research_AssistantPoint 3March2025",34202.621275456098]
["Research_Assistant","Point 4","March2025","Research_AssistantPoint 4March2025",35062.22670353057]
["Research_Assistant","Point 5","March2025","Research_AssistantPoint 5March2025",35945.281149781651]
["Research_Assistant","Point 6","March2025","Research_AssistantPoint 6March2025",36855.953159838013]
["Research_Assistant","Point 7","March2025","Research_AssistantPoint 7March2025",37796.036878678322]
["Research_Assistant","Point 8","March2025","Research_AssistantPoint 8March2025",38419.255026242892]
["Research_Assistant","Point 9","March2025","Research_AssistantPoint 9March2025",39378.510423577594]
["Research_Assistant","Point 10","March2025","Research_AssistantPoint 10March2025",40188.087718370291]
["Research_Assistant","Point 11","March2025","Research_AssistantPoint 11March2025",40847.31263451666]
["Research_Assistant","Point 12","March2025","Research_AssistantPoint 12March2025",41879.833587517001]
["Research_Assistant","Point 13","March2025","Research_AssistantPoint 13March2025",42942.989777584415]
["Post_Doctoral_Researcher_PD1","PD1 Point 1","March2025","Post_Doctoral_Researcher_PD1PD1 Point 1March2025",45846.91535789398]
["Post_Doctoral_Researcher_PD1","PD1 Point 2","March2025","Post_Doctoral_Researcher_PD1PD1 Point 2March2025",46440.739603753835]
["Post_Doctoral_Researcher_PD1","PD1 Point 3","March2025","Post_Doctoral_Researcher_PD1PD1 Point 3March2025",48411.946913256579]
["Post_Doctoral_Researcher_PD1","PD1 Point 4","March2025","Post_Doctoral_Researcher_PD1PD1 Point 4March2025",49671.395548235014]
["Post_Doctoral_Researcher_PD1","PD1 Point 5","March2025","Post_Doctoral_Researcher_PD1PD1 Point 5March2025",50968.28725073985]
["Post_Doctoral_Researcher_PD1","PD1 Point 6","March2025","Post_Doctoral_Researcher_PD1PD1 Point 6March2025",52339.199014778103]
["Post_Doctoral_Researcher_PD2","PD2 Point 1","March2025","Post_Doctoral_Researcher_PD2PD2 Point 1March2025",53769.712007736678]
["Post_Doctoral_Researcher_PD2","PD2 Point 2","March2025","Post_Doctoral_Researcher_PD2PD2 Point 2March2025",55281.687516235499]
["Post_Doctoral_Researcher_PD2","PD2 Point 3","March2025","Post_Doctoral_Researcher_PD2PD2 Point 3March2025",56855.045283960171]
["Post_Doctoral_Researcher_PD2","PD2 Point 4","March2025","Post_Doctoral_Researcher_PD2PD2 Point 4March2025",58478.520405457712]
["Research_Fellow","Point 1","March2025","Research_FellowPoint 1March2025",65236.940113142053]
["Research_Fellow","Point 2","March2025","Research_FellowPoint 2March2025",67129.103430408039]
["Research_Fellow","Point 3","March2025","Research_FellowPoint 3March2025",69078.192524387079]
["Research_Fellow","Point 4","March2025","Research_FellowPoint 4March2025",71085.444911964209]
["Senior_Research_Fellow","Point 1","March2025","Senior_Research_FellowPoint 1March2025",79355.770254860647]
["Senior_Research_Fellow","Point 2","March2025","Senior_Research_FellowPoint 2March2025",81671.164346819263]
["Senior_Research_Fellow","Point 3","March2025","Senior_Research_FellowPoint 3March2025",82771.316857642931]
["Senior_Research_Fellow","Point 4","March2025","Senior_Research_FellowPoint 4March2025",85162.199479590563]
["Admin_Officer_01D","Point 1","March2025","Admin_Officer_01DPoint 1March2025",80681.864726324988]
["Admin_Officer_01D","Point 2","March2025","Admin_Officer_01DPoint 2March2025",84854.532669314998]
["Admin_Officer_01D","Point 3","March2025","Admin_Officer_01DPoint 3March2025",90314.535699255008]
["Admin_Officer_01D","Point 4","March2025","Admin_Officer_01DPoint 4March2025",95773.474815900016]
["Admin_Officer_01D","Point 5","March2025","Admin_Officer_01DPoint 5March2025",101256.88393833001]
["Admin_Officer_Current_Serving_Employee_01A","Point 1","March2025","Admin_Officer_Current_Serving_Employee_01APoint 1March2025",83555.494536119993]
["Admin_Officer_Current_Serving_Employee_01A","Point 2","March2025","Admin_Officer_Current_Serving_Employee_01APoint 2March2025",89317.648941839987]
["Admin_Officer_Current_Serving_Employee_01A","Point 3","March2025","Admin_Officer_Current_Serving_Employee_01APoint 3March2025",95071.292041199995]
["Admin_Officer_Current_Serving_Employee_01A","Point 4","March2025","Admin_Officer_Current_Serving_Employee_01APoint 4March2025",100816.42383419999]
["Admin_Officer_Current_Serving_Employee_01A","Point 5","March2025","Admin_Officer_Current_Serving_Employee_01APoint 5March2025",106584.96171969001]
["Chief_Technical_Officer_17A","Point 1","March2025","Chief_Technical_Officer_17APoint 1March2025",67604.242504185007]
["Chief_Technical_Officer_17A","Point 2","March2025","Chief_Technical_Officer_17APoint 2March2025",70412.973602985003]
["Chief_Technical_Officer_17A","Point 3","March2025","Chief_Technical_Officer_17APoint 3March2025",73118.505112169994]
["Chief_Technical_Officer_17A","Point 4","March2025","Chief_Technical_Officer_17APoint 4March2025",75911.277511544991]
["Chief_Technical_Officer_17A","Point 5","March2025","Chief_Technical_Officer_17APoint 5March2025",78761.50122885]
["Chief_Technical_Officer_17D","Point 1","March2025","Chief_Technical_Officer_17DPoint 1March2025",64334.836948649994]
["Chief_Technical_Officer_17D","Point 2","March2025","Chief_Technical_Officer_17DPoint 2March2025",66998.875839330009]
["Chief_Technical_Officer_17D","Point 3","March2025","Chief_Technical_Officer_17DPoint 3March2025",69562.906880279988]
["Chief_Technical_Officer_17D","Point 4","March2025","Chief_Technical_Officer_17DPoint 4March2025",72224.817944370006]
["Chief_Technical_Officer_17D","Point 5","March2025","Chief_Technical_Officer_17DPoint 5March2025",74930.349453554983]
["Clinical_Research_Support_Officer_166A","Point 1","March2025","Clinical_Research_Support_Officer_166APoint 1March2025",45846.07]
["Clinical_Research_Support_Officer_166A","Point 2","March2025","Clinical_Research_Support_Officer_166APoint 2March2025",46440.959999999999]
["Clinical_Research_Support_Officer_166A","Point 3","March2025","Clinical_Research_Support_Officer_166APoint 3March2025",48412.480000000003]
["Clinical_Research_Support_Officer_166A","Point 4","March2025","Clinical_Research_Support_Officer_166APoint 4March2025",49671.95]
["Grade_2_1761.75_Hrs._06A","Point 1","March2025","Grade_2_1761.75_Hrs._06APoint 1March2025",36023.82]
["Grade_2_1761.75_Hrs._06A","Point 2","March2025","Grade_2_1761.75_Hrs._06APoint 2March2025",37269.15]
["Grade_2_1761.75_Hrs._06A","Point 3","March2025","Grade_2_1761.75_Hrs._06APoint 3March2025",38534.68]
["Grade_2_1761.75_Hrs._06A","Point 4","March2025","Grade_2_1761.75_Hrs._06APoint 4March2025",39410.35]
["Grade_2_1761.75_Hrs._06A","Point 5","March2025","Grade_2_1761.75_Hrs._06APoint 5March2025",40447.620000000003]
["Grade_2_1761.75_Hrs._06A","Point 6","March2025","Grade_2_1761.75_Hrs._06APoint 6March2025",41268.75]
["Grade_2_1761.75_Hrs._06A","Point 7","March2025","Grade_2_1761.75_Hrs._06APoint 7March2025",42472.67]
["Grade_2_1761.75_Hrs._06A","Point 8","March2025","Grade_2_1761.75_Hrs._06APoint 8March2025",44158.36]
["Grade_2_1761.75_Hrs._06A","Point 9","March2025","Grade_2_1761.75_Hrs._06APoint 9March2025",45940]
["Grade_2_1761.75_Hrs._06A","Point 10","March2025","Grade_2_1761.75_Hrs._06APoint 10March2025",47708.51]
["Grade_2_1761.75_Hrs._06A","Point 11","March2025","Grade_2_1761.75_Hrs._06APoint 11March2025",49488.13]
["Grade_2_1761.75_Hrs._06A","Point 12","March2025","Grade_2_1761.75_Hrs._06APoint 12March2025",51279.286199999995]
["Grade_2_1761.75_Hrs._06D","Point 1","March2025","Grade_2_1761.75_Hrs._06DPoint 1March2025",34500.74]
["Grade_2_1761.75_Hrs._06D","Point 2","March2025","Grade_2_1761.75_Hrs._06DPoint 2March2025",35689.51]
["Grade_2_1761.75_Hrs._06D","Point 3","March2025","Grade_2_1761.75_Hrs._06DPoint 3March2025",36886.36]
["Grade_2_1761.75_Hrs._06D","Point 4","March2025","Grade_2_1761.75_Hrs._06DPoint 4March2025",38081.19]
["Grade_2_1761.75_Hrs._06D","Point 5","March2025","Grade_2_1761.75_Hrs._06DPoint 5March2025",38915.449999999997]
["Grade_2_1761.75_Hrs._06D","Point 6","March2025","Grade_2_1761.75_Hrs._06DPoint 6March2025",39869.9]
["Grade_2_1761.75_Hrs._06D","Point 7","March2025","Grade_2_1761.75_Hrs._06DPoint 7March2025",41020.29]
["Grade_2_1761.75_Hrs._06D","Point 8","March2025","Grade_2_1761.75_Hrs._06DPoint 8March2025",42262.590000000004]
["Grade_2_1761.75_Hrs._06D","Point 9","March2025","Grade_2_1761.75_Hrs._06DPoint 9March2025",43969.49]
["Grade_2_1761.75_Hrs._06D","Point 10","March2025","Grade_2_1761.75_Hrs._06DPoint 10March2025",45639.02]
["Grade_2_1761.75_Hrs._06D","Point 11","March2025","Grade_2_1761.75_Hrs._06DPoint 11March2025",47334.81]
["Grade_2_1761.75_Hrs._06D","Point 12","March2025","Grade_2_1761.75_Hrs._06DPoint 12March2025",49028.58]
["Grade_3_1761.75_Hrs._11A","Point 1","March2025","Grade_3_1761.75_Hrs._11APoint 1March2025",42350.46]
["Grade_3_1761.75_Hrs._11A","Point 2","March2025","Grade_3_1761.75_Hrs._11APoint 2March2025",44158.36]
["Grade_3_1761.75_Hrs._11A","Point 3","March2025","Grade_3_1761.75_Hrs._11APoint 3March2025",45940]
["Grade_3_1761.75_Hrs._11A","Point 4","March2025","Grade_3_1761.75_Hrs._11APoint 4March2025",47708.51]
["Grade_3_1761.75_Hrs._11A","Point 5","March2025","Grade_3_1761.75_Hrs._11APoint 5March2025",49488.13]
["Grade_3_1761.75_Hrs._11A","Point 6","March2025","Grade_3_1761.75_Hrs._11APoint 6March2025",51279.286199999995]
["Grade_3_1761.75_Hrs._11A","Point 7","March2025","Grade_3_1761.75_Hrs._11APoint 7March2025",53100.979068000008]
["Grade_3_1761.75_Hrs._11A","Point 8","March2025","Grade_3_1761.75_Hrs._11APoint 8March2025",54966.016472879994]
["Grade_3_1761.75_Hrs._11A","Point 9","March2025","Grade_3_1761.75_Hrs._11APoint 9March2025",55422.435276435004]
["Grade_3_1761.75_Hrs._11A","Point 10","March2025","Grade_3_1761.75_Hrs._11APoint 10March2025",57380.035739234998]
["Grade_3_1761.75_Hrs._11A","Point 11","March2025","Grade_3_1761.75_Hrs._11APoint 11March2025",58813.126947599994]
["Grade_3_1761.75_Hrs._11D","Point 1","March2025","Grade_3_1761.75_Hrs._11DPoint 1March2025",40905.15]
["Grade_3_1761.75_Hrs._11D","Point 2","March2025","Grade_3_1761.75_Hrs._11DPoint 2March2025",42262.590000000004]
["Grade_3_1761.75_Hrs._11D","Point 3","March2025","Grade_3_1761.75_Hrs._11DPoint 3March2025",43969.49]
["Grade_3_1761.75_Hrs._11D","Point 4","March2025","Grade_3_1761.75_Hrs._11DPoint 4March2025",45639.02]
["Grade_3_1761.75_Hrs._11D","Point 5","March2025","Grade_3_1761.75_Hrs._11DPoint 5March2025",47334.81]
["Grade_3_1761.75_Hrs._11D","Point 6","March2025","Grade_3_1761.75_Hrs._11DPoint 6March2025",49028.58]
["Grade_3_1761.75_Hrs._11D","Point 7","March2025","Grade_3_1761.75_Hrs._11DPoint 7March2025",50714.27]
["Grade_3_1761.75_Hrs._11D","Point 8","March2025","Grade_3_1761.75_Hrs._11DPoint 8March2025",52426.733772]
["Grade_3_1761.75_Hrs._11D","Point 9","March2025","Grade_3_1761.75_Hrs._11DPoint 9March2025",52835.651057999996]
["Grade_3_1761.75_Hrs._11D","Point 10","March2025","Grade_3_1761.75_Hrs._11DPoint 10March2025",54652.162050854997]
["Grade_3_1761.75_Hrs._11D","Point 11","March2025","Grade_3_1761.75_Hrs._11DPoint 11March2025",56005.459762094993]
["Grade_4_02A","Point 1","March2025","Grade_4_02APoint 1March2025",53508.455258729999]
["Grade_4_02A","Point 2","March2025","Grade_4_02APoint 2March2025",55422.435276435004]
["Grade_4_02A","Point 3","March2025","Grade_4_02APoint 3March2025",57380.035739234998]
["Grade_4_02A","Point 4","March2025","Grade_4_02APoint 4March2025",58813.126947599994]
["Grade_4_02A","Point 5","March2025","Grade_4_02APoint 5March2025",60288.774687765006]
["Grade_4_02A","Point 6","March2025","Grade_4_02APoint 6March2025",61842.088098464999]
["Grade_4_02A","Point 7","March2025","Grade_4_02APoint 7March2025",63353.908890660001]
["Grade_4_02A","Point 8","March2025","Grade_4_02APoint 8March2025",67007.387145689994]
["Grade_4_02A","Point 9","March2025","Grade_4_02APoint 9March2025",69109.679816610005]
["Grade_4_02D","Point 1","March2025","Grade_4_02DPoint 1March2025",51086.638800000001]
["Grade_4_02D","Point 2","March2025","Grade_4_02DPoint 2March2025",52835.651057999996]
["Grade_4_02D","Point 3","March2025","Grade_4_02DPoint 3March2025",54652.162050854997]
["Grade_4_02D","Point 4","March2025","Grade_4_02DPoint 4March2025",56005.459762094993]
["Grade_4_02D","Point 5","March2025","Grade_4_02DPoint 5March2025",57392.802698774998]
["Grade_4_02D","Point 6","March2025","Grade_4_02DPoint 6March2025",58856.747392694997]
["Grade_4_02D","Point 7","March2025","Grade_4_02DPoint 7March2025",60300.477734010004]
["Grade_4_02D","Point 8","March2025","Grade_4_02DPoint 8March2025",63759.259856054996]
["Grade_4_02D","Point 9","March2025","Grade_4_02DPoint 9March2025",65759.416850655005]
["Grade_5_25A","Point 1","March2025","Grade_5_25APoint 1March2025",61633.561092644995]
["Grade_5_25A","Point 2","March2025","Grade_5_25APoint 2March2025",64262.49084459]
["Grade_5_25A","Point 3","March2025","Grade_5_25APoint 3March2025",67007.387145689994]
["Grade_5_25A","Point 4","March2025","Grade_5_25APoint 4March2025",69109.679816610005]
["Grade_5_25A","Point 5","March2025","Grade_5_25APoint 5March2025",71283.254678295008]
["Grade_5_25A","Point 6","March2025","Grade_5_25APoint 6March2025",73425.976054425002]
["Grade_5_25A","Point 7","March2025","Grade_5_25APoint 7March2025",83555.494536119993]
["Grade_5_25D","Point 1","March2025","Grade_5_25DPoint 1March2025",58653.539953350002]
["Grade_5_25D","Point 2","March2025","Grade_5_25DPoint 2March2025",61157.991849780003]
["Grade_5_25D","Point 3","March2025","Grade_5_25DPoint 3March2025",63759.259856054996]
["Grade_5_25D","Point 4","March2025","Grade_5_25DPoint 4March2025",65759.416850655005]
["Grade_5_25D","Point 5","March2025","Grade_5_25DPoint 5March2025",67830.856036019992]
["Grade_5_25D","Point 6","March2025","Grade_5_25DPoint 6March2025",69862.930429470012]
["Grade_5_25D","Point 7","March2025","Grade_5_25DPoint 7March2025",80681.864726324988]
["Junior_Lecturer_Old_Scale_62D","Point 1","March2025","Junior_Lecturer_Old_Scale_62DPoint 1March2025",50453.69]
["Lecturer_128A","Point 1","March2025","Lecturer_128APoint 1March2025",63623.078954295001]
["Lecturer_128A","Point 2","March2025","Lecturer_128APoint 2March2025",65623.235948894988]
["Lecturer_128A","Point 3","March2025","Lecturer_128APoint 3March2025",67626.584683380002]
["Lecturer_128A","Point 4","March2025","Lecturer_128APoint 4March2025",69662.914730010001]
["Lecturer_128A","Point 5","March2025","Lecturer_128APoint 5March2025",71507.740383540004]
["Lecturer_128A","Point 6","March2025","Lecturer_128APoint 6March2025",78038.040188250001]
["Lecturer_128A","Point 7","March2025","Lecturer_128APoint 7March2025",82915.018732530007]
["Lecturer_128A","Point 8","March2025","Lecturer_128APoint 8March2025",89117.633242380005]
["Lecturer_128A","Point 9","March2025","Lecturer_128APoint 9March2025",95324.503405410011]
["Lecturer_128A","Point 10","March2025","Lecturer_128APoint 10March2025",101498.39225629499]
["Lecturer_Above_Bar_College_36A","Point 1","March2025","Lecturer_Above_Bar_College_36APoint 1March2025",78038.040188250001]
["Lecturer_Above_Bar_College_36A","Point 2","March2025","Lecturer_Above_Bar_College_36APoint 2March2025",82915.018732530007]
["Lecturer_Above_Bar_College_36A","Point 3","March2025","Lecturer_Above_Bar_College_36APoint 3March2025",89117.633242380005]
["Lecturer_Above_Bar_College_36A","Point 4","March2025","Lecturer_Above_Bar_College_36APoint 4March2025",95324.503405410011]
["Lecturer_Above_Bar_College_36A","Point 5","March2025","Lecturer_Above_Bar_College_36APoint 5March2025",101498.39225629499]
["Lecturer_Above_Bar_College_36D","Point 1","March2025","Lecturer_Above_Bar_College_36DPoint 1March2025",74238.805811804996]
["Lecturer_Above_Bar_College_36D","Point 2","March2025","Lecturer_Above_Bar_College_36DPoint 2March2025",80072.242408290011]
["Lecturer_Above_Bar_College_36D","Point 3","March2025","Lecturer_Above_Bar_College_36DPoint 3March2025",84657.708709739993]
["Lecturer_Above_Bar_College_36D","Point 4","March2025","Lecturer_Above_Bar_College_36DPoint 4March2025",90551.788364039996]
["Lecturer_Above_Bar_College_36D","Point 5","March2025","Lecturer_Above_Bar_College_36DPoint 5March2025",96427.781492324983]
["Lecturer_Below_Bar_Junior_33A","Point 1","March2025","Lecturer_Below_Bar_Junior_33APoint 1March2025",51261.772799999999]
["Lecturer_Below_Bar_Junior_33A","Point 2","March2025","Lecturer_Below_Bar_Junior_33APoint 2March2025",53478.665686469998]
["Lecturer_Below_Bar_Junior_33A","Point 3","March2025","Lecturer_Below_Bar_Junior_33APoint 3March2025",55823.530588650006]
["Lecturer_Below_Bar_Junior_33A","Point 4","March2025","Lecturer_Below_Bar_Junior_33APoint 4March2025",57728.999299994997]
["Lecturer_Below_Bar_Junior_33A","Point 5","March2025","Lecturer_Below_Bar_Junior_33APoint 5March2025",59637.659751224994]
["Lecturer_Below_Bar_Junior_33A","Point 6","March2025","Lecturer_Below_Bar_Junior_33APoint 6March2025",61618.666306514999]
["Lecturer_Below_Bar_Junior_33A","Point 7","March2025","Lecturer_Below_Bar_Junior_33APoint 7March2025",63623.078954295001]
["Lecturer_Below_Bar_Junior_33A","Point 8","March2025","Lecturer_Below_Bar_Junior_33APoint 8March2025",65623.235948894988]
["Lecturer_Below_Bar_Junior_33A","Point 9","March2025","Lecturer_Below_Bar_Junior_33APoint 9March2025",67626.584683380002]
["Lecturer_Below_Bar_Junior_33A","Point 10","March2025","Lecturer_Below_Bar_Junior_33APoint 10March2025",69662.914730010001]
["Lecturer_Below_Bar_Junior_33A","Point 11","March2025","Lecturer_Below_Bar_Junior_33APoint 11March2025",71507.740383540004]
["Lecturer_Below_Bar_Junior_33D","Point 1","March2025","Lecturer_Below_Bar_Junior_33DPoint 1March2025",49020.5]
["Lecturer_Below_Bar_Junior_33D","Point 2","March2025","Lecturer_Below_Bar_Junior_33DPoint 2March2025",51062.944199999998]
["Lecturer_Below_Bar_Junior_33D","Point 3","March2025","Lecturer_Below_Bar_Junior_33DPoint 3March2025",53200.984316474998]
["Lecturer_Below_Bar_Junior_33D","Point 4","March2025","Lecturer_Below_Bar_Junior_33DPoint 4March2025",54979.847345714996]
["Lecturer_Below_Bar_Junior_33D","Point 5","March2025","Lecturer_Below_Bar_Junior_33DPoint 5March2025",56784.244294034994]
["Lecturer_Below_Bar_Junior_33D","Point 6","March2025","Lecturer_Below_Bar_Junior_33DPoint 6March2025",58648.220386875]
["Lecturer_Below_Bar_Junior_33D","Point 7","March2025","Lecturer_Below_Bar_Junior_33DPoint 7March2025",60555.816924810002]
["Lecturer_Below_Bar_Junior_33D","Point 8","March2025","Lecturer_Below_Bar_Junior_33DPoint 8March2025",62457.029982975]
["Lecturer_Below_Bar_Junior_33D","Point 9","March2025","Lecturer_Below_Bar_Junior_33DPoint 9March2025",64362.498694320006]
["Lecturer_Below_Bar_Junior_33D","Point 10","March2025","Lecturer_Below_Bar_Junior_33DPoint 10March2025",66283.926105089995]
["Lecturer_Below_Bar_Junior_33D","Point 11","March2025","Lecturer_Below_Bar_Junior_33DPoint 11March2025",68040.446955135005]
["Lecturer_Fixed_Term_19A","Point 1","March2025","Lecturer_Fixed_Term_19APoint 1March2025",51261.772799999999]
["Lecturer_Fixed_Term_19A","Point 2","March2025","Lecturer_Fixed_Term_19APoint 2March2025",53478.665686469998]
["Lecturer_Fixed_Term_19A","Point 3","March2025","Lecturer_Fixed_Term_19APoint 3March2025",55823.530588650006]
["Lecturer_Fixed_Term_19A","Point 4","March2025","Lecturer_Fixed_Term_19APoint 4March2025",57728.999299994997]
["Lecturer_Fixed_Term_19A","Point 5","March2025","Lecturer_Fixed_Term_19APoint 5March2025",59637.659751224994]
["Lecturer_Fixed_Term_19A","Point 6","March2025","Lecturer_Fixed_Term_19APoint 6March2025",61618.666306514999]
["Lecturer_Fixed_Term_19A","Point 7","March2025","Lecturer_Fixed_Term_19APoint 7March2025",63623.078954295001]
["Lecturer_Fixed_Term_19A","Point 8","March2025","Lecturer_Fixed_Term_19APoint 8March2025",65623.235948894988]
["Lecturer_Fixed_Term_19A","Point 9","March2025","Lecturer_Fixed_Term_19APoint 9March2025",67626.584683380002]
["Lecturer_Fixed_Term_19A","Point 10","March2025","Lecturer_Fixed_Term_19APoint 10March2025",69662.914730010001]
["Lecturer_Fixed_Term_19A","Point 11","March2025","Lecturer_Fixed_Term_19APoint 11March2025",71507.740383540004]
["Lecturer_Fixed_Term_19D","Point 1","March2025","Lecturer_Fixed_Term_19DPoint 1March2025",49020.5]
["Lecturer_Fixed_Term_19D","Point 2","March2025","Lecturer_Fixed_Term_19DPoint 2March2025",51062.944199999998]
["Lecturer_Fixed_Term_19D","Point 3","March2025","Lecturer_Fixed_Term_19DPoint 3March2025",53200.984316474998]
["Lecturer_Fixed_Term_19D","Point 4","March2025","Lecturer_Fixed_Term_19DPoint 4March2025",54979.847345714996]
["Lecturer_Fixed_Term_19D","Point 5","March2025","Lecturer_Fixed_Term_19DPoint 5March2025",56784.244294034994]
["Lecturer_Fixed_Term_19D","Point 6","March2025","Lecturer_Fixed_Term_19DPoint 6March2025",58648.220386875]
["Lecturer_Fixed_Term_19D","Point 7","March2025","Lecturer_Fixed_Term_19DPoint 7March2025",60555.816924810002]
["Lecturer_Fixed_Term_19D","Point 8","March2025","Lecturer_Fixed_Term_19DPoint 8March2025",62457.029982975]
["Lecturer_Fixed_Term_19D","Point 9","March2025","Lecturer_Fixed_Term_19DPoint 9March2025",64362.498694320006]
["Lecturer_Fixed_Term_19D","Point 10","March2025","Lecturer_Fixed_Term_19DPoint 10March2025",66283.926105089995]
["Lecturer_Fixed_Term_19D","Point 11","March2025","Lecturer_Fixed_Term_19DPoint 11March2025",68040.446955135005]
["Personal_Professor_20A","Point 1","March2025","Personal_Professor_20APoint 1March2025",167308.87694510998]
["Personal_Professor_20D","Point 1","March2025","Personal_Professor_20DPoint 1March2025",158943.32670652497]
["Professor_In_117A","Point 1","March2025","Professor_In_117APoint 1March2025",103476.2070717]
["Professor_In_117A","Point 2","March2025","Professor_In_117APoint 2March2025",110434.200021]
["Professor_In_117A","Point 3","March2025","Professor_In_117APoint 3March2025",117407.08775643]
["Professor_In_117A","Point 4","March2025","Professor_In_117APoint 4March2025",124372.528098795]
["Professor_In_117A","Point 5","March2025","Professor_In_117APoint 5March2025",131345.41583422502]
["Professor_In_117A","Point 6","March2025","Professor_In_117APoint 6March2025",138308.72835000002]
["Professor_In_117D","Point 1","March2025","Professor_In_117DPoint 1March2025",98299.204978230002]
["Professor_In_117D","Point 2","March2025","Professor_In_117DPoint 2March2025",104916.74567313]
["Professor_In_117D","Point 3","March2025","Professor_In_117DPoint 3March2025",111541.73376109502]
["Professor_In_117D","Point 4","March2025","Professor_In_117DPoint 4March2025",118157.146629405]
["Professor_In_117D","Point 5","March2025","Professor_In_117DPoint 5March2025",124780.00689078]
["Professor_In_117D","Point 6","March2025","Professor_In_117DPoint 6March2025",131395.41975909]
["Professors_116A","Point 1","March2025","Professors_116APoint 1March2025",142869.724645665]
["Professors_116A","Point 2","March2025","Professors_116APoint 2March2025",151016.10874547999]
["Professors_116A","Point 3","March2025","Professors_116APoint 3March2025",159162.492845295]
["Professors_116A","Point 4","March2025","Professors_116APoint 4March2025",167308.87694510998]
["Professors_116A","Point 5","March2025","Professors_116APoint 5March2025",175456.32495822001]
["Professors_116A","Point 6","March2025","Professors_116APoint 6March2025",180620.56009215]
["Professors_116D","Point 1","March2025","Professors_116DPoint 1March2025",135724.48295644499]
["Professors_116D","Point 2","March2025","Professors_116DPoint 2March2025",143466.58000415997]
["Professors_116D","Point 3","March2025","Professors_116DPoint 3March2025",151205.48531198999]
["Professors_116D","Point 4","March2025","Professors_116DPoint 4March2025",158943.32670652497]
["Professors_116D","Point 5","March2025","Professors_116DPoint 5March2025",166682.23201435502]
["Professors_116D","Point 6","March2025","Professors_116DPoint 6March2025",174421.13732218501]
["Salaried_University_Fellow_83A","Point 1","March2025","Salaried_University_Fellow_83APoint 1March2025",44988.58]
["Salaried_University_Fellow_83A","Point 2","March2025","Salaried_University_Fellow_83APoint 2March2025",46316.73]
["Salaried_University_Fellow_83A","Point 3","March2025","Salaried_University_Fellow_83APoint 3March2025",47661.04]
["Salaried_University_Fellow_83D","Point 1","March2025","Salaried_University_Fellow_83DPoint 1March2025",43060.49]
["Salaried_University_Fellow_83D","Point 2","March2025","Salaried_University_Fellow_83DPoint 2March2025",44322.99]
["Salaried_University_Fellow_83D","Point 3","March2025","Salaried_University_Fellow_83DPoint 3March2025",45603.67]
["Senior_Statutory_Lecturers_21A","Point 1","March2025","Senior_Statutory_Lecturers_21APoint 1March2025",83030.985281685003]
["Senior_Statutory_Lecturers_21A","Point 2","March2025","Senior_Statutory_Lecturers_21APoint 2March2025",87973.926450254992]
["Senior_Statutory_Lecturers_21A","Point 3","March2025","Senior_Statutory_Lecturers_21APoint 3March2025",92939.209798020005]
["Senior_Statutory_Lecturers_21A","Point 4","March2025","Senior_Statutory_Lecturers_21APoint 4March2025",97891.726186244996]
["Senior_Statutory_Lecturers_21A","Point 5","March2025","Senior_Statutory_Lecturers_21APoint 5March2025",102827.21996174999]
["Senior_Statutory_Lecturers_21A","Point 6","March2025","Senior_Statutory_Lecturers_21APoint 6March2025",107804.20635575999]
["Senior_Statutory_Lecturers_21A","Point 7","March2025","Senior_Statutory_Lecturers_21APoint 7March2025",112753.5310041]
["Senior_Statutory_Lecturers_21A","Point 8","March2025","Senior_Statutory_Lecturers_21APoint 8March2025",117664.55477382]
["Senior_Statutory_Lecturers_21D","Point 1","March2025","Senior_Statutory_Lecturers_21DPoint 1March2025",80186.081130854989]
["Senior_Statutory_Lecturers_21D","Point 2","March2025","Senior_Statutory_Lecturers_21DPoint 2March2025",83571.453235545006]
["Senior_Statutory_Lecturers_21D","Point 3","March2025","Senior_Statutory_Lecturers_21DPoint 3March2025",88293.100438755006]
["Senior_Statutory_Lecturers_21D","Point 4","March2025","Senior_Statutory_Lecturers_21DPoint 4March2025",92994.533289359984]
["Senior_Statutory_Lecturers_21D","Point 5","March2025","Senior_Statutory_Lecturers_21DPoint 5March2025",97691.710486785014]
["Senior_Statutory_Lecturers_21D","Point 6","March2025","Senior_Statutory_Lecturers_21DPoint 6March2025",102421.868996355]
["Senior_Statutory_Lecturers_21D","Point 7","March2025","Senior_Statutory_Lecturers_21DPoint 7March2025",107116.91836719001]
["Senior_Statutory_Lecturers_21D","Point 8","March2025","Senior_Statutory_Lecturers_21DPoint 8March2025",111784.30599235499]
["Technical_Officer_09A","Point 1","March2025","Technical_Officer_09APoint 1March2025",50625.39]
["Technical_Officer_09A","Point 2","March2025","Technical_Officer_09APoint 2March2025",52820.043527999995]
["Technical_Officer_09A","Point 3","March2025","Technical_Officer_09APoint 3March2025",55300.085247510004]
["Technical_Officer_09A","Point 4","March2025","Technical_Officer_09APoint 4March2025",57738.574519649999]
["Technical_Officer_09A","Point 5","March2025","Technical_Officer_09APoint 5March2025",60296.222080830004]
["Technical_Officer_09D","Point 1","March2025","Technical_Officer_09DPoint 1March2025",48416.52]
["Technical_Officer_09D","Point 2","March2025","Technical_Officer_09DPoint 2March2025",50455.71]
["Technical_Officer_09D","Point 3","March2025","Technical_Officer_09DPoint 3March2025",52726.398347999995]
["Technical_Officer_09D","Point 4","March2025","Technical_Officer_09DPoint 4March2025",54994.742131845007]
["Technical_Officer_09D","Point 5","March2025","Technical_Officer_09DPoint 5March2025",57399.186178545009]
["Post_Doc_Res_Res_Ass_Iua_2013_66A_13","Point 1","March2025",{"$f":"A1290&B1290&C1290","v":"Post_Doc_Res_Res_Ass_Iua_2013_66A_13Point 1March2025"},48412.480000000003]
["Post_Doc_Res_Res_Ass_Iua_2013_66A_13","Point 2","March2025","Post_Doc_Res_Res_Ass_Iua_2013_66A_13Point 2March2025",49671.95]
["Post_Doc_Res_Res_Ass_Iua_2013_66A_13","Point 3","March2025","Post_Doc_Res_Res_Ass_Iua_2013_66A_13Point 3March2025",50969.8]
["Post_Doc_Res_Res_Ass_Iua_2013_66A_13","Point 4","March2025","Post_Doc_Res_Res_Ass_Iua_2013_66A_13Point 4March2025",52341.412607999999]
["Post_Doc_Res_Res_Ass_Iua_2013_66A_13","Point 5","March2025","Post_Doc_Res_Res_Ass_Iua_2013_66A_13Point 5March2025",53770.1779293]
["Post_Doc_Res_Res_Ass_Iua_2013_66A_13","Point 6","March2025","Post_Doc_Res_Res_Ass_Iua_2013_66A_13Point 6March2025",55281.998721495002]
["Post_Doc_Res_Res_Ass_Iua_2013_66A_13","Point 7","March2025","Post_Doc_Res_Res_Ass_Iua_2013_66A_13Point 7March2025",56854.462571504999]
["Post_Doc_Res_Res_Ass_Iua_2013_66A_13","Point 8","March2025","Post_Doc_Res_Res_Ass_Iua_2013_66A_13Point 8March2025",58480.122086265001]
["Post_Doc_Researcher_Research_Associate_66A","Point 1","March2025","Post_Doc_Researcher_Research_Associate_66APoint 1March2025",49020.5]
["Post_Doc_Researcher_Research_Associate_66A","Point 2","March2025","Post_Doc_Researcher_Research_Associate_66APoint 2March2025",51062.944199999998]
["Post_Doc_Researcher_Research_Associate_66A","Point 3","March2025","Post_Doc_Researcher_Research_Associate_66APoint 3March2025",53200.984316474998]
["Post_Doc_Researcher_Research_Associate_66A","Point 4","March2025","Post_Doc_Researcher_Research_Associate_66APoint 4March2025",54979.847345714996]
["Post_Doc_Researcher_Research_Associate_66A","Point 5","March2025","Post_Doc_Researcher_Research_Associate_66APoint 5March2025",56784.244294034994]
["Post_Doc_Researcher_Research_Associate_66A","Point 6","March2025","Post_Doc_Researcher_Research_Associate_66APoint 6March2025",58648.220386875]
["Post_Doc_Researcher_Research_Associate_66A","Point 7","March2025","Post_Doc_Researcher_Research_Associate_66APoint 7March2025",60555.816924810002]
["Post_Doc_Researcher_Research_Associate_66A","Point 8","March2025","Post_Doc_Researcher_Research_Associate_66APoint 8March2025",62457.029982975]
["Post_Doc_Researcher_Research_Associate_66A","Point 9","March2025","Post_Doc_Researcher_Research_Associate_66APoint 9March2025",64362.498694320006]
["Post_Doc_Researcher_Research_Associate_66A","Point 10","March2025","Post_Doc_Researcher_Research_Associate_66APoint 10March2025",66283.926105089995]
["Post_Doc_Researcher_Research_Associate_66A","Point 11","March2025","Post_Doc_Researcher_Research_Associate_66APoint 11March2025",68040.446955135005]
["Post_Doc_Researcher_Research_Associate_66D","Point 1","March2025","Post_Doc_Researcher_Research_Associate_66DPoint 1March2025",46849]
["Post_Doc_Researcher_Research_Associate_66D","Point 2","March2025","Post_Doc_Researcher_Research_Associate_66DPoint 2March2025",48789.21]
["Post_Doc_Researcher_Research_Associate_66D","Point 3","March2025","Post_Doc_Researcher_Research_Associate_66DPoint 3March2025",50763.76]
["Post_Doc_Researcher_Research_Associate_66D","Point 4","March2025","Post_Doc_Researcher_Research_Associate_66DPoint 4March2025",52391.356704000005]
["Post_Doc_Researcher_Research_Associate_66D","Point 5","March2025","Post_Doc_Researcher_Research_Associate_66DPoint 5March2025",54051.051039179998]
["Post_Doc_Researcher_Research_Associate_66D","Point 6","March2025","Post_Doc_Researcher_Research_Associate_66DPoint 6March2025",55803.316236045001]
["Post_Doc_Researcher_Research_Associate_66D","Point 7","March2025","Post_Doc_Researcher_Research_Associate_66DPoint 7March2025",57599.201878004998]
["Post_Doc_Researcher_Research_Associate_66D","Point 8","March2025","Post_Doc_Researcher_Research_Associate_66DPoint 8March2025",59394.023606670009]
["Post_Doc_Researcher_Research_Associate_66D","Point 9","March2025","Post_Doc_Researcher_Research_Associate_66DPoint 9March2025",61205.867948054998]
["Post_Doc_Researcher_Research_Associate_66D","Point 10","March2025","Post_Doc_Researcher_Research_Associate_66DPoint 10March2025",63030.479248980002]
["Post_Doc_Researcher_Research_Associate_66D","Point 11","March2025","Post_Doc_Researcher_Research_Associate_66DPoint 11March2025",64701.887035425003]
["Research_Assistant_65A","Point 1","March2025","Research_Assistant_65APoint 1March2025",31408.12]
["Research_Assistant_65A","Point 2","March2025","Research_Assistant_65APoint 2March2025",32413.07]
["Research_Assistant_65A","Point 3","March2025","Research_Assistant_65APoint 3March2025",33441.25]
["Research_Assistant_65A","Point 4","March2025","Research_Assistant_65APoint 4March2025",34080.58]
["Research_Assistant_65A","Point 5","March2025","Research_Assistant_65APoint 5March2025",35172.39]
["Research_Assistant_65A","Point 6","March2025","Research_Assistant_65APoint 6March2025",36092.5]
["Research_Assistant_65A","Point 7","March2025","Research_Assistant_65APoint 7March2025",37071.19]
["Research_Assistant_65A","Point 8","March2025","Research_Assistant_65APoint 8March2025",38002.410000000003]
["Research_Assistant_65A","Point 9","March2025","Research_Assistant_65APoint 9March2025",38081.19]
["Research_Assistant_65A","Point 10","March2025","Research_Assistant_65APoint 10March2025",38915.449999999997]
["Research_Assistant_65A","Point 11","March2025","Research_Assistant_65APoint 11March2025",39869.9]
["Research_Assistant_65A","Point 12","March2025","Research_Assistant_65APoint 12March2025",41020.29]
["Research_Assistant_65A","Point 13","March2025","Research_Assistant_65APoint 13March2025",42084.83]
["Research_Assistant_65A","Point 14","March2025","Research_Assistant_65APoint 14March2025",43811.93]
["Research_Assistant_65A","Point 15","March2025","Research_Assistant_65APoint 15March2025",45533.98]
["Research_Assistant_65A_20","Point 1","March2025","Research_Assistant_65A_20Point 1March2025",32961.5]
["Research_Assistant_65A_20","Point 2","March2025","Research_Assistant_65A_20Point 2March2025",33782.630000000005]
["Research_Assistant_65A_20","Point 3","March2025","Research_Assistant_65A_20Point 3March2025",34203.800000000003]
["Research_Assistant_65A_20","Point 4","March2025","Research_Assistant_65A_20Point 4March2025",35063.31]
["Research_Assistant_65A_20","Point 5","March2025","Research_Assistant_65A_20Point 5March2025",35946.050000000003]
["Research_Assistant_65A_20","Point 6","March2025","Research_Assistant_65A_20Point 6March2025",36855.050000000003]
["Research_Assistant_65A_20","Point 7","March2025","Research_Assistant_65A_20Point 7March2025",37796.370000000003]
["Research_Assistant_65A_20","Point 8","March2025","Research_Assistant_65A_20Point 8March2025",38419.54]
["Research_Assistant_65A_20","Point 9","March2025","Research_Assistant_65A_20Point 9March2025",39379.040000000001]
["Research_Assistant_65A_20","Point 10","March2025","Research_Assistant_65A_20Point 10March2025",40189.06]
["Research_Assistant_65A_20","Point 11","March2025","Research_Assistant_65A_20Point 11March2025",40847.58]
["Research_Assistant_65A_20","Point 12","March2025","Research_Assistant_65A_20Point 12March2025",41879.800000000003]
["Research_Assistant_65A_20","Point 13","March2025","Research_Assistant_65A_20Point 13March2025",42943.33]
["Research_Assistant_Iua_2013_65A_13","Point 1","March2025","Research_Assistant_Iua_2013_65A_13Point 1March2025",30630.420000000002]
["Research_Assistant_Iua_2013_65A_13","Point 2","March2025","Research_Assistant_Iua_2013_65A_13Point 2March2025",31382.87]
["Research_Assistant_Iua_2013_65A_13","Point 3","March2025","Research_Assistant_Iua_2013_65A_13Point 3March2025",32157.54]
["Research_Assistant_Iua_2013_65A_13","Point 4","March2025","Research_Assistant_Iua_2013_65A_13Point 4March2025",32954.43]
["Research_Assistant_Iua_2013_65A_13","Point 5","March2025","Research_Assistant_Iua_2013_65A_13Point 5March2025",33773.54]
["Research_Assistant_Iua_2013_65A_13","Point 6","March2025","Research_Assistant_Iua_2013_65A_13Point 6March2025",34618.910000000003]
["Research_Assistant_Iua_2013_65A_13","Point 7","March2025",{"$f":"A1354&B1354&C1354","v":"Research_Assistant_Iua_2013_65A_13Point 7March2025"},35489.53]
["Research_Assistant_Iua_2013_65A_13","Point 8","March2025","Research_Assistant_Iua_2013_65A_13Point 8March2025",36387.42]
["Research_Assistant_Iua_2013_65A_13","Point 9","March2025","Research_Assistant_Iua_2013_65A_13Point 9March2025",37310.559999999998]
["Research_Assistant_Iua_2013_65A_13","Point 10","March2025","Research_Assistant_Iua_2013_65A_13Point 10March2025",37927.67]
["Research_Assistant_Iua_2013_65A_13","Point 11","March2025","Research_Assistant_Iua_2013_65A_13Point 11March2025",38873.03]
["Research_Assistant_Iua_2013_65A_13","Point 12","March2025","Research_Assistant_Iua_2013_65A_13Point 12March2025",39846.67]
["Research_Assistant_Iua_2013_65A_13","Point 13","March2025","Research_Assistant_Iua_2013_65A_13Point 13March2025",40848.590000000004]
["Research_Assistant_Iua_2013_65A_13","Point 14","March2025","Research_Assistant_Iua_2013_65A_13Point 14March2025",41880.81]
["Research_Assistant_Iua_2013_65A_13","Point 15","March2025","Research_Assistant_Iua_2013_65A_13Point 15March2025",42943.33]
["Research_Fellow_67A","Point 1","March2025","Research_Fellow_67APoint 1March2025",74238.805811804996]
["Research_Fellow_67A","Point 2","March2025","Research_Fellow_67APoint 2March2025",80072.242408290011]
["Research_Fellow_67A","Point 3","March2025","Research_Fellow_67APoint 3March2025",84657.708709739993]
["Research_Fellow_67A","Point 4","March2025","Research_Fellow_67APoint 4March2025",90551.788364039996]
["Research_Fellow_67A","Point 5","March2025","Research_Fellow_67APoint 5March2025",96427.781492324983]
["Research_Fellow_Iua_2013_67A_13","Point 1","March2025","Research_Fellow_Iua_2013_67A_13Point 1March2025",65237.035422809997]
["Research_Fellow_Iua_2013_67A_13","Point 2","March2025","Research_Fellow_Iua_2013_67A_13Point 2March2025",67127.609348024998]
["Research_Fellow_Iua_2013_67A_13","Point 3","March2025","Research_Fellow_Iua_2013_67A_13Point 3March2025",69077.762417760008]
["Research_Fellow_Iua_2013_67A_13","Point 4","March2025","Research_Fellow_Iua_2013_67A_13Point 4March2025",71084.302892130014]
["Senior_Research_Fellow_68A","Point 1","March2025","Senior_Research_Fellow_68APoint 1March2025",92994.533289359984]
["Senior_Research_Fellow_68A","Point 2","March2025","Senior_Research_Fellow_68APoint 2March2025",97691.710486785014]
["Senior_Research_Fellow_68A","Point 3","March2025","Senior_Research_Fellow_68APoint 3March2025",102421.868996355]
["Senior_Research_Fellow_68A","Point 4","March2025","Senior_Research_Fellow_68APoint 4March2025",107116.91836719001]
["Senior_Research_Fellow_68A","Point 5","March2025","Senior_Research_Fellow_68APoint 5March2025",111784.30599235499]
["Fixed_Amount","Point 1","March2025","Fixed_AmountPoint 1March2025",0]
["Research_Assistant","Point 1","August2025","Research_AssistantPoint 1August2025",33291.419961588326]
["Research_Assistant","Point 2","August2025","Research_AssistantPoint 2August2025",34120.04459279764]
["Research_Assistant","Point 3","August2025","Research_AssistantPoint 3August2025",34544.647488210663]
["Research_Assistant","Point 4","August2025","Research_AssistantPoint 4August2025",35412.848970565879]
["Research_Assistant","Point 5","August2025","Research_AssistantPoint 5August2025",36304.733961279468]
["Research_Assistant","Point 6","August2025","Research_AssistantPoint 6August2025",37224.512691436394]
["Research_Assistant","Point 7","August2025","Research_AssistantPoint 7August2025",38173.997247465108]
["Research_Assistant","Point 8","August2025","Research_AssistantPoint 8August2025",38803.447576505321]
["Research_Assistant","Point 9","August2025","Research_AssistantPoint 9August2025",39772.295527813374]
["Research_Assistant","Point 10","August2025","Research_AssistantPoint 10August2025",40589.968595553997]
["Research_Assistant","Point 11","August2025","Research_AssistantPoint 11August2025",41255.785760861829]
["Research_Assistant","Point 12","August2025","Research_AssistantPoint 12August2025",42298.631923392175]
["Research_Assistant","Point 13","August2025","Research_AssistantPoint 13August2025",43372.419675360259]
["Post_Doctoral_Researcher_PD1","PD1 Point 1","August2025","Post_Doctoral_Researcher_PD1PD1 Point 1August2025",46305.384511472919]
["Post_Doctoral_Researcher_PD1","PD1 Point 2","August2025","Post_Doctoral_Researcher_PD1PD1 Point 2August2025",46905.146999791374]
["Post_Doctoral_Researcher_PD1","PD1 Point 3","August2025","Post_Doctoral_Researcher_PD1PD1 Point 3August2025",48896.066382389145]
["Post_Doctoral_Researcher_PD1","PD1 Point 4","August2025","Post_Doctoral_Researcher_PD1PD1 Point 4August2025",50168.109503717365]
["Post_Doctoral_Researcher_PD1","PD1 Point 5","August2025","Post_Doctoral_Researcher_PD1PD1 Point 5August2025",51477.970123247251]
["Post_Doctoral_Researcher_PD1","PD1 Point 6","August2025","Post_Doctoral_Researcher_PD1PD1 Point 6August2025",52862.591004925882]
["Post_Doctoral_Researcher_PD2","PD2 Point 1","August2025","Post_Doctoral_Researcher_PD2PD2 Point 1August2025",54307.409127814048]
["Post_Doctoral_Researcher_PD2","PD2 Point 2","August2025","Post_Doctoral_Researcher_PD2PD2 Point 2August2025",55834.504391397852]
["Post_Doctoral_Researcher_PD2","PD2 Point 3","August2025","Post_Doctoral_Researcher_PD2PD2 Point 3August2025",57423.595736799776]
["Post_Doctoral_Researcher_PD2","PD2 Point 4","August2025","Post_Doctoral_Researcher_PD2PD2 Point 4August2025",59063.305609512288]
["Research_Fellow","Point 1","August2025","Research_FellowPoint 1August2025",65889.309514273467]
["Research_Fellow","Point 2","August2025","Research_FellowPoint 2August2025",67800.394464712124]
["Research_Fellow","Point 3","August2025","Research_FellowPoint 3August2025",69768.974449630958]
["Research_Fellow","Point 4","August2025","Research_FellowPoint 4August2025",71796.299361083846]
["Senior_Research_Fellow","Point 1","August2025","Senior_Research_FellowPoint 1August2025",80149.327957409259]
["Senior_Research_Fellow","Point 2","August2025","Senior_Research_FellowPoint 2August2025",82487.875990287459]
["Senior_Research_Fellow","Point 3","August2025","Senior_Research_FellowPoint 3August2025",83599.030026219363]
["Senior_Research_Fellow","Point 4","August2025","Senior_Research_FellowPoint 4August2025",86013.821474386466]
["Admin_Officer_01D","Point 1","August2025","Admin_Officer_01DPoint 1August2025",81488.683373588239]
["Admin_Officer_01D","Point 2","August2025","Admin_Officer_01DPoint 2August2025",85703.077996008142]
["Admin_Officer_01D","Point 3","August2025","Admin_Officer_01DPoint 3August2025",91217.681056247558]
["Admin_Officer_01D","Point 4","August2025","Admin_Officer_01DPoint 4August2025",96731.209564059012]
["Admin_Officer_01D","Point 5","August2025","Admin_Officer_01DPoint 5August2025",102269.4527777133]
["Admin_Officer_Current_Serving_Employee_01A","Point 1","August2025","Admin_Officer_Current_Serving_Employee_01APoint 1August2025",84391.049481481197]
["Admin_Officer_Current_Serving_Employee_01A","Point 2","August2025","Admin_Officer_Current_Serving_Employee_01APoint 2August2025",90210.825431258389]
["Admin_Officer_Current_Serving_Employee_01A","Point 3","August2025","Admin_Officer_Current_Serving_Employee_01APoint 3August2025",96022.004961611994]
["Admin_Officer_Current_Serving_Employee_01A","Point 4","August2025","Admin_Officer_Current_Serving_Employee_01APoint 4August2025",101824.58807254198]
["Admin_Officer_Current_Serving_Employee_01A","Point 5","August2025","Admin_Officer_Current_Serving_Employee_01APoint 5August2025",107650.81133688691]
["Chief_Technical_Officer_17A","Point 1","August2025","Chief_Technical_Officer_17APoint 1August2025",68280.284929226851]
["Chief_Technical_Officer_17A","Point 2","August2025","Chief_Technical_Officer_17APoint 2August2025",71117.103339014851]
["Chief_Technical_Officer_17A","Point 3","August2025","Chief_Technical_Officer_17APoint 3August2025",73849.6901632917]
["Chief_Technical_Officer_17A","Point 4","August2025","Chief_Technical_Officer_17APoint 4August2025",76670.390286660448]
["Chief_Technical_Officer_17A","Point 5","August2025","Chief_Technical_Officer_17APoint 5August2025",79549.116241138501]
["Chief_Technical_Officer_17D","Point 1","August2025","Chief_Technical_Officer_17DPoint 1August2025",64978.185318136493]
["Chief_Technical_Officer_17D","Point 2","August2025","Chief_Technical_Officer_17DPoint 2August2025",67668.86459772331]
["Chief_Technical_Officer_17D","Point 3","August2025","Chief_Technical_Officer_17DPoint 3August2025",70258.535949082783]
["Chief_Technical_Officer_17D","Point 4","August2025","Chief_Technical_Officer_17DPoint 4August2025",72947.066123813711]
["Chief_Technical_Officer_17D","Point 5","August2025","Chief_Technical_Officer_17DPoint 5August2025",75679.65294809053]
["Clinical_Research_Support_Officer_166A","Point 1","August2025","Clinical_Research_Support_Officer_166APoint 1August2025",46304.530700000003]
["Clinical_Research_Support_Officer_166A","Point 2","August2025","Clinical_Research_Support_Officer_166APoint 2August2025",46905.369599999998]
["Clinical_Research_Support_Officer_166A","Point 3","August2025","Clinical_Research_Support_Officer_166APoint 3August2025",48896.604800000001]
["Clinical_Research_Support_Officer_166A","Point 4","August2025","Clinical_Research_Support_Officer_166APoint 4August2025",50168.669499999996]
["Grade_2_1761.75_Hrs._06A","Point 1","August2025","Grade_2_1761.75_Hrs._06APoint 1August2025",36384.058199999999]
["Grade_2_1761.75_Hrs._06A","Point 2","August2025","Grade_2_1761.75_Hrs._06APoint 2August2025",37641.841500000002]
["Grade_2_1761.75_Hrs._06A","Point 3","August2025","Grade_2_1761.75_Hrs._06APoint 3August2025",38920.0268]
["Grade_2_1761.75_Hrs._06A","Point 4","August2025","Grade_2_1761.75_Hrs._06APoint 4August2025",39804.453499999996]
["Grade_2_1761.75_Hrs._06A","Point 5","August2025","Grade_2_1761.75_Hrs._06APoint 5August2025",40852.0962]
["Grade_2_1761.75_Hrs._06A","Point 6","August2025","Grade_2_1761.75_Hrs._06APoint 6August2025",41681.4375]
["Grade_2_1761.75_Hrs._06A","Point 7","August2025","Grade_2_1761.75_Hrs._06APoint 7August2025",42897.396699999998]
["Grade_2_1761.75_Hrs._06A","Point 8","August2025","Grade_2_1761.75_Hrs._06APoint 8August2025",44599.943599999999]
["Grade_2_1761.75_Hrs._06A","Point 9","August2025","Grade_2_1761.75_Hrs._06APoint 9August2025",46399.4]
["Grade_2_1761.75_Hrs._06A","Point 10","August2025","Grade_2_1761.75_Hrs._06APoint 10August2025",48185.595100000006]
["Grade_2_1761.75_Hrs._06A","Point 11","August2025","Grade_2_1761.75_Hrs._06APoint 11August2025",49983.011299999998]
["Grade_2_1761.75_Hrs._06A","Point 12","August2025","Grade_2_1761.75_Hrs._06APoint 12August2025",51792.079061999997]
["Grade_2_1761.75_Hrs._06D","Point 1","August2025","Grade_2_1761.75_Hrs._06DPoint 1August2025",34845.7474]
["Grade_2_1761.75_Hrs._06D","Point 2","August2025","Grade_2_1761.75_Hrs._06DPoint 2August2025",36046.405100000004]
["Grade_2_1761.75_Hrs._06D","Point 3","August2025","Grade_2_1761.75_Hrs._06DPoint 3August2025",37255.223599999998]
["Grade_2_1761.75_Hrs._06D","Point 4","August2025","Grade_2_1761.75_Hrs._06DPoint 4August2025",38462.001900000003]
["Grade_2_1761.75_Hrs._06D","Point 5","August2025","Grade_2_1761.75_Hrs._06DPoint 5August2025",39304.604499999994]
["Grade_2_1761.75_Hrs._06D","Point 6","August2025","Grade_2_1761.75_Hrs._06DPoint 6August2025",40268.599000000002]
["Grade_2_1761.75_Hrs._06D","Point 7","August2025","Grade_2_1761.75_Hrs._06DPoint 7August2025",41430.492900000005]
["Grade_2_1761.75_Hrs._06D","Point 8","August2025","Grade_2_1761.75_Hrs._06DPoint 8August2025",42685.215900000003]
["Grade_2_1761.75_Hrs._06D","Point 9","August2025","Grade_2_1761.75_Hrs._06DPoint 9August2025",44409.1849]
["Grade_2_1761.75_Hrs._06D","Point 10","August2025","Grade_2_1761.75_Hrs._06DPoint 10August2025",46095.410199999998]
["Grade_2_1761.75_Hrs._06D","Point 11","August2025","Grade_2_1761.75_Hrs._06DPoint 11August2025",47808.158100000001]
["Grade_2_1761.75_Hrs._06D","Point 12","August2025","Grade_2_1761.75_Hrs._06DPoint 12August2025",49518.8658]
["Grade_3_1761.75_Hrs._11A","Point 1","August2025","Grade_3_1761.75_Hrs._11APoint 1August2025",42773.964599999999]
["Grade_3_1761.75_Hrs._11A","Point 2","August2025","Grade_3_1761.75_Hrs._11APoint 2August2025",44599.943599999999]
["Grade_3_1761.75_Hrs._11A","Point 3","August2025","Grade_3_1761.75_Hrs._11APoint 3August2025",46399.4]
["Grade_3_1761.75_Hrs._11A","Point 4","August2025","Grade_3_1761.75_Hrs._11APoint 4August2025",48185.595100000006]
["Grade_3_1761.75_Hrs._11A","Point 5","August2025","Grade_3_1761.75_Hrs._11APoint 5August2025",49983.011299999998]
["Grade_3_1761.75_Hrs._11A","Point 6","August2025","Grade_3_1761.75_Hrs._11APoint 6August2025",51792.079061999997]
["Grade_3_1761.75_Hrs._11A","Point 7","August2025","Grade_3_1761.75_Hrs._11APoint 7August2025",53631.988858680008]
["Grade_3_1761.75_Hrs._11A","Point 8","August2025","Grade_3_1761.75_Hrs._11APoint 8August2025",55515.676637608791]
["Grade_3_1761.75_Hrs._11A","Point 9","August2025","Grade_3_1761.75_Hrs._11APoint 9August2025",55976.659629199356]
["Grade_3_1761.75_Hrs._11A","Point 10","August2025","Grade_3_1761.75_Hrs._11APoint 10August2025",57953.836096627347]
["Grade_3_1761.75_Hrs._11A","Point 11","August2025","Grade_3_1761.75_Hrs._11APoint 11August2025",59401.258217075992]
["Grade_3_1761.75_Hrs._11D","Point 1","August2025","Grade_3_1761.75_Hrs._11DPoint 1August2025",41314.201500000003]
["Grade_3_1761.75_Hrs._11D","Point 2","August2025","Grade_3_1761.75_Hrs._11DPoint 2August2025",42685.215900000003]
["Grade_3_1761.75_Hrs._11D","Point 3","August2025","Grade_3_1761.75_Hrs._11DPoint 3August2025",44409.1849]
["Grade_3_1761.75_Hrs._11D","Point 4","August2025","Grade_3_1761.75_Hrs._11DPoint 4August2025",46095.410199999998]
["Grade_3_1761.75_Hrs._11D","Point 5","August2025","Grade_3_1761.75_Hrs._11DPoint 5August2025",47808.158100000001]
["Grade_3_1761.75_Hrs._11D","Point 6","August2025","Grade_3_1761.75_Hrs._11DPoint 6August2025",49518.8658]
["Grade_3_1761.75_Hrs._11D","Point 7","August2025","Grade_3_1761.75_Hrs._11DPoint 7August2025",51221.412700000001]
["Grade_3_1761.75_Hrs._11D","Point 8","August2025","Grade_3_1761.75_Hrs._11DPoint 8August2025",52951.001109719997]
["Grade_3_1761.75_Hrs._11D","Point 9","August2025","Grade_3_1761.75_Hrs._11DPoint 9August2025",53364.007568579997]
["Grade_3_1761.75_Hrs._11D","Point 10","August2025","Grade_3_1761.75_Hrs._11DPoint 10August2025",55198.683671363549]
["Grade_3_1761.75_Hrs._11D","Point 11","August2025","Grade_3_1761.75_Hrs._11DPoint 11August2025",56565.51435971594]
["Grade_4_02A","Point 1","August2025","Grade_4_02APoint 1August2025",54043.5398113173]
["Grade_4_02A","Point 2","August2025","Grade_4_02APoint 2August2025",55976.659629199356]
["Grade_4_02A","Point 3","August2025","Grade_4_02APoint 3August2025",57953.836096627347]
["Grade_4_02A","Point 4","August2025","Grade_4_02APoint 4August2025",59401.258217075992]
["Grade_4_02A","Point 5","August2025","Grade_4_02APoint 5August2025",60891.662434642654]
["Grade_4_02A","Point 6","August2025","Grade_4_02APoint 6August2025",62460.508979449653]
["Grade_4_02A","Point 7","August2025","Grade_4_02APoint 7August2025",63987.447979566605]
["Grade_4_02A","Point 8","August2025","Grade_4_02APoint 8August2025",67677.461017146896]
["Grade_4_02A","Point 9","August2025","Grade_4_02APoint 9August2025",69800.776614776099]
["Grade_4_02D","Point 1","August2025","Grade_4_02DPoint 1August2025",51597.505188000003]
["Grade_4_02D","Point 2","August2025","Grade_4_02DPoint 2August2025",53364.007568579997]
["Grade_4_02D","Point 3","August2025","Grade_4_02DPoint 3August2025",55198.683671363549]
["Grade_4_02D","Point 4","August2025","Grade_4_02DPoint 4August2025",56565.51435971594]
["Grade_4_02D","Point 5","August2025","Grade_4_02DPoint 5August2025",57966.730725762747]
["Grade_4_02D","Point 6","August2025","Grade_4_02DPoint 6August2025",59445.314866621949]
["Grade_4_02D","Point 7","August2025","Grade_4_02DPoint 7August2025",60903.482511350107]
["Grade_4_02D","Point 8","August2025","Grade_4_02DPoint 8August2025",64396.852454615546]
["Grade_4_02D","Point 9","August2025","Grade_4_02DPoint 9August2025",66417.011019161553]
["Grade_5_25A","Point 1","August2025","Grade_5_25APoint 1August2025",62249.896703571445]
["Grade_5_25A","Point 2","August2025","Grade_5_25APoint 2August2025",64905.115753035898]
["Grade_5_25A","Point 3","August2025","Grade_5_25APoint 3August2025",67677.461017146896]
["Grade_5_25A","Point 4","August2025","Grade_5_25APoint 4August2025",69800.776614776099]
["Grade_5_25A","Point 5","August2025","Grade_5_25APoint 5August2025",71996.087225077965]
["Grade_5_25A","Point 6","August2025","Grade_5_25APoint 6August2025",74160.235814969259]
["Grade_5_25A","Point 7","August2025","Grade_5_25APoint 7August2025",84391.049481481197]
["Grade_5_25D","Point 1","August2025","Grade_5_25DPoint 1August2025",59240.075352883505]
["Grade_5_25D","Point 2","August2025","Grade_5_25DPoint 2August2025",61769.571768277805]
["Grade_5_25D","Point 3","August2025","Grade_5_25DPoint 3August2025",64396.852454615546]
["Grade_5_25D","Point 4","August2025","Grade_5_25DPoint 4August2025",66417.011019161553]
["Grade_5_25D","Point 5","August2025","Grade_5_25DPoint 5August2025",68509.164596380186]
["Grade_5_25D","Point 6","August2025","Grade_5_25DPoint 6August2025",70561.55973376472]
["Grade_5_25D","Point 7","August2025","Grade_5_25DPoint 7August2025",81488.683373588239]
["Junior_Lecturer_Old_Scale_62D","Point 1","August2025","Junior_Lecturer_Old_Scale_62DPoint 1August2025",50958.226900000001]
["Lecturer_128A","Point 1","August2025","Lecturer_128APoint 1August2025",64259.309743837948]
["Lecturer_128A","Point 2","August2025","Lecturer_128APoint 2August2025",66279.468308383934]
["Lecturer_128A","Point 3","August2025","Lecturer_128APoint 3August2025",68302.850530213807]
["Lecturer_128A","Point 4","August2025","Lecturer_128APoint 4August2025",70359.543877310105]
["Lecturer_128A","Point 5","August2025","Lecturer_128APoint 5August2025",72222.817787375403]
["Lecturer_128A","Point 6","August2025","Lecturer_128APoint 6August2025",78818.420590132504]
["Lecturer_128A","Point 7","August2025","Lecturer_128APoint 7August2025",83744.168919855307]
["Lecturer_128A","Point 8","August2025","Lecturer_128APoint 8August2025",90008.809574803803]
["Lecturer_128A","Point 9","August2025","Lecturer_128APoint 9August2025",96277.748439464107]
["Lecturer_128A","Point 10","August2025","Lecturer_128APoint 10August2025",102513.37617885794]
["Lecturer_Above_Bar_College_36A","Point 1","August2025","Lecturer_Above_Bar_College_36APoint 1August2025",78818.420590132504]
["Lecturer_Above_Bar_College_36A","Point 2","August2025","Lecturer_Above_Bar_College_36APoint 2August2025",83744.168919855307]
["Lecturer_Above_Bar_College_36A","Point 3","August2025","Lecturer_Above_Bar_College_36APoint 3August2025",90008.809574803803]
["Lecturer_Above_Bar_College_36A","Point 4","August2025","Lecturer_Above_Bar_College_36APoint 4August2025",96277.748439464107]
["Lecturer_Above_Bar_College_36A","Point 5","August2025","Lecturer_Above_Bar_College_36APoint 5August2025",102513.37617885794]
["Lecturer_Above_Bar_College_36D","Point 1","August2025","Lecturer_Above_Bar_College_36DPoint 1August2025",74981.193869923052]
["Lecturer_Above_Bar_College_36D","Point 2","August2025","Lecturer_Above_Bar_College_36DPoint 2August2025",80872.964832372905]
["Lecturer_Above_Bar_College_36D","Point 3","August2025","Lecturer_Above_Bar_College_36DPoint 3August2025",85504.285796837386]
["Lecturer_Above_Bar_College_36D","Point 4","August2025","Lecturer_Above_Bar_College_36DPoint 4August2025",91457.30624768039]
["Lecturer_Above_Bar_College_36D","Point 5","August2025","Lecturer_Above_Bar_College_36DPoint 5August2025",97392.05930724823]
["Lecturer_Below_Bar_Junior_33A","Point 1","August2025","Lecturer_Below_Bar_Junior_33APoint 1August2025",51774.390527999996]
["Lecturer_Below_Bar_Junior_33A","Point 2","August2025","Lecturer_Below_Bar_Junior_33APoint 2August2025",54013.452343334699]
["Lecturer_Below_Bar_Junior_33A","Point 3","August2025","Lecturer_Below_Bar_Junior_33APoint 3August2025",56381.765894536504]
["Lecturer_Below_Bar_Junior_33A","Point 4","August2025","Lecturer_Below_Bar_Junior_33APoint 4August2025",58306.289292994945]
["Lecturer_Below_Bar_Junior_33A","Point 5","August2025","Lecturer_Below_Bar_Junior_33APoint 5August2025",60234.036348737245]
["Lecturer_Below_Bar_Junior_33A","Point 6","August2025","Lecturer_Below_Bar_Junior_33APoint 6August2025",62234.852969580148]
["Lecturer_Below_Bar_Junior_33A","Point 7","August2025","Lecturer_Below_Bar_Junior_33APoint 7August2025",64259.309743837948]
["Lecturer_Below_Bar_Junior_33A","Point 8","August2025","Lecturer_Below_Bar_Junior_33APoint 8August2025",66279.468308383934]
["Lecturer_Below_Bar_Junior_33A","Point 9","August2025","Lecturer_Below_Bar_Junior_33APoint 9August2025",68302.850530213807]
["Lecturer_Below_Bar_Junior_33A","Point 10","August2025","Lecturer_Below_Bar_Junior_33APoint 10August2025",70359.543877310105]
["Lecturer_Below_Bar_Junior_33A","Point 11","August2025","Lecturer_Below_Bar_Junior_33APoint 11August2025",72222.817787375403]
["Lecturer_Below_Bar_Junior_33D","Point 1","August2025","Lecturer_Below_Bar_Junior_33DPoint 1August2025",49510.705000000002]
["Lecturer_Below_Bar_Junior_33D","Point 2","August2025","Lecturer_Below_Bar_Junior_33DPoint 2August2025",51573.573641999996]
["Lecturer_Below_Bar_Junior_33D","Point 3","August2025","Lecturer_Below_Bar_Junior_33DPoint 3August2025",53732.994159639748]
["Lecturer_Below_Bar_Junior_33D","Point 4","August2025","Lecturer_Below_Bar_Junior_33DPoint 4August2025",55529.645819172147]
["Lecturer_Below_Bar_Junior_33D","Point 5","August2025","Lecturer_Below_Bar_Junior_33DPoint 5August2025",57352.086736975347]
["Lecturer_Below_Bar_Junior_33D","Point 6","August2025","Lecturer_Below_Bar_Junior_33DPoint 6August2025",59234.702590743749]
["Lecturer_Below_Bar_Junior_33D","Point 7","August2025","Lecturer_Below_Bar_Junior_33DPoint 7August2025",61161.375094058101]
["Lecturer_Below_Bar_Junior_33D","Point 8","August2025","Lecturer_Below_Bar_Junior_33DPoint 8August2025",63081.600282804749]
["Lecturer_Below_Bar_Junior_33D","Point 9","August2025","Lecturer_Below_Bar_Junior_33DPoint 9August2025",65006.123681263205]
["Lecturer_Below_Bar_Junior_33D","Point 10","August2025","Lecturer_Below_Bar_Junior_33DPoint 10August2025",66946.765366140899]
["Lecturer_Below_Bar_Junior_33D","Point 11","August2025","Lecturer_Below_Bar_Junior_33DPoint 11August2025",68720.851424686349]
["Lecturer_Fixed_Term_19A","Point 1","August2025","Lecturer_Fixed_Term_19APoint 1August2025",51774.390527999996]
["Lecturer_Fixed_Term_19A","Point 2","August2025","Lecturer_Fixed_Term_19APoint 2August2025",54013.452343334699]
["Lecturer_Fixed_Term_19A","Point 3","August2025","Lecturer_Fixed_Term_19APoint 3August2025",56381.765894536504]
["Lecturer_Fixed_Term_19A","Point 4","August2025","Lecturer_Fixed_Term_19APoint 4August2025",58306.289292994945]
["Lecturer_Fixed_Term_19A","Point 5","August2025","Lecturer_Fixed_Term_19APoint 5August2025",60234.036348737245]
["Lecturer_Fixed_Term_19A","Point 6","August2025","Lecturer_Fixed_Term_19APoint 6August2025",62234.852969580148]
["Lecturer_Fixed_Term_19A","Point 7","August2025","Lecturer_Fixed_Term_19APoint 7August2025",64259.309743837948]
["Lecturer_Fixed_Term_19A","Point 8","August2025","Lecturer_Fixed_Term_19APoint 8August2025",66279.468308383934]
["Lecturer_Fixed_Term_19A","Point 9","August2025","Lecturer_Fixed_Term_19APoint 9August2025",68302.850530213807]
["Lecturer_Fixed_Term_19A","Point 10","August2025","Lecturer_Fixed_Term_19APoint 10August2025",70359.543877310105]
["Lecturer_Fixed_Term_19A","Point 11","August2025","Lecturer_Fixed_Term_19APoint 11August2025",72222.817787375403]
["Lecturer_Fixed_Term_19D","Point 1","August2025","Lecturer_Fixed_Term_19DPoint 1August2025",49510.705000000002]
["Lecturer_Fixed_Term_19D","Point 2","August2025","Lecturer_Fixed_Term_19DPoint 2August2025",51573.573641999996]
["Lecturer_Fixed_Term_19D","Point 3","August2025","Lecturer_Fixed_Term_19DPoint 3August2025",53732.994159639748]
["Lecturer_Fixed_Term_19D","Point 4","August2025","Lecturer_Fixed_Term_19DPoint 4August2025",55529.645819172147]
["Lecturer_Fixed_Term_19D","Point 5","August2025","Lecturer_Fixed_Term_19DPoint 5August2025",57352.086736975347]
["Lecturer_Fixed_Term_19D","Point 6","August2025","Lecturer_Fixed_Term_19DPoint 6August2025",59234.702590743749]
["Lecturer_Fixed_Term_19D","Point 7","August2025","Lecturer_Fixed_Term_19DPoint 7August2025",61161.375094058101]
["Lecturer_Fixed_Term_19D","Point 8","August2025","Lecturer_Fixed_Term_19DPoint 8August2025",63081.600282804749]
["Lecturer_Fixed_Term_19D","Point 9","August2025","Lecturer_Fixed_Term_19DPoint 9August2025",65006.123681263205]
["Lecturer_Fixed_Term_19D","Point 10","August2025","Lecturer_Fixed_Term_19DPoint 10August2025",66946.765366140899]
["Lecturer_Fixed_Term_19D","Point 11","August2025","Lecturer_Fixed_Term_19DPoint 11August2025",68720.851424686349]
["Personal_Professor_20A","Point 1","August2025","Personal_Professor_20APoint 1August2025",168981.96571456108]
["Personal_Professor_20D","Point 1","August2025","Personal_Professor_20DPoint 1August2025",160532.7599735902]
["Professor_In_117A","Point 1","August2025","Professor_In_117APoint 1August2025",104510.969142417]
["Professor_In_117A","Point 2","August2025","Professor_In_117APoint 2August2025",111538.54202121]
["Professor_In_117A","Point 3","August2025","Professor_In_117APoint 3August2025",118581.1586339943]
["Professor_In_117A","Point 4","August2025","Professor_In_117APoint 4August2025",125616.25337978295]
["Professor_In_117A","Point 5","August2025","Professor_In_117APoint 5August2025",132658.86999256726]
["Professor_In_117A","Point 6","August2025","Professor_In_117APoint 6August2025",139691.81563350002]
["Professor_In_117D","Point 1","August2025","Professor_In_117DPoint 1August2025",99282.197028012306]
["Professor_In_117D","Point 2","August2025","Professor_In_117DPoint 2August2025",105965.91312986131]
["Professor_In_117D","Point 3","August2025","Professor_In_117DPoint 3August2025",112657.15109870597]
["Professor_In_117D","Point 4","August2025","Professor_In_117DPoint 4August2025",119338.71809569905]
["Professor_In_117D","Point 5","August2025","Professor_In_117DPoint 5August2025",126027.8069596878]
["Professor_In_117D","Point 6","August2025","Professor_In_117DPoint 6August2025",132709.37395668091]
["Professors_116A","Point 1","August2025","Professors_116APoint 1August2025",144298.42189212167]
["Professors_116A","Point 2","August2025","Professors_116APoint 2August2025",152526.26983293478]
["Professors_116A","Point 3","August2025","Professors_116APoint 3August2025",160754.11777374794]
["Professors_116A","Point 4","August2025","Professors_116APoint 4August2025",168981.96571456108]
["Professors_116A","Point 5","August2025","Professors_116APoint 5August2025",177210.8882078022]
["Professors_116A","Point 6","August2025","Professors_116APoint 6August2025",182426.7656930715]
["Professors_116D","Point 1","August2025","Professors_116DPoint 1August2025",137081.72778600943]
["Professors_116D","Point 2","August2025","Professors_116DPoint 2August2025",144901.24580420158]
["Professors_116D","Point 3","August2025","Professors_116DPoint 3August2025",152717.54016510988]
["Professors_116D","Point 4","August2025","Professors_116DPoint 4August2025",160532.7599735902]
["Professors_116D","Point 5","August2025","Professors_116DPoint 5August2025",168349.05433449856]
["Professors_116D","Point 6","August2025","Professors_116DPoint 6August2025",176165.34869540686]
["Salaried_University_Fellow_83A","Point 1","August2025","Salaried_University_Fellow_83APoint 1August2025",45438.465800000005]
["Salaried_University_Fellow_83A","Point 2","August2025","Salaried_University_Fellow_83APoint 2August2025",46779.897300000004]
["Salaried_University_Fellow_83A","Point 3","August2025","Salaried_University_Fellow_83APoint 3August2025",48137.650399999999]
["Salaried_University_Fellow_83D","Point 1","August2025","Salaried_University_Fellow_83DPoint 1August2025",43491.094899999996]
["Salaried_University_Fellow_83D","Point 2","August2025","Salaried_University_Fellow_83DPoint 2August2025",44766.219899999996]
["Salaried_University_Fellow_83D","Point 3","August2025","Salaried_University_Fellow_83DPoint 3August2025",46059.706699999995]
["Senior_Statutory_Lecturers_21A","Point 1","August2025","Senior_Statutory_Lecturers_21APoint 1August2025",83861.295134501852]
["Senior_Statutory_Lecturers_21A","Point 2","August2025","Senior_Statutory_Lecturers_21APoint 2August2025",88853.665714757546]
["Senior_Statutory_Lecturers_21A","Point 3","August2025","Senior_Statutory_Lecturers_21APoint 3August2025",93868.601896000211]
["Senior_Statutory_Lecturers_21A","Point 4","August2025","Senior_Statutory_Lecturers_21APoint 4August2025",98870.643448107454]
["Senior_Statutory_Lecturers_21A","Point 5","August2025","Senior_Statutory_Lecturers_21APoint 5August2025",103855.49216136748]
["Senior_Statutory_Lecturers_21A","Point 6","August2025","Senior_Statutory_Lecturers_21APoint 6August2025",108882.24841931759]
["Senior_Statutory_Lecturers_21A","Point 7","August2025","Senior_Statutory_Lecturers_21APoint 7August2025",113881.066314141]
["Senior_Statutory_Lecturers_21A","Point 8","August2025","Senior_Statutory_Lecturers_21APoint 8August2025",118841.20032155819]
["Senior_Statutory_Lecturers_21D","Point 1","August2025","Senior_Statutory_Lecturers_21DPoint 1August2025",80987.941942163539]
["Senior_Statutory_Lecturers_21D","Point 2","August2025","Senior_Statutory_Lecturers_21DPoint 2August2025",84407.167767900464]
["Senior_Statutory_Lecturers_21D","Point 3","August2025","Senior_Statutory_Lecturers_21DPoint 3August2025",89176.03144314255]
["Senior_Statutory_Lecturers_21D","Point 4","August2025","Senior_Statutory_Lecturers_21DPoint 4August2025",93924.478622253591]
["Senior_Statutory_Lecturers_21D","Point 5","August2025","Senior_Statutory_Lecturers_21DPoint 5August2025",98668.627591652868]
["Senior_Statutory_Lecturers_21D","Point 6","August2025","Senior_Statutory_Lecturers_21DPoint 6August2025",103446.08768631855]
["Senior_Statutory_Lecturers_21D","Point 7","August2025","Senior_Statutory_Lecturers_21DPoint 7August2025",108188.08755086191]
["Senior_Statutory_Lecturers_21D","Point 8","August2025","Senior_Statutory_Lecturers_21DPoint 8August2025",112902.14905227855]
["Technical_Officer_09A","Point 1","August2025","Technical_Officer_09APoint 1August2025",51131.643900000003]
["Technical_Officer_09A","Point 2","August2025","Technical_Officer_09APoint 2August2025",53348.243963279994]
["Technical_Officer_09A","Point 3","August2025","Technical_Officer_09APoint 3August2025",55853.086099985107]
["Technical_Officer_09A","Point 4","August2025","Technical_Officer_09APoint 4August2025",58315.960264846501]
["Technical_Officer_09A","Point 5","August2025","Technical_Officer_09APoint 5August2025",60899.184301638306]
["Technical_Officer_09D","Point 1","August2025","Technical_Officer_09DPoint 1August2025",48900.6852]
["Technical_Officer_09D","Point 2","August2025","Technical_Officer_09DPoint 2August2025",50960.267099999997]
["Technical_Officer_09D","Point 3","August2025","Technical_Officer_09DPoint 3August2025",53253.662331479994]
["Technical_Officer_09D","Point 4","August2025","Technical_Officer_09DPoint 4August2025",55544.689553163458]
["Technical_Officer_09D","Point 5","August2025","Technical_Officer_09DPoint 5August2025",57973.178040330458]
["Post_Doc_Res_Res_Ass_Iua_2013_66A_13","Point 1","August2025",{"$f":"A1634&B1634&C1634","v":"Post_Doc_Res_Res_Ass_Iua_2013_66A_13Point 1August2025"},48896.604800000001]
["Post_Doc_Res_Res_Ass_Iua_2013_66A_13","Point 2","August2025","Post_Doc_Res_Res_Ass_Iua_2013_66A_13Point 2August2025",50168.669499999996]
["Post_Doc_Res_Res_Ass_Iua_2013_66A_13","Point 3","August2025","Post_Doc_Res_Res_Ass_Iua_2013_66A_13Point 3August2025",51479.498000000007]
["Post_Doc_Res_Res_Ass_Iua_2013_66A_13","Point 4","August2025","Post_Doc_Res_Res_Ass_Iua_2013_66A_13Point 4August2025",52864.826734080001]
["Post_Doc_Res_Res_Ass_Iua_2013_66A_13","Point 5","August2025","Post_Doc_Res_Res_Ass_Iua_2013_66A_13Point 5August2025",54307.879708592998]
["Post_Doc_Res_Res_Ass_Iua_2013_66A_13","Point 6","August2025","Post_Doc_Res_Res_Ass_Iua_2013_66A_13Point 6August2025",55834.81870870995]
["Post_Doc_Res_Res_Ass_Iua_2013_66A_13","Point 7","August2025","Post_Doc_Res_Res_Ass_Iua_2013_66A_13Point 7August2025",57423.007197220046]
["Post_Doc_Res_Res_Ass_Iua_2013_66A_13","Point 8","August2025","Post_Doc_Res_Res_Ass_Iua_2013_66A_13Point 8August2025",59064.923307127654]
["Post_Doc_Researcher_Research_Associate_66A","Point 1","August2025","Post_Doc_Researcher_Research_Associate_66APoint 1August2025",49510.705000000002]
["Post_Doc_Researcher_Research_Associate_66A","Point 2","August2025","Post_Doc_Researcher_Research_Associate_66APoint 2August2025",51573.573641999996]
["Post_Doc_Researcher_Research_Associate_66A","Point 3","August2025","Post_Doc_Researcher_Research_Associate_66APoint 3August2025",53732.994159639748]
["Post_Doc_Researcher_Research_Associate_66A","Point 4","August2025","Post_Doc_Researcher_Research_Associate_66APoint 4August2025",55529.645819172147]
["Post_Doc_Researcher_Research_Associate_66A","Point 5","August2025","Post_Doc_Researcher_Research_Associate_66APoint 5August2025",57352.086736975347]
["Post_Doc_Researcher_Research_Associate_66A","Point 6","August2025","Post_Doc_Researcher_Research_Associate_66APoint 6August2025",59234.702590743749]
["Post_Doc_Researcher_Research_Associate_66A","Point 7","August2025","Post_Doc_Researcher_Research_Associate_66APoint 7August2025",61161.375094058101]
["Post_Doc_Researcher_Research_Associate_66A","Point 8","August2025","Post_Doc_Researcher_Research_Associate_66APoint 8August2025",63081.600282804749]
["Post_Doc_Researcher_Research_Associate_66A","Point 9","August2025","Post_Doc_Researcher_Research_Associate_66APoint 9August2025",65006.123681263205]
["Post_Doc_Researcher_Research_Associate_66A","Point 10","August2025","Post_Doc_Researcher_Research_Associate_66APoint 10August2025",66946.765366140899]
["Post_Doc_Researcher_Research_Associate_66A","Point 11","August2025","Post_Doc_Researcher_Research_Associate_66APoint 11August2025",68720.851424686349]
["Post_Doc_Researcher_Research_Associate_66D","Point 1","August2025","Post_Doc_Researcher_Research_Associate_66DPoint 1August2025",47317.49]
["Post_Doc_Researcher_Research_Associate_66D","Point 2","August2025","Post_Doc_Researcher_Research_Associate_66DPoint 2August2025",49277.102099999996]
["Post_Doc_Researcher_Research_Associate_66D","Point 3","August2025","Post_Doc_Researcher_Research_Associate_66DPoint 3August2025",51271.397600000004]
["Post_Doc_Researcher_Research_Associate_66D","Point 4","August2025","Post_Doc_Researcher_Research_Associate_66DPoint 4August2025",52915.270271040004]
["Post_Doc_Researcher_Research_Associate_66D","Point 5","August2025","Post_Doc_Researcher_Research_Associate_66DPoint 5August2025",54591.561549571801]
["Post_Doc_Researcher_Research_Associate_66D","Point 6","August2025","Post_Doc_Researcher_Research_Associate_66DPoint 6August2025",56361.349398405451]
["Post_Doc_Researcher_Research_Associate_66D","Point 7","August2025","Post_Doc_Researcher_Research_Associate_66DPoint 7August2025",58175.193896785051]
["Post_Doc_Researcher_Research_Associate_66D","Point 8","August2025","Post_Doc_Researcher_Research_Associate_66DPoint 8August2025",59987.96384273671]
["Post_Doc_Researcher_Research_Associate_66D","Point 9","August2025","Post_Doc_Researcher_Research_Associate_66DPoint 9August2025",61817.926627535548]
["Post_Doc_Researcher_Research_Associate_66D","Point 10","August2025","Post_Doc_Researcher_Research_Associate_66DPoint 10August2025",63660.7840414698]
["Post_Doc_Researcher_Research_Associate_66D","Point 11","August2025","Post_Doc_Researcher_Research_Associate_66DPoint 11August2025",65348.905905779255]
["Research_Assistant_65A","Point 1","August2025","Research_Assistant_65APoint 1August2025",31722.2012]
["Research_Assistant_65A","Point 2","August2025","Research_Assistant_65APoint 2August2025",32737.200700000001]
["Research_Assistant_65A","Point 3","August2025","Research_Assistant_65APoint 3August2025",33775.662499999999]
["Research_Assistant_65A","Point 4","August2025","Research_Assistant_65APoint 4August2025",34421.385800000004]
["Research_Assistant_65A","Point 5","August2025","Research_Assistant_65APoint 5August2025",35524.113899999997]
["Research_Assistant_65A","Point 6","August2025","Research_Assistant_65APoint 6August2025",36453.425000000003]
["Research_Assistant_65A","Point 7","August2025","Research_Assistant_65APoint 7August2025",37441.901900000004]
["Research_Assistant_65A","Point 8","August2025","Research_Assistant_65APoint 8August2025",38382.434100000006]
["Research_Assistant_65A","Point 9","August2025","Research_Assistant_65APoint 9August2025",38462.001900000003]
["Research_Assistant_65A","Point 10","August2025","Research_Assistant_65APoint 10August2025",39304.604499999994]
["Research_Assistant_65A","Point 11","August2025","Research_Assistant_65APoint 11August2025",40268.599000000002]
["Research_Assistant_65A","Point 12","August2025","Research_Assistant_65APoint 12August2025",41430.492900000005]
["Research_Assistant_65A","Point 13","August2025","Research_Assistant_65APoint 13August2025",42505.6783]
["Research_Assistant_65A","Point 14","August2025","Research_Assistant_65APoint 14August2025",44250.049299999999]
["Research_Assistant_65A","Point 15","August2025","Research_Assistant_65APoint 15August2025",45989.319800000005]
["Research_Assistant_65A_20","Point 1","August2025","Research_Assistant_65A_20Point 1August2025",33291.114999999998]
["Research_Assistant_65A_20","Point 2","August2025","Research_Assistant_65A_20Point 2August2025",34120.456300000005]
["Research_Assistant_65A_20","Point 3","August2025","Research_Assistant_65A_20Point 3August2025",34545.838000000003]
["Research_Assistant_65A_20","Point 4","August2025","Research_Assistant_65A_20Point 4August2025",35413.943099999997]
["Research_Assistant_65A_20","Point 5","August2025","Research_Assistant_65A_20Point 5August2025",36305.510500000004]
["Research_Assistant_65A_20","Point 6","August2025","Research_Assistant_65A_20Point 6August2025",37223.6005]
["Research_Assistant_65A_20","Point 7","August2025","Research_Assistant_65A_20Point 7August2025",38174.333700000003]
["Research_Assistant_65A_20","Point 8","August2025","Research_Assistant_65A_20Point 8August2025",38803.735399999998]
["Research_Assistant_65A_20","Point 9","August2025","Research_Assistant_65A_20Point 9August2025",39772.830399999999]
["Research_Assistant_65A_20","Point 10","August2025","Research_Assistant_65A_20Point 10August2025",40590.950599999996]
["Research_Assistant_65A_20","Point 11","August2025","Research_Assistant_65A_20Point 11August2025",41256.055800000002]
["Research_Assistant_65A_20","Point 12","August2025","Research_Assistant_65A_20Point 12August2025",42298.598000000005]
["Research_Assistant_65A_20","Point 13","August2025","Research_Assistant_65A_20Point 13August2025",43372.763299999999]
["Research_Assistant_Iua_2013_65A_13","Point 1","August2025","Research_Assistant_Iua_2013_65A_13Point 1August2025",30936.724200000001]
["Research_Assistant_Iua_2013_65A_13","Point 2","August2025","Research_Assistant_Iua_2013_65A_13Point 2August2025",31696.698700000001]
["Research_Assistant_Iua_2013_65A_13","Point 3","August2025","Research_Assistant_Iua_2013_65A_13Point 3August2025",32479.115400000002]
["Research_Assistant_Iua_2013_65A_13","Point 4","August2025","Research_Assistant_Iua_2013_65A_13Point 4August2025",33283.974300000002]
["Research_Assistant_Iua_2013_65A_13","Point 5","August2025","Research_Assistant_Iua_2013_65A_13Point 5August2025",34111.275399999999]
["Research_Assistant_Iua_2013_65A_13","Point 6","August2025","Research_Assistant_Iua_2013_65A_13Point 6August2025",34965.099100000007]
["Research_Assistant_Iua_2013_65A_13","Point 7","August2025",{"$f":"A1698&B1698&C1698","v":"Research_Assistant_Iua_2013_65A_13Point 7August2025"},35844.425300000003]
["Research_Assistant_Iua_2013_65A_13","Point 8","August2025","Research_Assistant_Iua_2013_65A_13Point 8August2025",36751.294199999997]
["Research_Assistant_Iua_2013_65A_13","Point 9","August2025","Research_Assistant_Iua_2013_65A_13Point 9August2025",37683.6656]
["Research_Assistant_Iua_2013_65A_13","Point 10","August2025","Research_Assistant_Iua_2013_65A_13Point 10August2025",38306.9467]
["Research_Assistant_Iua_2013_65A_13","Point 11","August2025","Research_Assistant_Iua_2013_65A_13Point 11August2025",39261.760300000002]
["Research_Assistant_Iua_2013_65A_13","Point 12","August2025","Research_Assistant_Iua_2013_65A_13Point 12August2025",40245.136699999995]
["Research_Assistant_Iua_2013_65A_13","Point 13","August2025","Research_Assistant_Iua_2013_65A_13Point 13August2025",41257.075900000003]
["Research_Assistant_Iua_2013_65A_13","Point 14","August2025","Research_Assistant_Iua_2013_65A_13Point 14August2025",42299.6181]
["Research_Assistant_Iua_2013_65A_13","Point 15","August2025","Research_Assistant_Iua_2013_65A_13Point 15August2025",43372.763299999999]
["Research_Fellow_67A","Point 1","August2025","Research_Fellow_67APoint 1August2025",74981.193869923052]
["Research_Fellow_67A","Point 2","August2025","Research_Fellow_67APoint 2August2025",80872.964832372905]
["Research_Fellow_67A","Point 3","August2025","Research_Fellow_67APoint 3August2025",85504.285796837386]
["Research_Fellow_67A","Point 4","August2025","Research_Fellow_67APoint 4August2025",91457.30624768039]
["Research_Fellow_67A","Point 5","August2025","Research_Fellow_67APoint 5August2025",97392.05930724823]
["Research_Fellow_Iua_2013_67A_13","Point 1","August2025","Research_Fellow_Iua_2013_67A_13Point 1August2025",65889.405777038104]
["Research_Fellow_Iua_2013_67A_13","Point 2","August2025","Research_Fellow_Iua_2013_67A_13Point 2August2025",67798.885441505248]
["Research_Fellow_Iua_2013_67A_13","Point 3","August2025","Research_Fellow_Iua_2013_67A_13Point 3August2025",69768.540041937609]
["Research_Fellow_Iua_2013_67A_13","Point 4","August2025","Research_Fellow_Iua_2013_67A_13Point 4August2025",71795.145921051313]
["Senior_Research_Fellow_68A","Point 1","August2025","Senior_Research_Fellow_68APoint 1August2025",93924.478622253591]
["Senior_Research_Fellow_68A","Point 2","August2025","Senior_Research_Fellow_68APoint 2August2025",98668.627591652868]
["Senior_Research_Fellow_68A","Point 3","August2025","Senior_Research_Fellow_68APoint 3August2025",103446.08768631855]
["Senior_Research_Fellow_68A","Point 4","August2025","Senior_Research_Fellow_68APoint 4August2025",108188.08755086191]
["Senior_Research_Fellow_68A","Point 5","August2025","Senior_Research_Fellow_68APoint 5August2025",112902.14905227855]
["Fixed_Amount","Point 1","August2025","Fixed_AmountPoint 1August2025",0]
["Research_Assistant","Point 1","Feb2026","Research_AssistantPoint 1Feb2026",33791.419961588326]
["Research_Assistant","Point 2","Feb2026","Research_AssistantPoint 2Feb2026",34620.04459279764]
["Research_Assistant","Point 3","Feb2026","Research_AssistantPoint 3Feb2026",35044.647488210663]
["Research_Assistant","Point 4","Feb2026","Research_AssistantPoint 4Feb2026",35912.848970565879]
["Research_Assistant","Point 5","Feb2026","Research_AssistantPoint 5Feb2026",36804.733961279468]
["Research_Assistant","Point 6","Feb2026","Research_AssistantPoint 6Feb2026",37724.512691436394]
["Research_Assistant","Point 7","Feb2026","Research_AssistantPoint 7Feb2026",38673.997247465108]
["Research_Assistant","Point 8","Feb2026","Research_AssistantPoint 8Feb2026",39303.447576505321]
["Research_Assistant","Point 9","Feb2026","Research_AssistantPoint 9Feb2026",40272.295527813374]
["Research_Assistant","Point 10","Feb2026","Research_AssistantPoint 10Feb2026",41089.968595553997]
["Research_Assistant","Point 11","Feb2026","Research_AssistantPoint 11Feb2026",41755.785760861829]
["Research_Assistant","Point 12","Feb2026","Research_AssistantPoint 12Feb2026",42798.631923392175]
["Research_Assistant","Point 13","Feb2026","Research_AssistantPoint 13Feb2026",43872.419675360259]
["Post_Doctoral_Researcher_PD1","PD1 Point 1","Feb2026","Post_Doctoral_Researcher_PD1PD1 Point 1Feb2026",46805.384511472919]
["Post_Doctoral_Researcher_PD1","PD1 Point 2","Feb2026","Post_Doctoral_Researcher_PD1PD1 Point 2Feb2026",47405.146999791374]
["Post_Doctoral_Researcher_PD1","PD1 Point 3","Feb2026","Post_Doctoral_Researcher_PD1PD1 Point 3Feb2026",49396.066382389145]
["Post_Doctoral_Researcher_PD1","PD1 Point 4","Feb2026","Post_Doctoral_Researcher_PD1PD1 Point 4Feb2026",50669.790598754538]
["Post_Doctoral_Researcher_PD1","PD1 Point 5","Feb2026","Post_Doctoral_Researcher_PD1PD1 Point 5Feb2026",51992.749824479724]
["Post_Doctoral_Researcher_PD1","PD1 Point 6","Feb2026","Post_Doctoral_Researcher_PD1PD1 Point 6Feb2026",53391.216914975143]
["Post_Doctoral_Researcher_PD2","PD2 Point 1","Feb2026","Post_Doctoral_Researcher_PD2PD2 Point 1Feb2026",54850.483219092188]
["Post_Doctoral_Researcher_PD2","PD2 Point 2","Feb2026","Post_Doctoral_Researcher_PD2PD2 Point 2Feb2026",56392.849435311829]
["Post_Doctoral_Researcher_PD2","PD2 Point 3","Feb2026","Post_Doctoral_Researcher_PD2PD2 Point 3Feb2026",57997.831694167777]
["Post_Doctoral_Researcher_PD2","PD2 Point 4","Feb2026","Post_Doctoral_Researcher_PD2PD2 Point 4Feb2026",59653.938665607413]
["Research_Fellow","Point 1","Feb2026","Research_FellowPoint 1Feb2026",66548.202609416199]
["Research_Fellow","Point 2","Feb2026","Research_FellowPoint 2Feb2026",68478.398409359244]
["Research_Fellow","Point 3","Feb2026","Research_FellowPoint 3Feb2026",70466.664194127268]
["Research_Fellow","Point 4","Feb2026","Research_FellowPoint 4Feb2026",72514.262354694685]
["Senior_Research_Fellow","Point 1","Feb2026","Senior_Research_FellowPoint 1Feb2026",80950.821236983349]
["Senior_Research_Fellow","Point 2","Feb2026","Senior_Research_FellowPoint 2Feb2026",83312.754750190332]
["Senior_Research_Fellow","Point 3","Feb2026","Senior_Research_FellowPoint 3Feb2026",84435.020326481565]
["Senior_Research_Fellow","Point 4","Feb2026","Senior_Research_FellowPoint 4Feb2026",86873.959689130337]
["Admin_Officer_01D","Point 1","Feb2026","Admin_Officer_01DPoint 1Feb2026",82303.570207324126]
["Admin_Officer_01D","Point 2","Feb2026","Admin_Officer_01DPoint 2Feb2026",86560.108775968227]
["Admin_Officer_01D","Point 3","Feb2026","Admin_Officer_01DPoint 3Feb2026",92129.857866810038]
["Admin_Officer_01D","Point 4","Feb2026","Admin_Officer_01DPoint 4Feb2026",97698.521659699603]
["Admin_Officer_01D","Point 5","Feb2026","Admin_Officer_01DPoint 5Feb2026",103292.14730549043]
["Admin_Officer_Current_Serving_Employee_01A","Point 1","Feb2026","Admin_Officer_Current_Serving_Employee_01APoint 1Feb2026",85234.959976296013]
["Admin_Officer_Current_Serving_Employee_01A","Point 2","Feb2026","Admin_Officer_Current_Serving_Employee_01APoint 2Feb2026",91112.93368557097]
["Admin_Officer_Current_Serving_Employee_01A","Point 3","Feb2026","Admin_Officer_Current_Serving_Employee_01APoint 3Feb2026",96982.225011228118]
["Admin_Officer_Current_Serving_Employee_01A","Point 4","Feb2026","Admin_Officer_Current_Serving_Employee_01APoint 4Feb2026",102842.8339532674]
["Admin_Officer_Current_Serving_Employee_01A","Point 5","Feb2026","Admin_Officer_Current_Serving_Employee_01APoint 5Feb2026",108727.31945025577]
["Chief_Technical_Officer_17A","Point 1","Feb2026","Chief_Technical_Officer_17APoint 1Feb2026",68963.087778519126]
["Chief_Technical_Officer_17A","Point 2","Feb2026","Chief_Technical_Officer_17APoint 2Feb2026",71828.274372404994]
["Chief_Technical_Officer_17A","Point 3","Feb2026","Chief_Technical_Officer_17APoint 3Feb2026",74588.187064924612]
["Chief_Technical_Officer_17A","Point 4","Feb2026","Chief_Technical_Officer_17APoint 4Feb2026",77437.094189527052]
["Chief_Technical_Officer_17A","Point 5","Feb2026","Chief_Technical_Officer_17APoint 5Feb2026",80344.60740354989]
["Chief_Technical_Officer_17D","Point 1","Feb2026","Chief_Technical_Officer_17DPoint 1Feb2026",65627.967171317854]
["Chief_Technical_Officer_17D","Point 2","Feb2026","Chief_Technical_Officer_17DPoint 2Feb2026",68345.553243700546]
["Chief_Technical_Officer_17D","Point 3","Feb2026","Chief_Technical_Officer_17DPoint 3Feb2026",70961.121308573609]
["Chief_Technical_Officer_17D","Point 4","Feb2026","Chief_Technical_Officer_17DPoint 4Feb2026",73676.536785051852]
["Chief_Technical_Officer_17D","Point 5","Feb2026","Chief_Technical_Officer_17DPoint 5Feb2026",76436.449477571441]
["Clinical_Research_Support_Officer_166A","Point 1","Feb2026","Clinical_Research_Support_Officer_166APoint 1Feb2026",46804.530700000003]
["Clinical_Research_Support_Officer_166A","Point 2","Feb2026","Clinical_Research_Support_Officer_166APoint 2Feb2026",47405.369599999998]
["Clinical_Research_Support_Officer_166A","Point 3","Feb2026","Clinical_Research_Support_Officer_166APoint 3Feb2026",49396.604800000001]
["Clinical_Research_Support_Officer_166A","Point 4","Feb2026","Clinical_Research_Support_Officer_166APoint 4Feb2026",50670.356195]
["Grade_2_1761.75_Hrs._06A","Point 1","Feb2026","Grade_2_1761.75_Hrs._06APoint 1Feb2026",36884.058199999999]
["Grade_2_1761.75_Hrs._06A","Point 2","Feb2026","Grade_2_1761.75_Hrs._06APoint 2Feb2026",38141.841500000002]
["Grade_2_1761.75_Hrs._06A","Point 3","Feb2026","Grade_2_1761.75_Hrs._06APoint 3Feb2026",39420.0268]
["Grade_2_1761.75_Hrs._06A","Point 4","Feb2026","Grade_2_1761.75_Hrs._06APoint 4Feb2026",40304.453499999996]
["Grade_2_1761.75_Hrs._06A","Point 5","Feb2026","Grade_2_1761.75_Hrs._06APoint 5Feb2026",41352.0962]
["Grade_2_1761.75_Hrs._06A","Point 6","Feb2026","Grade_2_1761.75_Hrs._06APoint 6Feb2026",42181.4375]
["Grade_2_1761.75_Hrs._06A","Point 7","Feb2026","Grade_2_1761.75_Hrs._06APoint 7Feb2026",43397.396699999998]
["Grade_2_1761.75_Hrs._06A","Point 8","Feb2026","Grade_2_1761.75_Hrs._06APoint 8Feb2026",45099.943599999999]
["Grade_2_1761.75_Hrs._06A","Point 9","Feb2026","Grade_2_1761.75_Hrs._06APoint 9Feb2026",46899.4]
["Grade_2_1761.75_Hrs._06A","Point 10","Feb2026","Grade_2_1761.75_Hrs._06APoint 10Feb2026",48685.595100000006]
["Grade_2_1761.75_Hrs._06A","Point 11","Feb2026","Grade_2_1761.75_Hrs._06APoint 11Feb2026",50483.011299999998]
["Grade_2_1761.75_Hrs._06A","Point 12","Feb2026","Grade_2_1761.75_Hrs._06APoint 12Feb2026",52309.99985262]
["Grade_2_1761.75_Hrs._06D","Point 1","Feb2026","Grade_2_1761.75_Hrs._06DPoint 1Feb2026",35345.7474]
["Grade_2_1761.75_Hrs._06D","Point 2","Feb2026","Grade_2_1761.75_Hrs._06DPoint 2Feb2026",36546.405100000004]
["Grade_2_1761.75_Hrs._06D","Point 3","Feb2026","Grade_2_1761.75_Hrs._06DPoint 3Feb2026",37755.223599999998]
["Grade_2_1761.75_Hrs._06D","Point 4","Feb2026","Grade_2_1761.75_Hrs._06DPoint 4Feb2026",38962.001900000003]
["Grade_2_1761.75_Hrs._06D","Point 5","Feb2026","Grade_2_1761.75_Hrs._06DPoint 5Feb2026",39804.604499999994]
["Grade_2_1761.75_Hrs._06D","Point 6","Feb2026","Grade_2_1761.75_Hrs._06DPoint 6Feb2026",40768.599000000002]
["Grade_2_1761.75_Hrs._06D","Point 7","Feb2026","Grade_2_1761.75_Hrs._06DPoint 7Feb2026",41930.492900000005]
["Grade_2_1761.75_Hrs._06D","Point 8","Feb2026","Grade_2_1761.75_Hrs._06DPoint 8Feb2026",43185.215900000003]
["Grade_2_1761.75_Hrs._06D","Point 9","Feb2026","Grade_2_1761.75_Hrs._06DPoint 9Feb2026",44909.1849]
["Grade_2_1761.75_Hrs._06D","Point 10","Feb2026","Grade_2_1761.75_Hrs._06DPoint 10Feb2026",46595.410199999998]
["Grade_2_1761.75_Hrs._06D","Point 11","Feb2026","Grade_2_1761.75_Hrs._06DPoint 11Feb2026",48308.158100000001]
["Grade_2_1761.75_Hrs._06D","Point 12","Feb2026","Grade_2_1761.75_Hrs._06DPoint 12Feb2026",50018.8658]
["Grade_3_1761.75_Hrs._11A","Point 1","Feb2026","Grade_3_1761.75_Hrs._11APoint 1Feb2026",43273.964599999999]
["Grade_3_1761.75_Hrs._11A","Point 2","Feb2026","Grade_3_1761.75_Hrs._11APoint 2Feb2026",45099.943599999999]
["Grade_3_1761.75_Hrs._11A","Point 3","Feb2026","Grade_3_1761.75_Hrs._11APoint 3Feb2026",46899.4]
["Grade_3_1761.75_Hrs._11A","Point 4","Feb2026","Grade_3_1761.75_Hrs._11APoint 4Feb2026",48685.595100000006]
["Grade_3_1761.75_Hrs._11A","Point 5","Feb2026","Grade_3_1761.75_Hrs._11APoint 5Feb2026",50483.011299999998]
["Grade_3_1761.75_Hrs._11A","Point 6","Feb2026","Grade_3_1761.75_Hrs._11APoint 6Feb2026",52309.99985262]
["Grade_3_1761.75_Hrs._11A","Point 7","Feb2026","Grade_3_1761.75_Hrs._11APoint 7Feb2026",54168.308747266812]
["Grade_3_1761.75_Hrs._11A","Point 8","Feb2026","Grade_3_1761.75_Hrs._11APoint 8Feb2026",56070.833403984878]
["Grade_3_1761.75_Hrs._11A","Point 9","Feb2026","Grade_3_1761.75_Hrs._11APoint 9Feb2026",56536.426225491348]
["Grade_3_1761.75_Hrs._11A","Point 10","Feb2026","Grade_3_1761.75_Hrs._11APoint 10Feb2026",58533.374457593622]
["Grade_3_1761.75_Hrs._11A","Point 11","Feb2026","Grade_3_1761.75_Hrs._11APoint 11Feb2026",59995.270799246755]
["Grade_3_1761.75_Hrs._11D","Point 1","Feb2026","Grade_3_1761.75_Hrs._11DPoint 1Feb2026",41814.201500000003]
["Grade_3_1761.75_Hrs._11D","Point 2","Feb2026","Grade_3_1761.75_Hrs._11DPoint 2Feb2026",43185.215900000003]
["Grade_3_1761.75_Hrs._11D","Point 3","Feb2026","Grade_3_1761.75_Hrs._11DPoint 3Feb2026",44909.1849]
["Grade_3_1761.75_Hrs._11D","Point 4","Feb2026","Grade_3_1761.75_Hrs._11DPoint 4Feb2026",46595.410199999998]
["Grade_3_1761.75_Hrs._11D","Point 5","Feb2026","Grade_3_1761.75_Hrs._11DPoint 5Feb2026",48308.158100000001]
["Grade_3_1761.75_Hrs._11D","Point 6","Feb2026","Grade_3_1761.75_Hrs._11DPoint 6Feb2026",50018.8658]
["Grade_3_1761.75_Hrs._11D","Point 7","Feb2026","Grade_3_1761.75_Hrs._11DPoint 7Feb2026",51733.626827]
["Grade_3_1761.75_Hrs._11D","Point 8","Feb2026","Grade_3_1761.75_Hrs._11DPoint 8Feb2026",53480.511120817195]
["Grade_3_1761.75_Hrs._11D","Point 9","Feb2026","Grade_3_1761.75_Hrs._11DPoint 9Feb2026",53897.647644265795]
["Grade_3_1761.75_Hrs._11D","Point 10","Feb2026","Grade_3_1761.75_Hrs._11DPoint 10Feb2026",55750.670508077186]
["Grade_3_1761.75_Hrs._11D","Point 11","Feb2026","Grade_3_1761.75_Hrs._11DPoint 11Feb2026",57131.169503313104]
["Grade_4_02A","Point 1","Feb2026","Grade_4_02APoint 1Feb2026",54583.975209430471]
["Grade_4_02A","Point 2","Feb2026","Grade_4_02APoint 2Feb2026",56536.426225491348]
["Grade_4_02A","Point 3","Feb2026","Grade_4_02APoint 3Feb2026",58533.374457593622]
["Grade_4_02A","Point 4","Feb2026","Grade_4_02APoint 4Feb2026",59995.270799246755]
["Grade_4_02A","Point 5","Feb2026","Grade_4_02APoint 5Feb2026",61500.579058989082]
["Grade_4_02A","Point 6","Feb2026","Grade_4_02APoint 6Feb2026",63085.114069244148]
["Grade_4_02A","Point 7","Feb2026","Grade_4_02APoint 7Feb2026",64627.322459362273]
["Grade_4_02A","Point 8","Feb2026","Grade_4_02APoint 8Feb2026",68354.235627318369]
["Grade_4_02A","Point 9","Feb2026","Grade_4_02APoint 9Feb2026",70498.784380923855]
["Grade_4_02D","Point 1","Feb2026","Grade_4_02DPoint 1Feb2026",52113.480239880002]
["Grade_4_02D","Point 2","Feb2026","Grade_4_02DPoint 2Feb2026",53897.647644265795]
["Grade_4_02D","Point 3","Feb2026","Grade_4_02DPoint 3Feb2026",55750.670508077186]
["Grade_4_02D","Point 4","Feb2026","Grade_4_02DPoint 4Feb2026",57131.169503313104]
["Grade_4_02D","Point 5","Feb2026","Grade_4_02DPoint 5Feb2026",58546.398033020378]
["Grade_4_02D","Point 6","Feb2026","Grade_4_02DPoint 6Feb2026",60039.768015288173]
["Grade_4_02D","Point 7","Feb2026","Grade_4_02DPoint 7Feb2026",61512.517336463607]
["Grade_4_02D","Point 8","Feb2026","Grade_4_02DPoint 8Feb2026",65040.820979161705]
["Grade_4_02D","Point 9","Feb2026","Grade_4_02DPoint 9Feb2026",67081.181129353165]
["Grade_5_25A","Point 1","Feb2026","Grade_5_25APoint 1Feb2026",62872.395670607162]
["Grade_5_25A","Point 2","Feb2026","Grade_5_25APoint 2Feb2026",65554.166910566259]
["Grade_5_25A","Point 3","Feb2026","Grade_5_25APoint 3Feb2026",68354.235627318369]
["Grade_5_25A","Point 4","Feb2026","Grade_5_25APoint 4Feb2026",70498.784380923855]
["Grade_5_25A","Point 5","Feb2026","Grade_5_25APoint 5Feb2026",72716.048097328749]
["Grade_5_25A","Point 6","Feb2026","Grade_5_25APoint 6Feb2026",74901.838173118958]
["Grade_5_25A","Point 7","Feb2026","Grade_5_25APoint 7Feb2026",85234.959976296013]
["Grade_5_25D","Point 1","Feb2026","Grade_5_25DPoint 1Feb2026",59832.476106412338]
["Grade_5_25D","Point 2","Feb2026","Grade_5_25DPoint 2Feb2026",62387.267485960583]
["Grade_5_25D","Point 3","Feb2026","Grade_5_25DPoint 3Feb2026",65040.820979161705]
["Grade_5_25D","Point 4","Feb2026","Grade_5_25DPoint 4Feb2026",67081.181129353165]
["Grade_5_25D","Point 5","Feb2026","Grade_5_25DPoint 5Feb2026",69194.256242343981]
["Grade_5_25D","Point 6","Feb2026","Grade_5_25DPoint 6Feb2026",71267.175331102364]
["Grade_5_25D","Point 7","Feb2026","Grade_5_25DPoint 7Feb2026",82303.570207324126]
["Junior_Lecturer_Old_Scale_62D","Point 1","Feb2026","Junior_Lecturer_Old_Scale_62DPoint 1Feb2026",51467.809169]
["Lecturer_128A","Point 1","Feb2026","Lecturer_128APoint 1Feb2026",64901.902841276329]
["Lecturer_128A","Point 2","Feb2026","Lecturer_128APoint 2Feb2026",66942.262991467767]
["Lecturer_128A","Point 3","Feb2026","Lecturer_128APoint 3Feb2026",68985.879035515944]
["Lecturer_128A","Point 4","Feb2026","Lecturer_128APoint 4Feb2026",71063.139316083209]
["Lecturer_128A","Point 5","Feb2026","Lecturer_128APoint 5Feb2026",72945.045965249155]
["Lecturer_128A","Point 6","Feb2026","Lecturer_128APoint 6Feb2026",79606.604796033833]
["Lecturer_128A","Point 7","Feb2026","Lecturer_128APoint 7Feb2026",84581.610609053867]
["Lecturer_128A","Point 8","Feb2026","Lecturer_128APoint 8Feb2026",90908.897670551843]
["Lecturer_128A","Point 9","Feb2026","Lecturer_128APoint 9Feb2026",97240.525923858746]
["Lecturer_128A","Point 10","Feb2026","Lecturer_128APoint 10Feb2026",103538.50994064653]
["Lecturer_Above_Bar_College_36A","Point 1","Feb2026","Lecturer_Above_Bar_College_36APoint 1Feb2026",79606.604796033833]
["Lecturer_Above_Bar_College_36A","Point 2","Feb2026","Lecturer_Above_Bar_College_36APoint 2Feb2026",84581.610609053867]
["Lecturer_Above_Bar_College_36A","Point 3","Feb2026","Lecturer_Above_Bar_College_36APoint 3Feb2026",90908.897670551843]
["Lecturer_Above_Bar_College_36A","Point 4","Feb2026","Lecturer_Above_Bar_College_36APoint 4Feb2026",97240.525923858746]
["Lecturer_Above_Bar_College_36A","Point 5","Feb2026","Lecturer_Above_Bar_College_36APoint 5Feb2026",103538.50994064653]
["Lecturer_Above_Bar_College_36D","Point 1","Feb2026","Lecturer_Above_Bar_College_36DPoint 1Feb2026",75731.005808622285]
["Lecturer_Above_Bar_College_36D","Point 2","Feb2026","Lecturer_Above_Bar_College_36DPoint 2Feb2026",81681.694480696635]
["Lecturer_Above_Bar_College_36D","Point 3","Feb2026","Lecturer_Above_Bar_College_36DPoint 3Feb2026",86359.328654805766]
["Lecturer_Above_Bar_College_36D","Point 4","Feb2026","Lecturer_Above_Bar_College_36DPoint 4Feb2026",92371.879310157194]
["Lecturer_Above_Bar_College_36D","Point 5","Feb2026","Lecturer_Above_Bar_College_36DPoint 5Feb2026",98365.979900320715]
["Lecturer_Below_Bar_Junior_33A","Point 1","Feb2026","Lecturer_Below_Bar_Junior_33APoint 1Feb2026",52292.13443328]
["Lecturer_Below_Bar_Junior_33A","Point 2","Feb2026","Lecturer_Below_Bar_Junior_33APoint 2Feb2026",54553.586866768048]
["Lecturer_Below_Bar_Junior_33A","Point 3","Feb2026","Lecturer_Below_Bar_Junior_33APoint 3Feb2026",56945.583553481869]
["Lecturer_Below_Bar_Junior_33A","Point 4","Feb2026","Lecturer_Below_Bar_Junior_33APoint 4Feb2026",58889.352185924894]
["Lecturer_Below_Bar_Junior_33A","Point 5","Feb2026","Lecturer_Below_Bar_Junior_33APoint 5Feb2026",60836.376712224621]
["Lecturer_Below_Bar_Junior_33A","Point 6","Feb2026","Lecturer_Below_Bar_Junior_33APoint 6Feb2026",62857.20149927595]
["Lecturer_Below_Bar_Junior_33A","Point 7","Feb2026","Lecturer_Below_Bar_Junior_33APoint 7Feb2026",64901.902841276329]
["Lecturer_Below_Bar_Junior_33A","Point 8","Feb2026","Lecturer_Below_Bar_Junior_33APoint 8Feb2026",66942.262991467767]
["Lecturer_Below_Bar_Junior_33A","Point 9","Feb2026","Lecturer_Below_Bar_Junior_33APoint 9Feb2026",68985.879035515944]
["Lecturer_Below_Bar_Junior_33A","Point 10","Feb2026","Lecturer_Below_Bar_Junior_33APoint 10Feb2026",71063.139316083209]
["Lecturer_Below_Bar_Junior_33A","Point 11","Feb2026","Lecturer_Below_Bar_Junior_33APoint 11Feb2026",72945.045965249155]
["Lecturer_Below_Bar_Junior_33D","Point 1","Feb2026","Lecturer_Below_Bar_Junior_33DPoint 1Feb2026",50010.705000000002]
["Lecturer_Below_Bar_Junior_33D","Point 2","Feb2026","Lecturer_Below_Bar_Junior_33DPoint 2Feb2026",52089.309378419995]
["Lecturer_Below_Bar_Junior_33D","Point 3","Feb2026","Lecturer_Below_Bar_Junior_33DPoint 3Feb2026",54270.324101236147]
["Lecturer_Below_Bar_Junior_33D","Point 4","Feb2026","Lecturer_Below_Bar_Junior_33DPoint 4Feb2026",56084.942277363865]
["Lecturer_Below_Bar_Junior_33D","Point 5","Feb2026","Lecturer_Below_Bar_Junior_33DPoint 5Feb2026",57925.607604345103]
["Lecturer_Below_Bar_Junior_33D","Point 6","Feb2026","Lecturer_Below_Bar_Junior_33DPoint 6Feb2026",59827.049616651188]
["Lecturer_Below_Bar_Junior_33D","Point 7","Feb2026","Lecturer_Below_Bar_Junior_33DPoint 7Feb2026",61772.988844998683]
["Lecturer_Below_Bar_Junior_33D","Point 8","Feb2026","Lecturer_Below_Bar_Junior_33DPoint 8Feb2026",63712.416285632797]
["Lecturer_Below_Bar_Junior_33D","Point 9","Feb2026","Lecturer_Below_Bar_Junior_33DPoint 9Feb2026",65656.184918075844]
["Lecturer_Below_Bar_Junior_33D","Point 10","Feb2026","Lecturer_Below_Bar_Junior_33DPoint 10Feb2026",67616.233019802312]
["Lecturer_Below_Bar_Junior_33D","Point 11","Feb2026","Lecturer_Below_Bar_Junior_33DPoint 11Feb2026",69408.05993893322]
["Lecturer_Fixed_Term_19A","Point 1","Feb2026","Lecturer_Fixed_Term_19APoint 1Feb2026",52292.13443328]
["Lecturer_Fixed_Term_19A","Point 2","Feb2026","Lecturer_Fixed_Term_19APoint 2Feb2026",54553.586866768048]
["Lecturer_Fixed_Term_19A","Point 3","Feb2026","Lecturer_Fixed_Term_19APoint 3Feb2026",56945.583553481869]
["Lecturer_Fixed_Term_19A","Point 4","Feb2026","Lecturer_Fixed_Term_19APoint 4Feb2026",58889.352185924894]
["Lecturer_Fixed_Term_19A","Point 5","Feb2026","Lecturer_Fixed_Term_19APoint 5Feb2026",60836.376712224621]
["Lecturer_Fixed_Term_19A","Point 6","Feb2026","Lecturer_Fixed_Term_19APoint 6Feb2026",62857.20149927595]
["Lecturer_Fixed_Term_19A","Point 7","Feb2026","Lecturer_Fixed_Term_19APoint 7Feb2026",64901.902841276329]
["Lecturer_Fixed_Term_19A","Point 8","Feb2026","Lecturer_Fixed_Term_19APoint 8Feb2026",66942.262991467767]
["Lecturer_Fixed_Term_19A","Point 9","Feb2026","Lecturer_Fixed_Term_19APoint 9Feb2026",68985.879035515944]
["Lecturer_Fixed_Term_19A","Point 10","Feb2026","Lecturer_Fixed_Term_19APoint 10Feb2026",71063.139316083209]
["Lecturer_Fixed_Term_19A","Point 11","Feb2026","Lecturer_Fixed_Term_19APoint 11Feb2026",72945.045965249155]
["Lecturer_Fixed_Term_19D","Point 1","Feb2026","Lecturer_Fixed_Term_19DPoint 1Feb2026",50010.705000000002]
["Lecturer_Fixed_Term_19D","Point 2","Feb2026","Lecturer_Fixed_Term_19DPoint 2Feb2026",52089.309378419995]
["Lecturer_Fixed_Term_19D","Point 3","Feb2026","Lecturer_Fixed_Term_19DPoint 3Feb2026",54270.324101236147]
["Lecturer_Fixed_Term_19D","Point 4","Feb2026","Lecturer_Fixed_Term_19DPoint 4Feb2026",56084.942277363865]
["Lecturer_Fixed_Term_19D","Point 5","Feb2026","Lecturer_Fixed_Term_19DPoint 5Feb2026",57925.607604345103]
["Lecturer_Fixed_Term_19D","Point 6","Feb2026","Lecturer_Fixed_Term_19DPoint 6Feb2026",59827.049616651188]
["Lecturer_Fixed_Term_19D","Point 7","Feb2026","Lecturer_Fixed_Term_19DPoint 7Feb2026",61772.988844998683]
["Lecturer_Fixed_Term_19D","Point 8","Feb2026","Lecturer_Fixed_Term_19DPoint 8Feb2026",63712.416285632797]
["Lecturer_Fixed_Term_19D","Point 9","Feb2026","Lecturer_Fixed_Term_19DPoint 9Feb2026",65656.184918075844]
["Lecturer_Fixed_Term_19D","Point 10","Feb2026","Lecturer_Fixed_Term_19DPoint 10Feb2026",67616.233019802312]
["Lecturer_Fixed_Term_19D","Point 11","Feb2026","Lecturer_Fixed_Term_19DPoint 11Feb2026",69408.05993893322]
["Personal_Professor_20A","Point 1","Feb2026","Personal_Professor_20APoint 1Feb2026",170671.7853717067]
["Personal_Professor_20D","Point 1","Feb2026","Personal_Professor_20DPoint 1Feb2026",162138.08757332611]
["Professor_In_117A","Point 1","Feb2026","Professor_In_117APoint 1Feb2026",105556.07883384117]
["Professor_In_117A","Point 2","Feb2026","Professor_In_117APoint 2Feb2026",112653.9274414221]
["Professor_In_117A","Point 3","Feb2026","Professor_In_117APoint 3Feb2026",119766.97022033425]
["Professor_In_117A","Point 4","Feb2026","Professor_In_117APoint 4Feb2026",126872.41591358079]
["Professor_In_117A","Point 5","Feb2026","Professor_In_117APoint 5Feb2026",133985.45869249292]
["Professor_In_117A","Point 6","Feb2026","Professor_In_117APoint 6Feb2026",141088.73378983504]
["Professor_In_117D","Point 1","Feb2026","Professor_In_117DPoint 1Feb2026",100275.01899829243]
["Professor_In_117D","Point 2","Feb2026","Professor_In_117DPoint 2Feb2026",107025.57226115992]
["Professor_In_117D","Point 3","Feb2026","Professor_In_117DPoint 3Feb2026",113783.72260969304]
["Professor_In_117D","Point 4","Feb2026","Professor_In_117DPoint 4Feb2026",120532.10527665605]
["Professor_In_117D","Point 5","Feb2026","Professor_In_117DPoint 5Feb2026",127288.08502928469]
["Professor_In_117D","Point 6","Feb2026","Professor_In_117DPoint 6Feb2026",134036.46769624771]
["Professors_116A","Point 1","Feb2026","Professors_116APoint 1Feb2026",145741.40611104289]
["Professors_116A","Point 2","Feb2026","Professors_116APoint 2Feb2026",154051.53253126412]
["Professors_116A","Point 3","Feb2026","Professors_116APoint 3Feb2026",162361.65895148541]
["Professors_116A","Point 4","Feb2026","Professors_116APoint 4Feb2026",170671.7853717067]
["Professors_116A","Point 5","Feb2026","Professors_116APoint 5Feb2026",178982.99708988023]
["Professors_116A","Point 6","Feb2026","Professors_116APoint 6Feb2026",184251.03335000222]
["Professors_116D","Point 1","Feb2026","Professors_116DPoint 1Feb2026",138452.54506386953]
["Professors_116D","Point 2","Feb2026","Professors_116DPoint 2Feb2026",146350.25826224359]
["Professors_116D","Point 3","Feb2026","Professors_116DPoint 3Feb2026",154244.71556676098]
["Professors_116D","Point 4","Feb2026","Professors_116DPoint 4Feb2026",162138.08757332611]
["Professors_116D","Point 5","Feb2026","Professors_116DPoint 5Feb2026",170032.54487784355]
["Professors_116D","Point 6","Feb2026","Professors_116DPoint 6Feb2026",177927.00218236094]
["Salaried_University_Fellow_83A","Point 1","Feb2026","Salaried_University_Fellow_83APoint 1Feb2026",45938.465800000005]
["Salaried_University_Fellow_83A","Point 2","Feb2026","Salaried_University_Fellow_83APoint 2Feb2026",47279.897300000004]
["Salaried_University_Fellow_83A","Point 3","Feb2026","Salaried_University_Fellow_83APoint 3Feb2026",48637.650399999999]
["Salaried_University_Fellow_83D","Point 1","Feb2026","Salaried_University_Fellow_83DPoint 1Feb2026",43991.094899999996]
["Salaried_University_Fellow_83D","Point 2","Feb2026","Salaried_University_Fellow_83DPoint 2Feb2026",45266.219899999996]
["Salaried_University_Fellow_83D","Point 3","Feb2026","Salaried_University_Fellow_83DPoint 3Feb2026",46559.706699999995]
["Senior_Statutory_Lecturers_21A","Point 1","Feb2026","Senior_Statutory_Lecturers_21APoint 1Feb2026",84699.908085846866]
["Senior_Statutory_Lecturers_21A","Point 2","Feb2026","Senior_Statutory_Lecturers_21APoint 2Feb2026",89742.202371905121]
["Senior_Statutory_Lecturers_21A","Point 3","Feb2026","Senior_Statutory_Lecturers_21APoint 3Feb2026",94807.287914960209]
["Senior_Statutory_Lecturers_21A","Point 4","Feb2026","Senior_Statutory_Lecturers_21APoint 4Feb2026",99859.349882588533]
["Senior_Statutory_Lecturers_21A","Point 5","Feb2026","Senior_Statutory_Lecturers_21APoint 5Feb2026",104894.04708298115]
["Senior_Statutory_Lecturers_21A","Point 6","Feb2026","Senior_Statutory_Lecturers_21APoint 6Feb2026",109971.07090351077]
["Senior_Statutory_Lecturers_21A","Point 7","Feb2026","Senior_Statutory_Lecturers_21APoint 7Feb2026",115019.87697728242]
["Senior_Statutory_Lecturers_21A","Point 8","Feb2026","Senior_Statutory_Lecturers_21APoint 8Feb2026",120029.61232477377]
["Senior_Statutory_Lecturers_21D","Point 1","Feb2026","Senior_Statutory_Lecturers_21DPoint 1Feb2026",81797.821361585171]
["Senior_Statutory_Lecturers_21D","Point 2","Feb2026","Senior_Statutory_Lecturers_21DPoint 2Feb2026",85251.239445579471]
["Senior_Statutory_Lecturers_21D","Point 3","Feb2026","Senior_Statutory_Lecturers_21DPoint 3Feb2026",90067.79175757397]
["Senior_Statutory_Lecturers_21D","Point 4","Feb2026","Senior_Statutory_Lecturers_21DPoint 4Feb2026",94863.723408476129]
["Senior_Statutory_Lecturers_21D","Point 5","Feb2026","Senior_Statutory_Lecturers_21DPoint 5Feb2026",99655.313867569392]
["Senior_Statutory_Lecturers_21D","Point 6","Feb2026","Senior_Statutory_Lecturers_21DPoint 6Feb2026",104480.54856318174]
["Senior_Statutory_Lecturers_21D","Point 7","Feb2026","Senior_Statutory_Lecturers_21DPoint 7Feb2026",109269.96842637053]
["Senior_Statutory_Lecturers_21D","Point 8","Feb2026","Senior_Statutory_Lecturers_21DPoint 8Feb2026",114031.17054280134]
["Technical_Officer_09A","Point 1","Feb2026","Technical_Officer_09APoint 1Feb2026",51642.960339000005]
["Technical_Officer_09A","Point 2","Feb2026","Technical_Officer_09APoint 2Feb2026",53881.726402912798]
["Technical_Officer_09A","Point 3","Feb2026","Technical_Officer_09APoint 3Feb2026",56411.61696098496]
["Technical_Officer_09A","Point 4","Feb2026","Technical_Officer_09APoint 4Feb2026",58899.119867494963]
["Technical_Officer_09A","Point 5","Feb2026","Technical_Officer_09APoint 5Feb2026",61508.176144654688]
["Technical_Officer_09D","Point 1","Feb2026","Technical_Officer_09DPoint 1Feb2026",49400.6852]
["Technical_Officer_09D","Point 2","Feb2026","Technical_Officer_09DPoint 2Feb2026",51469.869770999998]
["Technical_Officer_09D","Point 3","Feb2026","Technical_Officer_09DPoint 3Feb2026",53786.198954794796]
["Technical_Officer_09D","Point 4","Feb2026","Technical_Officer_09DPoint 4Feb2026",56100.136448695092]
["Technical_Officer_09D","Point 5","Feb2026","Technical_Officer_09DPoint 5Feb2026",58552.909820733767]
["Post_Doc_Res_Res_Ass_Iua_2013_66A_13","Point 1","Feb2026",{"$f":"A1978&B1978&C1978","v":"Post_Doc_Res_Res_Ass_Iua_2013_66A_13Point 1Feb2026"},49396.604800000001]
["Post_Doc_Res_Res_Ass_Iua_2013_66A_13","Point 2","Feb2026","Post_Doc_Res_Res_Ass_Iua_2013_66A_13Point 2Feb2026",50670.356195]
["Post_Doc_Res_Res_Ass_Iua_2013_66A_13","Point 3","Feb2026","Post_Doc_Res_Res_Ass_Iua_2013_66A_13Point 3Feb2026",51994.292980000006]
["Post_Doc_Res_Res_Ass_Iua_2013_66A_13","Point 4","Feb2026","Post_Doc_Res_Res_Ass_Iua_2013_66A_13Point 4Feb2026",53393.475001420804]
["Post_Doc_Res_Res_Ass_Iua_2013_66A_13","Point 5","Feb2026","Post_Doc_Res_Res_Ass_Iua_2013_66A_13Point 5Feb2026",54850.958505678929]
["Post_Doc_Res_Res_Ass_Iua_2013_66A_13","Point 6","Feb2026","Post_Doc_Res_Res_Ass_Iua_2013_66A_13Point 6Feb2026",56393.166895797047]
["Post_Doc_Res_Res_Ass_Iua_2013_66A_13","Point 7","Feb2026","Post_Doc_Res_Res_Ass_Iua_2013_66A_13Point 7Feb2026",57997.23726919225]
["Post_Doc_Res_Res_Ass_Iua_2013_66A_13","Point 8","Feb2026","Post_Doc_Res_Res_Ass_Iua_2013_66A_13Point 8Feb2026",59655.572540198933]
["Post_Doc_Researcher_Research_Associate_66A","Point 1","Feb2026","Post_Doc_Researcher_Research_Associate_66APoint 1Feb2026",50010.705000000002]
["Post_Doc_Researcher_Research_Associate_66A","Point 2","Feb2026","Post_Doc_Researcher_Research_Associate_66APoint 2Feb2026",52089.309378419995]
["Post_Doc_Researcher_Research_Associate_66A","Point 3","Feb2026","Post_Doc_Researcher_Research_Associate_66APoint 3Feb2026",54270.324101236147]
["Post_Doc_Researcher_Research_Associate_66A","Point 4","Feb2026","Post_Doc_Researcher_Research_Associate_66APoint 4Feb2026",56084.942277363865]
["Post_Doc_Researcher_Research_Associate_66A","Point 5","Feb2026","Post_Doc_Researcher_Research_Associate_66APoint 5Feb2026",57925.607604345103]
["Post_Doc_Researcher_Research_Associate_66A","Point 6","Feb2026","Post_Doc_Researcher_Research_Associate_66APoint 6Feb2026",59827.049616651188]
["Post_Doc_Researcher_Research_Associate_66A","Point 7","Feb2026","Post_Doc_Researcher_Research_Associate_66APoint 7Feb2026",61772.988844998683]
["Post_Doc_Researcher_Research_Associate_66A","Point 8","Feb2026","Post_Doc_Researcher_Research_Associate_66APoint 8Feb2026",63712.416285632797]
["Post_Doc_Researcher_Research_Associate_66A","Point 9","Feb2026","Post_Doc_Researcher_Research_Associate_66APoint 9Feb2026",65656.184918075844]
["Post_Doc_Researcher_Research_Associate_66A","Point 10","Feb2026","Post_Doc_Researcher_Research_Associate_66APoint 10Feb2026",67616.233019802312]
["Post_Doc_Researcher_Research_Associate_66A","Point 11","Feb2026","Post_Doc_Researcher_Research_Associate_66APoint 11Feb2026",69408.05993893322]
["Post_Doc_Researcher_Research_Associate_66D","Point 1","Feb2026","Post_Doc_Researcher_Research_Associate_66DPoint 1Feb2026",47817.49]
["Post_Doc_Researcher_Research_Associate_66D","Point 2","Feb2026","Post_Doc_Researcher_Research_Associate_66DPoint 2Feb2026",49777.102099999996]
["Post_Doc_Researcher_Research_Associate_66D","Point 3","Feb2026","Post_Doc_Researcher_Research_Associate_66DPoint 3Feb2026",51784.111576000003]
["Post_Doc_Researcher_Research_Associate_66D","Point 4","Feb2026","Post_Doc_Researcher_Research_Associate_66DPoint 4Feb2026",53444.422973750407]
["Post_Doc_Researcher_Research_Associate_66D","Point 5","Feb2026","Post_Doc_Researcher_Research_Associate_66DPoint 5Feb2026",55137.477165067517]
["Post_Doc_Researcher_Research_Associate_66D","Point 6","Feb2026","Post_Doc_Researcher_Research_Associate_66DPoint 6Feb2026",56924.962892389507]
["Post_Doc_Researcher_Research_Associate_66D","Point 7","Feb2026","Post_Doc_Researcher_Research_Associate_66DPoint 7Feb2026",58756.9458357529]
["Post_Doc_Researcher_Research_Associate_66D","Point 8","Feb2026","Post_Doc_Researcher_Research_Associate_66DPoint 8Feb2026",60587.843481164076]
["Post_Doc_Researcher_Research_Associate_66D","Point 9","Feb2026","Post_Doc_Researcher_Research_Associate_66DPoint 9Feb2026",62436.105893810905]
["Post_Doc_Researcher_Research_Associate_66D","Point 10","Feb2026","Post_Doc_Researcher_Research_Associate_66DPoint 10Feb2026",64297.391881884498]
["Post_Doc_Researcher_Research_Associate_66D","Point 11","Feb2026","Post_Doc_Researcher_Research_Associate_66DPoint 11Feb2026",66002.394964837047]
["Research_Assistant_65A","Point 1","Feb2026","Research_Assistant_65APoint 1Feb2026",32222.2012]
["Research_Assistant_65A","Point 2","Feb2026","Research_Assistant_65APoint 2Feb2026",33237.200700000001]
["Research_Assistant_65A","Point 3","Feb2026","Research_Assistant_65APoint 3Feb2026",34275.662499999999]
["Research_Assistant_65A","Point 4","Feb2026","Research_Assistant_65APoint 4Feb2026",34921.385800000004]
["Research_Assistant_65A","Point 5","Feb2026","Research_Assistant_65APoint 5Feb2026",36024.113899999997]
["Research_Assistant_65A","Point 6","Feb2026","Research_Assistant_65APoint 6Feb2026",36953.425000000003]
["Research_Assistant_65A","Point 7","Feb2026","Research_Assistant_65APoint 7Feb2026",37941.901900000004]
["Research_Assistant_65A","Point 8","Feb2026","Research_Assistant_65APoint 8Feb2026",38882.434100000006]
["Research_Assistant_65A","Point 9","Feb2026","Research_Assistant_65APoint 9Feb2026",38962.001900000003]
["Research_Assistant_65A","Point 10","Feb2026","Research_Assistant_65APoint 10Feb2026",39804.604499999994]
["Research_Assistant_65A","Point 11","Feb2026","Research_Assistant_65APoint 11Feb2026",40768.599000000002]
["Research_Assistant_65A","Point 12","Feb2026","Research_Assistant_65APoint 12Feb2026",41930.492900000005]
["Research_Assistant_65A","Point 13","Feb2026","Research_Assistant_65APoint 13Feb2026",43005.6783]
["Research_Assistant_65A","Point 14","Feb2026","Research_Assistant_65APoint 14Feb2026",44750.049299999999]
["Research_Assistant_65A","Point 15","Feb2026","Research_Assistant_65APoint 15Feb2026",46489.319800000005]
["Research_Assistant_65A_20","Point 1","Feb2026","Research_Assistant_65A_20Point 1Feb2026",33791.114999999998]
["Research_Assistant_65A_20","Point 2","Feb2026","Research_Assistant_65A_20Point 2Feb2026",34620.456300000005]
["Research_Assistant_65A_20","Point 3","Feb2026","Research_Assistant_65A_20Point 3Feb2026",35045.838000000003]
["Research_Assistant_65A_20","Point 4","Feb2026","Research_Assistant_65A_20Point 4Feb2026",35913.943099999997]
["Research_Assistant_65A_20","Point 5","Feb2026","Research_Assistant_65A_20Point 5Feb2026",36805.510500000004]
["Research_Assistant_65A_20","Point 6","Feb2026","Research_Assistant_65A_20Point 6Feb2026",37723.6005]
["Research_Assistant_65A_20","Point 7","Feb2026","Research_Assistant_65A_20Point 7Feb2026",38674.333700000003]
["Research_Assistant_65A_20","Point 8","Feb2026","Research_Assistant_65A_20Point 8Feb2026",39303.735399999998]
["Research_Assistant_65A_20","Point 9","Feb2026","Research_Assistant_65A_20Point 9Feb2026",40272.830399999999]
["Research_Assistant_65A_20","Point 10","Feb2026","Research_Assistant_65A_20Point 10Feb2026",41090.950599999996]
["Research_Assistant_65A_20","Point 11","Feb2026","Research_Assistant_65A_20Point 11Feb2026",41756.055800000002]
["Research_Assistant_65A_20","Point 12","Feb2026","Research_Assistant_65A_20Point 12Feb2026",42798.598000000005]
["Research_Assistant_65A_20","Point 13","Feb2026","Research_Assistant_65A_20Point 13Feb2026",43872.763299999999]
["Research_Assistant_Iua_2013_65A_13","Point 1","Feb2026","Research_Assistant_Iua_2013_65A_13Point 1Feb2026",31436.724200000001]
["Research_Assistant_Iua_2013_65A_13","Point 2","Feb2026","Research_Assistant_Iua_2013_65A_13Point 2Feb2026",32196.698700000001]
["Research_Assistant_Iua_2013_65A_13","Point 3","Feb2026","Research_Assistant_Iua_2013_65A_13Point 3Feb2026",32979.115400000002]
["Research_Assistant_Iua_2013_65A_13","Point 4","Feb2026","Research_Assistant_Iua_2013_65A_13Point 4Feb2026",33783.974300000002]
["Research_Assistant_Iua_2013_65A_13","Point 5","Feb2026","Research_Assistant_Iua_2013_65A_13Point 5Feb2026",34611.275399999999]
["Research_Assistant_Iua_2013_65A_13","Point 6","Feb2026","Research_Assistant_Iua_2013_65A_13Point 6Feb2026",35465.099100000007]
["Research_Assistant_Iua_2013_65A_13","Point 7","Feb2026",{"$f":"A2042&B2042&C2042","v":"Research_Assistant_Iua_2013_65A_13Point 7Feb2026"},36344.425300000003]
["Research_Assistant_Iua_2013_65A_13","Point 8","Feb2026","Research_Assistant_Iua_2013_65A_13Point 8Feb2026",37251.294199999997]
["Research_Assistant_Iua_2013_65A_13","Point 9","Feb2026","Research_Assistant_Iua_2013_65A_13Point 9Feb2026",38183.6656]
["Research_Assistant_Iua_2013_65A_13","Point 10","Feb2026","Research_Assistant_Iua_2013_65A_13Point 10Feb2026",38806.9467]
["Research_Assistant_Iua_2013_65A_13","Point 11","Feb2026","Research_Assistant_Iua_2013_65A_13Point 11Feb2026",39761.760300000002]
["Research_Assistant_Iua_2013_65A_13","Point 12","Feb2026","Research_Assistant_Iua_2013_65A_13Point 12Feb2026",40745.136699999995]
["Research_Assistant_Iua_2013_65A_13","Point 13","Feb2026","Research_Assistant_Iua_2013_65A_13Point 13Feb2026",41757.075900000003]
["Research_Assistant_Iua_2013_65A_13","Point 14","Feb2026","Research_Assistant_Iua_2013_65A_13Point 14Feb2026",42799.6181]
["Research_Assistant_Iua_2013_65A_13","Point 15","Feb2026","Research_Assistant_Iua_2013_65A_13Point 15Feb2026",43872.763299999999]
["Research_Fellow_67A","Point 1","Feb2026","Research_Fellow_67APoint 1Feb2026",75731.005808622285]
["Research_Fellow_67A","Point 2","Feb2026","Research_Fellow_67APoint 2Feb2026",81681.694480696635]
["Research_Fellow_67A","Point 3","Feb2026","Research_Fellow_67APoint 3Feb2026",86359.328654805766]
["Research_Fellow_67A","Point 4","Feb2026","Research_Fellow_67APoint 4Feb2026",92371.879310157194]
["Research_Fellow_67A","Point 5","Feb2026","Research_Fellow_67APoint 5Feb2026",98365.979900320715]
["Research_Fellow_Iua_2013_67A_13","Point 1","Feb2026","Research_Fellow_Iua_2013_67A_13Point 1Feb2026",66548.29983480848]
["Research_Fellow_Iua_2013_67A_13","Point 2","Feb2026","Research_Fellow_Iua_2013_67A_13Point 2Feb2026",68476.874295920308]
["Research_Fellow_Iua_2013_67A_13","Point 3","Feb2026","Research_Fellow_Iua_2013_67A_13Point 3Feb2026",70466.225442356983]
["Research_Fellow_Iua_2013_67A_13","Point 4","Feb2026","Research_Fellow_Iua_2013_67A_13Point 4Feb2026",72513.097380261825]
["Senior_Research_Fellow_68A","Point 1","Feb2026","Senior_Research_Fellow_68APoint 1Feb2026",94863.723408476129]
["Senior_Research_Fellow_68A","Point 2","Feb2026","Senior_Research_Fellow_68APoint 2Feb2026",99655.313867569392]
["Senior_Research_Fellow_68A","Point 3","Feb2026","Senior_Research_Fellow_68APoint 3Feb2026",104480.54856318174]
["Senior_Research_Fellow_68A","Point 4","Feb2026","Senior_Research_Fellow_68APoint 4Feb2026",109269.96842637053]
["Senior_Research_Fellow_68A","Point 5","Feb2026","Senior_Research_Fellow_68APoint 5Feb2026",114031.17054280134]
["Fixed_Amount","Point 1","Feb2026","Fixed_AmountPoint 1Feb2026",0]
["Research_Assistant","Point 1","June2026","Research_AssistantPoint 1June2026",34129.334161204213]
["Research_Assistant","Point 2","June2026","Research_AssistantPoint 2June2026",34966.245038725618]
["Research_Assistant","Point 3","June2026","Research_AssistantPoint 3June2026",35395.093963092768]
["Research_Assistant","Point 4","June2026","Research_AssistantPoint 4June2026",36271.977460271541]
["Research_Assistant","Point 5","June2026","Research_AssistantPoint 5June2026",37172.78130089226]
["Research_Assistant","Point 6","June2026","Research_AssistantPoint 6June2026",38101.757818350758]
["Research_Assistant","Point 7","June2026","Research_AssistantPoint 7June2026",39060.737219939758]
["Research_Assistant","Point 8","June2026","Research_AssistantPoint 8June2026",39696.482052270374]
["Research_Assistant","Point 9","June2026","Research_AssistantPoint 9June2026",40675.01848309151]
["Research_Assistant","Point 10","June2026","Research_AssistantPoint 10June2026",41500.868281509538]
["Research_Assistant","Point 11","June2026","Research_AssistantPoint 11June2026",42173.343618470448]
["Research_Assistant","Point 12","June2026","Research_AssistantPoint 12June2026",43226.6182426261]
["Research_Assistant","Point 13","June2026","Research_AssistantPoint 13June2026",44311.143872113862]
["Post_Doctoral_Researcher_PD1","PD1 Point 1","June2026","Post_Doctoral_Researcher_PD1PD1 Point 1June2026",47273.438356587649]
["Post_Doctoral_Researcher_PD1","PD1 Point 2","June2026","Post_Doctoral_Researcher_PD1PD1 Point 2June2026",47879.198469789291]
["Post_Doctoral_Researcher_PD1","PD1 Point 3","June2026","Post_Doctoral_Researcher_PD1PD1 Point 3June2026",49890.027046213036]
["Post_Doctoral_Researcher_PD1","PD1 Point 4","June2026","Post_Doctoral_Researcher_PD1PD1 Point 4June2026",51176.488504742083]
["Post_Doctoral_Researcher_PD1","PD1 Point 5","June2026","Post_Doctoral_Researcher_PD1PD1 Point 5June2026",52512.677322724521]
["Post_Doctoral_Researcher_PD1","PD1 Point 6","June2026","Post_Doctoral_Researcher_PD1PD1 Point 6June2026",53925.129084124892]
["Post_Doctoral_Researcher_PD2","PD2 Point 1","June2026","Post_Doctoral_Researcher_PD2PD2 Point 1June2026",55398.988051283108]
["Post_Doctoral_Researcher_PD2","PD2 Point 2","June2026","Post_Doctoral_Researcher_PD2PD2 Point 2June2026",56956.777929664946]
["Post_Doctoral_Researcher_PD2","PD2 Point 3","June2026","Post_Doctoral_Researcher_PD2PD2 Point 3June2026",58577.810011109454]
["Post_Doctoral_Researcher_PD2","PD2 Point 4","June2026","Post_Doctoral_Researcher_PD2PD2 Point 4June2026",60250.47805226349]
["Research_Fellow","Point 1","June2026","Research_FellowPoint 1June2026",67213.684635510363]
["Research_Fellow","Point 2","June2026","Research_FellowPoint 2June2026",69163.182393452837]
["Research_Fellow","Point 3","June2026","Research_FellowPoint 3June2026",71171.330836068548]
["Research_Fellow","Point 4","June2026","Research_FellowPoint 4June2026",73239.404978241626]
["Senior_Research_Fellow","Point 1","June2026","Senior_Research_FellowPoint 1June2026",81760.329449353187]
["Senior_Research_Fellow","Point 2","June2026","Senior_Research_FellowPoint 2June2026",84145.882297692238]
["Senior_Research_Fellow","Point 3","June2026","Senior_Research_FellowPoint 3June2026",85279.370529746375]
["Senior_Research_Fellow","Point 4","June2026","Senior_Research_FellowPoint 4June2026",87742.699286021641]
["Admin_Officer_01D","Point 1","June2026","Admin_Officer_01DPoint 1June2026",83126.605909397374]
["Admin_Officer_01D","Point 2","June2026","Admin_Officer_01DPoint 2June2026",87425.709863727912]
["Admin_Officer_01D","Point 3","June2026","Admin_Officer_01DPoint 3June2026",93051.156445478133]
["Admin_Officer_01D","Point 4","June2026","Admin_Officer_01DPoint 4June2026",98675.506876296597]
["Admin_Officer_01D","Point 5","June2026","Admin_Officer_01DPoint 5June2026",104325.06877854533]
["Admin_Officer_Current_Serving_Employee_01A","Point 1","June2026","Admin_Officer_Current_Serving_Employee_01APoint 1June2026",86087.309576058979]
["Admin_Officer_Current_Serving_Employee_01A","Point 2","June2026","Admin_Officer_Current_Serving_Employee_01APoint 2June2026",92024.063022426679]
["Admin_Officer_Current_Serving_Employee_01A","Point 3","June2026","Admin_Officer_Current_Serving_Employee_01APoint 3June2026",97952.047261340398]
["Admin_Officer_Current_Serving_Employee_01A","Point 4","June2026","Admin_Officer_Current_Serving_Employee_01APoint 4June2026",103871.26229280008]
["Admin_Officer_Current_Serving_Employee_01A","Point 5","June2026","Admin_Officer_Current_Serving_Employee_01APoint 5June2026",109814.59264475833]
["Chief_Technical_Officer_17A","Point 1","June2026","Chief_Technical_Officer_17APoint 1June2026",69652.718656304321]
["Chief_Technical_Officer_17A","Point 2","June2026","Chief_Technical_Officer_17APoint 2June2026",72546.557116129043]
["Chief_Technical_Officer_17A","Point 3","June2026","Chief_Technical_Officer_17APoint 3June2026",75334.068935573858]
["Chief_Technical_Officer_17A","Point 4","June2026","Chief_Technical_Officer_17APoint 4June2026",78211.465131422316]
["Chief_Technical_Officer_17A","Point 5","June2026","Chief_Technical_Officer_17APoint 5June2026",81148.053477585388]
["Chief_Technical_Officer_17D","Point 1","June2026","Chief_Technical_Officer_17DPoint 1June2026",66284.24684303104]
["Chief_Technical_Officer_17D","Point 2","June2026","Chief_Technical_Officer_17DPoint 2June2026",69029.008776137547]
["Chief_Technical_Officer_17D","Point 3","June2026","Chief_Technical_Officer_17DPoint 3June2026",71670.732521659345]
["Chief_Technical_Officer_17D","Point 4","June2026","Chief_Technical_Officer_17DPoint 4June2026",74413.302152902368]
["Chief_Technical_Officer_17D","Point 5","June2026","Chief_Technical_Officer_17DPoint 5June2026",77200.813972347154]
["Clinical_Research_Support_Officer_166A","Point 1","June2026","Clinical_Research_Support_Officer_166APoint 1June2026",47272.576007000003]
["Clinical_Research_Support_Officer_166A","Point 2","June2026","Clinical_Research_Support_Officer_166APoint 2June2026",47879.423296000001]
["Clinical_Research_Support_Officer_166A","Point 3","June2026","Clinical_Research_Support_Officer_166APoint 3June2026",49890.570848000003]
["Clinical_Research_Support_Officer_166A","Point 4","June2026","Clinical_Research_Support_Officer_166APoint 4June2026",51177.059756950002]
["Grade_2_1761.75_Hrs._06A","Point 1","June2026","Grade_2_1761.75_Hrs._06APoint 1June2026",37252.898781999997]
["Grade_2_1761.75_Hrs._06A","Point 2","June2026","Grade_2_1761.75_Hrs._06APoint 2June2026",38523.259915000002]
["Grade_2_1761.75_Hrs._06A","Point 3","June2026","Grade_2_1761.75_Hrs._06APoint 3June2026",39814.227068]
["Grade_2_1761.75_Hrs._06A","Point 4","June2026","Grade_2_1761.75_Hrs._06APoint 4June2026",40707.498034999997]
["Grade_2_1761.75_Hrs._06A","Point 5","June2026","Grade_2_1761.75_Hrs._06APoint 5June2026",41765.617162000002]
["Grade_2_1761.75_Hrs._06A","Point 6","June2026","Grade_2_1761.75_Hrs._06APoint 6June2026",42603.251875000002]
["Grade_2_1761.75_Hrs._06A","Point 7","June2026","Grade_2_1761.75_Hrs._06APoint 7June2026",43831.370666999996]
["Grade_2_1761.75_Hrs._06A","Point 8","June2026","Grade_2_1761.75_Hrs._06APoint 8June2026",45550.943035999997]
["Grade_2_1761.75_Hrs._06A","Point 9","June2026","Grade_2_1761.75_Hrs._06APoint 9June2026",47368.394]
["Grade_2_1761.75_Hrs._06A","Point 10","June2026","Grade_2_1761.75_Hrs._06APoint 10June2026",49172.451051000004]
["Grade_2_1761.75_Hrs._06A","Point 11","June2026","Grade_2_1761.75_Hrs._06APoint 11June2026",50987.841413000002]
["Grade_2_1761.75_Hrs._06A","Point 12","June2026","Grade_2_1761.75_Hrs._06APoint 12June2026",52833.099851146202]
["Grade_2_1761.75_Hrs._06D","Point 1","June2026","Grade_2_1761.75_Hrs._06DPoint 1June2026",35699.204874000003]
["Grade_2_1761.75_Hrs._06D","Point 2","June2026","Grade_2_1761.75_Hrs._06DPoint 2June2026",36911.869151000006]
["Grade_2_1761.75_Hrs._06D","Point 3","June2026","Grade_2_1761.75_Hrs._06DPoint 3June2026",38132.775836000001]
["Grade_2_1761.75_Hrs._06D","Point 4","June2026","Grade_2_1761.75_Hrs._06DPoint 4June2026",39351.621919000005]
["Grade_2_1761.75_Hrs._06D","Point 5","June2026","Grade_2_1761.75_Hrs._06DPoint 5June2026",40202.650544999997]
["Grade_2_1761.75_Hrs._06D","Point 6","June2026","Grade_2_1761.75_Hrs._06DPoint 6June2026",41176.28499]
["Grade_2_1761.75_Hrs._06D","Point 7","June2026","Grade_2_1761.75_Hrs._06DPoint 7June2026",42349.797829000003]
["Grade_2_1761.75_Hrs._06D","Point 8","June2026","Grade_2_1761.75_Hrs._06DPoint 8June2026",43617.068059000005]
["Grade_2_1761.75_Hrs._06D","Point 9","June2026","Grade_2_1761.75_Hrs._06DPoint 9June2026",45358.276749000004]
["Grade_2_1761.75_Hrs._06D","Point 10","June2026","Grade_2_1761.75_Hrs._06DPoint 10June2026",47061.364302000002]
["Grade_2_1761.75_Hrs._06D","Point 11","June2026","Grade_2_1761.75_Hrs._06DPoint 11June2026",48791.239680999999]
["Grade_2_1761.75_Hrs._06D","Point 12","June2026","Grade_2_1761.75_Hrs._06DPoint 12June2026",50519.054457999999]
["Grade_3_1761.75_Hrs._11A","Point 1","June2026","Grade_3_1761.75_Hrs._11APoint 1June2026",43706.704246000001]
["Grade_3_1761.75_Hrs._11A","Point 2","June2026","Grade_3_1761.75_Hrs._11APoint 2June2026",45550.943035999997]
["Grade_3_1761.75_Hrs._11A","Point 3","June2026","Grade_3_1761.75_Hrs._11APoint 3June2026",47368.394]
["Grade_3_1761.75_Hrs._11A","Point 4","June2026","Grade_3_1761.75_Hrs._11APoint 4June2026",49172.451051000004]
["Grade_3_1761.75_Hrs._11A","Point 5","June2026","Grade_3_1761.75_Hrs._11APoint 5June2026",50987.841413000002]
["Grade_3_1761.75_Hrs._11A","Point 6","June2026","Grade_3_1761.75_Hrs._11APoint 6June2026",52833.099851146202]
["Grade_3_1761.75_Hrs._11A","Point 7","June2026","Grade_3_1761.75_Hrs._11APoint 7June2026",54709.991834739478]
["Grade_3_1761.75_Hrs._11A","Point 8","June2026","Grade_3_1761.75_Hrs._11APoint 8June2026",56631.541738024724]
["Grade_3_1761.75_Hrs._11A","Point 9","June2026","Grade_3_1761.75_Hrs._11APoint 9June2026",57101.790487746264]
["Grade_3_1761.75_Hrs._11A","Point 10","June2026","Grade_3_1761.75_Hrs._11APoint 10June2026",59118.708202169561]
["Grade_3_1761.75_Hrs._11A","Point 11","June2026","Grade_3_1761.75_Hrs._11APoint 11June2026",60595.223507239221]
["Grade_3_1761.75_Hrs._11D","Point 1","June2026","Grade_3_1761.75_Hrs._11DPoint 1June2026",42232.343515]
["Grade_3_1761.75_Hrs._11D","Point 2","June2026","Grade_3_1761.75_Hrs._11DPoint 2June2026",43617.068059000005]
["Grade_3_1761.75_Hrs._11D","Point 3","June2026","Grade_3_1761.75_Hrs._11DPoint 3June2026",45358.276749000004]
["Grade_3_1761.75_Hrs._11D","Point 4","June2026","Grade_3_1761.75_Hrs._11DPoint 4June2026",47061.364302000002]
["Grade_3_1761.75_Hrs._11D","Point 5","June2026","Grade_3_1761.75_Hrs._11DPoint 5June2026",48791.239680999999]
["Grade_3_1761.75_Hrs._11D","Point 6","June2026","Grade_3_1761.75_Hrs._11DPoint 6June2026",50519.054457999999]
["Grade_3_1761.75_Hrs._11D","Point 7","June2026","Grade_3_1761.75_Hrs._11DPoint 7June2026",52250.963095270003]
["Grade_3_1761.75_Hrs._11D","Point 8","June2026","Grade_3_1761.75_Hrs._11DPoint 8June2026",54015.316232025369]
["Grade_3_1761.75_Hrs._11D","Point 9","June2026","Grade_3_1761.75_Hrs._11DPoint 9June2026",54436.624120708453]
["Grade_3_1761.75_Hrs._11D","Point 10","June2026","Grade_3_1761.75_Hrs._11DPoint 10June2026",56308.177213157956]
["Grade_3_1761.75_Hrs._11D","Point 11","June2026","Grade_3_1761.75_Hrs._11DPoint 11June2026",57702.481198346235]
["Grade_4_02A","Point 1","June2026","Grade_4_02APoint 1June2026",55129.814961524775]
["Grade_4_02A","Point 2","June2026","Grade_4_02APoint 2June2026",57101.790487746264]
["Grade_4_02A","Point 3","June2026","Grade_4_02APoint 3June2026",59118.708202169561]
["Grade_4_02A","Point 4","June2026","Grade_4_02APoint 4June2026",60595.223507239221]
["Grade_4_02A","Point 5","June2026","Grade_4_02APoint 5June2026",62115.584849578976]
["Grade_4_02A","Point 6","June2026","Grade_4_02APoint 6June2026",63715.965209936592]
["Grade_4_02A","Point 7","June2026","Grade_4_02APoint 7June2026",65273.595683955893]
["Grade_4_02A","Point 8","June2026","Grade_4_02APoint 8June2026",69037.777983591557]
["Grade_4_02A","Point 9","June2026","Grade_4_02APoint 9June2026",71203.772224733097]
["Grade_4_02D","Point 1","June2026","Grade_4_02DPoint 1June2026",52634.615042278805]
["Grade_4_02D","Point 2","June2026","Grade_4_02DPoint 2June2026",54436.624120708453]
["Grade_4_02D","Point 3","June2026","Grade_4_02DPoint 3June2026",56308.177213157956]
["Grade_4_02D","Point 4","June2026","Grade_4_02DPoint 4June2026",57702.481198346235]
["Grade_4_02D","Point 5","June2026","Grade_4_02DPoint 5June2026",59131.862013350583]
["Grade_4_02D","Point 6","June2026","Grade_4_02DPoint 6June2026",60640.165695441057]
["Grade_4_02D","Point 7","June2026","Grade_4_02DPoint 7June2026",62127.642509828242]
["Grade_4_02D","Point 8","June2026","Grade_4_02DPoint 8June2026",65691.229188953323]
["Grade_4_02D","Point 9","June2026","Grade_4_02DPoint 9June2026",67751.992940646698]
["Grade_5_25A","Point 1","June2026","Grade_5_25APoint 1June2026",63501.119627313237]
["Grade_5_25A","Point 2","June2026","Grade_5_25APoint 2June2026",66209.708579671918]
["Grade_5_25A","Point 3","June2026","Grade_5_25APoint 3June2026",69037.777983591557]
["Grade_5_25A","Point 4","June2026","Grade_5_25APoint 4June2026",71203.772224733097]
["Grade_5_25A","Point 5","June2026","Grade_5_25APoint 5June2026",73443.20857830203]
["Grade_5_25A","Point 6","June2026","Grade_5_25APoint 6June2026",75650.85655485015]
["Grade_5_25A","Point 7","June2026","Grade_5_25APoint 7June2026",86087.309576058979]
["Grade_5_25D","Point 1","June2026","Grade_5_25DPoint 1June2026",60430.800867476464]
["Grade_5_25D","Point 2","June2026","Grade_5_25DPoint 2June2026",63011.140160820192]
["Grade_5_25D","Point 3","June2026","Grade_5_25DPoint 3June2026",65691.229188953323]
["Grade_5_25D","Point 4","June2026","Grade_5_25DPoint 4June2026",67751.992940646698]
["Grade_5_25D","Point 5","June2026","Grade_5_25DPoint 5June2026",69886.198804767424]
["Grade_5_25D","Point 6","June2026","Grade_5_25DPoint 6June2026",71979.847084413384]
["Grade_5_25D","Point 7","June2026","Grade_5_25DPoint 7June2026",83126.605909397374]
["Junior_Lecturer_Old_Scale_62D","Point 1","June2026","Junior_Lecturer_Old_Scale_62DPoint 1June2026",51982.487260690003]
["Lecturer_128A","Point 1","June2026","Lecturer_128APoint 1June2026",65550.921869689089]
["Lecturer_128A","Point 2","June2026","Lecturer_128APoint 2June2026",67611.68562138245]
["Lecturer_128A","Point 3","June2026","Lecturer_128APoint 3June2026",69675.737825871111]
["Lecturer_128A","Point 4","June2026","Lecturer_128APoint 4June2026",71773.77070924404]
["Lecturer_128A","Point 5","June2026","Lecturer_128APoint 5June2026",73674.496424901648]
["Lecturer_128A","Point 6","June2026","Lecturer_128APoint 6June2026",80402.670843994172]
["Lecturer_128A","Point 7","June2026","Lecturer_128APoint 7June2026",85427.426715144407]
["Lecturer_128A","Point 8","June2026","Lecturer_128APoint 8June2026",91817.986647257363]
["Lecturer_128A","Point 9","June2026","Lecturer_128APoint 9June2026",98212.931183097331]
["Lecturer_128A","Point 10","June2026","Lecturer_128APoint 10June2026",104573.895040053]
["Lecturer_Above_Bar_College_36A","Point 1","June2026","Lecturer_Above_Bar_College_36APoint 1June2026",80402.670843994172]
["Lecturer_Above_Bar_College_36A","Point 2","June2026","Lecturer_Above_Bar_College_36APoint 2June2026",85427.426715144407]
["Lecturer_Above_Bar_College_36A","Point 3","June2026","Lecturer_Above_Bar_College_36APoint 3June2026",91817.986647257363]
["Lecturer_Above_Bar_College_36A","Point 4","June2026","Lecturer_Above_Bar_College_36APoint 4June2026",98212.931183097331]
["Lecturer_Above_Bar_College_36A","Point 5","June2026","Lecturer_Above_Bar_College_36APoint 5June2026",104573.895040053]
["Lecturer_Above_Bar_College_36D","Point 1","June2026","Lecturer_Above_Bar_College_36DPoint 1June2026",76488.315866708508]
["Lecturer_Above_Bar_College_36D","Point 2","June2026","Lecturer_Above_Bar_College_36DPoint 2June2026",82498.511425503602]
["Lecturer_Above_Bar_College_36D","Point 3","June2026","Lecturer_Above_Bar_College_36DPoint 3June2026",87222.921941353823]
["Lecturer_Above_Bar_College_36D","Point 4","June2026","Lecturer_Above_Bar_College_36DPoint 4June2026",93295.598103258773]
["Lecturer_Above_Bar_College_36D","Point 5","June2026","Lecturer_Above_Bar_College_36DPoint 5June2026",99349.639699323918]
["Lecturer_Below_Bar_Junior_33A","Point 1","June2026","Lecturer_Below_Bar_Junior_33APoint 1June2026",52815.055777612797]
["Lecturer_Below_Bar_Junior_33A","Point 2","June2026","Lecturer_Below_Bar_Junior_33APoint 2June2026",55099.122735435732]
["Lecturer_Below_Bar_Junior_33A","Point 3","June2026","Lecturer_Below_Bar_Junior_33APoint 3June2026",57515.039389016689]
["Lecturer_Below_Bar_Junior_33A","Point 4","June2026","Lecturer_Below_Bar_Junior_33APoint 4June2026",59478.245707784146]
["Lecturer_Below_Bar_Junior_33A","Point 5","June2026","Lecturer_Below_Bar_Junior_33APoint 5June2026",61444.740479346867]
["Lecturer_Below_Bar_Junior_33A","Point 6","June2026","Lecturer_Below_Bar_Junior_33APoint 6June2026",63485.773514268709]
["Lecturer_Below_Bar_Junior_33A","Point 7","June2026","Lecturer_Below_Bar_Junior_33APoint 7June2026",65550.921869689089]
["Lecturer_Below_Bar_Junior_33A","Point 8","June2026","Lecturer_Below_Bar_Junior_33APoint 8June2026",67611.68562138245]
["Lecturer_Below_Bar_Junior_33A","Point 9","June2026","Lecturer_Below_Bar_Junior_33APoint 9June2026",69675.737825871111]
["Lecturer_Below_Bar_Junior_33A","Point 10","June2026","Lecturer_Below_Bar_Junior_33APoint 10June2026",71773.77070924404]
["Lecturer_Below_Bar_Junior_33A","Point 11","June2026","Lecturer_Below_Bar_Junior_33APoint 11June2026",73674.496424901648]
["Lecturer_Below_Bar_Junior_33D","Point 1","June2026","Lecturer_Below_Bar_Junior_33DPoint 1June2026",50510.81205]
["Lecturer_Below_Bar_Junior_33D","Point 2","June2026","Lecturer_Below_Bar_Junior_33DPoint 2June2026",52610.202472204197]
["Lecturer_Below_Bar_Junior_33D","Point 3","June2026","Lecturer_Below_Bar_Junior_33DPoint 3June2026",54813.027342248512]
["Lecturer_Below_Bar_Junior_33D","Point 4","June2026","Lecturer_Below_Bar_Junior_33DPoint 4June2026",56645.791700137503]
["Lecturer_Below_Bar_Junior_33D","Point 5","June2026","Lecturer_Below_Bar_Junior_33DPoint 5June2026",58504.863680388553]
["Lecturer_Below_Bar_Junior_33D","Point 6","June2026","Lecturer_Below_Bar_Junior_33DPoint 6June2026",60425.320112817702]
["Lecturer_Below_Bar_Junior_33D","Point 7","June2026","Lecturer_Below_Bar_Junior_33DPoint 7June2026",62390.718733448673]
["Lecturer_Below_Bar_Junior_33D","Point 8","June2026","Lecturer_Below_Bar_Junior_33DPoint 8June2026",64349.540448489126]
["Lecturer_Below_Bar_Junior_33D","Point 9","June2026","Lecturer_Below_Bar_Junior_33DPoint 9June2026",66312.746767256598]
["Lecturer_Below_Bar_Junior_33D","Point 10","June2026","Lecturer_Below_Bar_Junior_33DPoint 10June2026",68292.395350000341]
["Lecturer_Below_Bar_Junior_33D","Point 11","June2026","Lecturer_Below_Bar_Junior_33DPoint 11June2026",70102.14053832255]
["Lecturer_Fixed_Term_19A","Point 1","June2026","Lecturer_Fixed_Term_19APoint 1June2026",52815.055777612797]
["Lecturer_Fixed_Term_19A","Point 2","June2026","Lecturer_Fixed_Term_19APoint 2June2026",55099.122735435732]
["Lecturer_Fixed_Term_19A","Point 3","June2026","Lecturer_Fixed_Term_19APoint 3June2026",57515.039389016689]
["Lecturer_Fixed_Term_19A","Point 4","June2026","Lecturer_Fixed_Term_19APoint 4June2026",59478.245707784146]
["Lecturer_Fixed_Term_19A","Point 5","June2026","Lecturer_Fixed_Term_19APoint 5June2026",61444.740479346867]
["Lecturer_Fixed_Term_19A","Point 6","June2026","Lecturer_Fixed_Term_19APoint 6June2026",63485.773514268709]
["Lecturer_Fixed_Term_19A","Point 7","June2026","Lecturer_Fixed_Term_19APoint 7June2026",65550.921869689089]
["Lecturer_Fixed_Term_19A","Point 8","June2026","Lecturer_Fixed_Term_19APoint 8June2026",67611.68562138245]
["Lecturer_Fixed_Term_19A","Point 9","June2026","Lecturer_Fixed_Term_19APoint 9June2026",69675.737825871111]
["Lecturer_Fixed_Term_19A","Point 10","June2026","Lecturer_Fixed_Term_19APoint 10June2026",71773.77070924404]
["Lecturer_Fixed_Term_19A","Point 11","June2026","Lecturer_Fixed_Term_19APoint 11June2026",73674.496424901648]
["Lecturer_Fixed_Term_19D","Point 1","June2026","Lecturer_Fixed_Term_19DPoint 1June2026",50510.81205]
["Lecturer_Fixed_Term_19D","Point 2","June2026","Lecturer_Fixed_Term_19DPoint 2June2026",52610.202472204197]
["Lecturer_Fixed_Term_19D","Point 3","June2026","Lecturer_Fixed_Term_19DPoint 3June2026",54813.027342248512]
["Lecturer_Fixed_Term_19D","Point 4","June2026","Lecturer_Fixed_Term_19DPoint 4June2026",56645.791700137503]
["Lecturer_Fixed_Term_19D","Point 5","June2026","Lecturer_Fixed_Term_19DPoint 5June2026",58504.863680388553]
["Lecturer_Fixed_Term_19D","Point 6","June2026","Lecturer_Fixed_Term_19DPoint 6June2026",60425.320112817702]
["Lecturer_Fixed_Term_19D","Point 7","June2026","Lecturer_Fixed_Term_19DPoint 7June2026",62390.718733448673]
["Lecturer_Fixed_Term_19D","Point 8","June2026","Lecturer_Fixed_Term_19DPoint 8June2026",64349.540448489126]
["Lecturer_Fixed_Term_19D","Point 9","June2026","Lecturer_Fixed_Term_19DPoint 9June2026",66312.746767256598]
["Lecturer_Fixed_Term_19D","Point 10","June2026","Lecturer_Fixed_Term_19DPoint 10June2026",68292.395350000341]
["Lecturer_Fixed_Term_19D","Point 11","June2026","Lecturer_Fixed_Term_19DPoint 11June2026",70102.14053832255]
["Personal_Professor_20A","Point 1","June2026","Personal_Professor_20APoint 1June2026",172378.50322542377]
["Personal_Professor_20D","Point 1","June2026","Personal_Professor_20DPoint 1June2026",163759.46844905938]
["Professor_In_117A","Point 1","June2026","Professor_In_117APoint 1June2026",106611.63962217957]
["Professor_In_117A","Point 2","June2026","Professor_In_117APoint 2June2026",113780.46671583632]
["Professor_In_117A","Point 3","June2026","Professor_In_117APoint 3June2026",120964.63992253759]
["Professor_In_117A","Point 4","June2026","Professor_In_117APoint 4June2026",128141.14007271659]
["Professor_In_117A","Point 5","June2026","Professor_In_117APoint 5June2026",135325.31327941784]
["Professor_In_117A","Point 6","June2026","Professor_In_117APoint 6June2026",142499.62112773338]
["Professor_In_117D","Point 1","June2026","Professor_In_117DPoint 1June2026",101277.76918827536]
["Professor_In_117D","Point 2","June2026","Professor_In_117DPoint 2June2026",108095.82798377152]
["Professor_In_117D","Point 3","June2026","Professor_In_117DPoint 3June2026",114921.55983578997]
["Professor_In_117D","Point 4","June2026","Professor_In_117DPoint 4June2026",121737.42632942261]
["Professor_In_117D","Point 5","June2026","Professor_In_117DPoint 5June2026",128560.96587957753]
["Professor_In_117D","Point 6","June2026","Professor_In_117DPoint 6June2026",135376.8323732102]
["Professors_116A","Point 1","June2026","Professors_116APoint 1June2026",147198.82017215333]
["Professors_116A","Point 2","June2026","Professors_116APoint 2June2026",155592.04785657677]
["Professors_116A","Point 3","June2026","Professors_116APoint 3June2026",163985.27554100027]
["Professors_116A","Point 4","June2026","Professors_116APoint 4June2026",172378.50322542377]
["Professors_116A","Point 5","June2026","Professors_116APoint 5June2026",180772.82706077903]
["Professors_116A","Point 6","June2026","Professors_116APoint 6June2026",186093.54368350224]
["Professors_116D","Point 1","June2026","Professors_116DPoint 1June2026",139837.07051450823]
["Professors_116D","Point 2","June2026","Professors_116DPoint 2June2026",147813.76084486602]
["Professors_116D","Point 3","June2026","Professors_116DPoint 3June2026",155787.16272242859]
["Professors_116D","Point 4","June2026","Professors_116DPoint 4June2026",163759.46844905938]
["Professors_116D","Point 5","June2026","Professors_116DPoint 5June2026",171732.87032662198]
["Professors_116D","Point 6","June2026","Professors_116DPoint 6June2026",179706.27220418456]
["Salaried_University_Fellow_83A","Point 1","June2026","Salaried_University_Fellow_83APoint 1June2026",46397.850458000008]
["Salaried_University_Fellow_83A","Point 2","June2026","Salaried_University_Fellow_83APoint 2June2026",47752.696273000001]
["Salaried_University_Fellow_83A","Point 3","June2026","Salaried_University_Fellow_83APoint 3June2026",49124.026903999998]
["Salaried_University_Fellow_83D","Point 1","June2026","Salaried_University_Fellow_83DPoint 1June2026",44431.005848999994]
["Salaried_University_Fellow_83D","Point 2","June2026","Salaried_University_Fellow_83DPoint 2June2026",45718.882098999995]
["Salaried_University_Fellow_83D","Point 3","June2026","Salaried_University_Fellow_83DPoint 3June2026",47025.303766999998]
["Senior_Statutory_Lecturers_21A","Point 1","June2026","Senior_Statutory_Lecturers_21APoint 1June2026",85546.907166705336]
["Senior_Statutory_Lecturers_21A","Point 2","June2026","Senior_Statutory_Lecturers_21APoint 2June2026",90639.624395624167]
["Senior_Statutory_Lecturers_21A","Point 3","June2026","Senior_Statutory_Lecturers_21APoint 3June2026",95755.360794109816]
["Senior_Statutory_Lecturers_21A","Point 4","June2026","Senior_Statutory_Lecturers_21APoint 4June2026",100857.94338141441]
["Senior_Statutory_Lecturers_21A","Point 5","June2026","Senior_Statutory_Lecturers_21APoint 5June2026",105942.98755381096]
["Senior_Statutory_Lecturers_21A","Point 6","June2026","Senior_Statutory_Lecturers_21APoint 6June2026",111070.78161254588]
["Senior_Statutory_Lecturers_21A","Point 7","June2026","Senior_Statutory_Lecturers_21APoint 7June2026",116170.07574705523]
["Senior_Statutory_Lecturers_21A","Point 8","June2026","Senior_Statutory_Lecturers_21APoint 8June2026",121229.90844802151]
["Senior_Statutory_Lecturers_21D","Point 1","June2026","Senior_Statutory_Lecturers_21DPoint 1June2026",82615.799575201017]
["Senior_Statutory_Lecturers_21D","Point 2","June2026","Senior_Statutory_Lecturers_21DPoint 2June2026",86103.751840035271]
["Senior_Statutory_Lecturers_21D","Point 3","June2026","Senior_Statutory_Lecturers_21DPoint 3June2026",90968.46967514971]
["Senior_Statutory_Lecturers_21D","Point 4","June2026","Senior_Statutory_Lecturers_21DPoint 4June2026",95812.360642560889]
["Senior_Statutory_Lecturers_21D","Point 5","June2026","Senior_Statutory_Lecturers_21DPoint 5June2026",100651.86700624508]
["Senior_Statutory_Lecturers_21D","Point 6","June2026","Senior_Statutory_Lecturers_21DPoint 6June2026",105525.35404881356]
["Senior_Statutory_Lecturers_21D","Point 7","June2026","Senior_Statutory_Lecturers_21DPoint 7June2026",110362.66811063423]
["Senior_Statutory_Lecturers_21D","Point 8","June2026","Senior_Statutory_Lecturers_21DPoint 8June2026",115171.48224822935]
["Technical_Officer_09A","Point 1","June2026","Technical_Officer_09APoint 1June2026",52159.389942390007]
["Technical_Officer_09A","Point 2","June2026","Technical_Officer_09APoint 2June2026",54420.543666941929]
["Technical_Officer_09A","Point 3","June2026","Technical_Officer_09APoint 3June2026",56975.73313059481]
["Technical_Officer_09A","Point 4","June2026","Technical_Officer_09APoint 4June2026",59488.111066169913]
["Technical_Officer_09A","Point 5","June2026","Technical_Officer_09APoint 5June2026",62123.257906101237]
["Technical_Officer_09D","Point 1","June2026","Technical_Officer_09DPoint 1June2026",49894.692051999999]
["Technical_Officer_09D","Point 2","June2026","Technical_Officer_09DPoint 2June2026",51984.56846871]
["Technical_Officer_09D","Point 3","June2026","Technical_Officer_09DPoint 3June2026",54324.060944342746]
["Technical_Officer_09D","Point 4","June2026","Technical_Officer_09DPoint 4June2026",56661.137813182046]
["Technical_Officer_09D","Point 5","June2026","Technical_Officer_09DPoint 5June2026",59138.438918941101]
["Post_Doc_Res_Res_Ass_Iua_2013_66A_13","Point 1","June2026",{"$f":"A2322&B2322&C2322","v":"Post_Doc_Res_Res_Ass_Iua_2013_66A_13Point 1June2026"},49890.570848000003]
["Post_Doc_Res_Res_Ass_Iua_2013_66A_13","Point 2","June2026","Post_Doc_Res_Res_Ass_Iua_2013_66A_13Point 2June2026",51177.059756950002]
["Post_Doc_Res_Res_Ass_Iua_2013_66A_13","Point 3","June2026","Post_Doc_Res_Res_Ass_Iua_2013_66A_13Point 3June2026",52514.235909800009]
["Post_Doc_Res_Res_Ass_Iua_2013_66A_13","Point 4","June2026","Post_Doc_Res_Res_Ass_Iua_2013_66A_13Point 4June2026",53927.409751435014]
["Post_Doc_Res_Res_Ass_Iua_2013_66A_13","Point 5","June2026","Post_Doc_Res_Res_Ass_Iua_2013_66A_13Point 5June2026",55399.468090735718]
["Post_Doc_Res_Res_Ass_Iua_2013_66A_13","Point 6","June2026","Post_Doc_Res_Res_Ass_Iua_2013_66A_13Point 6June2026",56957.098564755019]
["Post_Doc_Res_Res_Ass_Iua_2013_66A_13","Point 7","June2026","Post_Doc_Res_Res_Ass_Iua_2013_66A_13Point 7June2026",58577.209641884176]
["Post_Doc_Res_Res_Ass_Iua_2013_66A_13","Point 8","June2026","Post_Doc_Res_Res_Ass_Iua_2013_66A_13Point 8June2026",60252.128265600921]
["Post_Doc_Researcher_Research_Associate_66A","Point 1","June2026","Post_Doc_Researcher_Research_Associate_66APoint 1June2026",50510.81205]
["Post_Doc_Researcher_Research_Associate_66A","Point 2","June2026","Post_Doc_Researcher_Research_Associate_66APoint 2June2026",52610.202472204197]
["Post_Doc_Researcher_Research_Associate_66A","Point 3","June2026","Post_Doc_Researcher_Research_Associate_66APoint 3June2026",54813.027342248512]
["Post_Doc_Researcher_Research_Associate_66A","Point 4","June2026","Post_Doc_Researcher_Research_Associate_66APoint 4June2026",56645.791700137503]
["Post_Doc_Researcher_Research_Associate_66A","Point 5","June2026","Post_Doc_Researcher_Research_Associate_66APoint 5June2026",58504.863680388553]
["Post_Doc_Researcher_Research_Associate_66A","Point 6","June2026","Post_Doc_Researcher_Research_Associate_66APoint 6June2026",60425.320112817702]
["Post_Doc_Researcher_Research_Associate_66A","Point 7","June2026","Post_Doc_Researcher_Research_Associate_66APoint 7June2026",62390.718733448673]
["Post_Doc_Researcher_Research_Associate_66A","Point 8","June2026","Post_Doc_Researcher_Research_Associate_66APoint 8June2026",64349.540448489126]
["Post_Doc_Researcher_Research_Associate_66A","Point 9","June2026","Post_Doc_Researcher_Research_Associate_66APoint 9June2026",66312.746767256598]
["Post_Doc_Researcher_Research_Associate_66A","Point 10","June2026","Post_Doc_Researcher_Research_Associate_66APoint 10June2026",68292.395350000341]
["Post_Doc_Researcher_Research_Associate_66A","Point 11","June2026","Post_Doc_Researcher_Research_Associate_66APoint 11June2026",70102.14053832255]
["Post_Doc_Researcher_Research_Associate_66D","Point 1","June2026","Post_Doc_Researcher_Research_Associate_66DPoint 1June2026",48295.664899999996]
["Post_Doc_Researcher_Research_Associate_66D","Point 2","June2026","Post_Doc_Researcher_Research_Associate_66DPoint 2June2026",50274.873120999997]
["Post_Doc_Researcher_Research_Associate_66D","Point 3","June2026","Post_Doc_Researcher_Research_Associate_66DPoint 3June2026",52301.952691760001]
["Post_Doc_Researcher_Research_Associate_66D","Point 4","June2026","Post_Doc_Researcher_Research_Associate_66DPoint 4June2026",53978.867203487913]
["Post_Doc_Researcher_Research_Associate_66D","Point 5","June2026","Post_Doc_Researcher_Research_Associate_66DPoint 5June2026",55688.851936718194]
["Post_Doc_Researcher_Research_Associate_66D","Point 6","June2026","Post_Doc_Researcher_Research_Associate_66DPoint 6June2026",57494.212521313406]
["Post_Doc_Researcher_Research_Associate_66D","Point 7","June2026","Post_Doc_Researcher_Research_Associate_66DPoint 7June2026",59344.515294110432]
["Post_Doc_Researcher_Research_Associate_66D","Point 8","June2026","Post_Doc_Researcher_Research_Associate_66DPoint 8June2026",61193.721915975715]
["Post_Doc_Researcher_Research_Associate_66D","Point 9","June2026","Post_Doc_Researcher_Research_Associate_66DPoint 9June2026",63060.466952749011]
["Post_Doc_Researcher_Research_Associate_66D","Point 10","June2026","Post_Doc_Researcher_Research_Associate_66DPoint 10June2026",64940.365800703345]
["Post_Doc_Researcher_Research_Associate_66D","Point 11","June2026","Post_Doc_Researcher_Research_Associate_66DPoint 11June2026",66662.418914485417]
["Research_Assistant_65A","Point 1","June2026","Research_Assistant_65APoint 1June2026",32544.423212000002]
["Research_Assistant_65A","Point 2","June2026","Research_Assistant_65APoint 2June2026",33569.572706999999]
["Research_Assistant_65A","Point 3","June2026","Research_Assistant_65APoint 3June2026",34618.419125]
["Research_Assistant_65A","Point 4","June2026","Research_Assistant_65APoint 4June2026",35270.599658000006]
["Research_Assistant_65A","Point 5","June2026","Research_Assistant_65APoint 5June2026",36384.355038999995]
["Research_Assistant_65A","Point 6","June2026","Research_Assistant_65APoint 6June2026",37322.95925]
["Research_Assistant_65A","Point 7","June2026","Research_Assistant_65APoint 7June2026",38321.320919000005]
["Research_Assistant_65A","Point 8","June2026","Research_Assistant_65APoint 8June2026",39271.258441000005]
["Research_Assistant_65A","Point 9","June2026","Research_Assistant_65APoint 9June2026",39351.621919000005]
["Research_Assistant_65A","Point 10","June2026","Research_Assistant_65APoint 10June2026",40202.650544999997]
["Research_Assistant_65A","Point 11","June2026","Research_Assistant_65APoint 11June2026",41176.28499]
["Research_Assistant_65A","Point 12","June2026","Research_Assistant_65APoint 12June2026",42349.797829000003]
["Research_Assistant_65A","Point 13","June2026","Research_Assistant_65APoint 13June2026",43435.735083]
["Research_Assistant_65A","Point 14","June2026","Research_Assistant_65APoint 14June2026",45197.549792999998]
["Research_Assistant_65A","Point 15","June2026","Research_Assistant_65APoint 15June2026",46954.212998000003]
["Research_Assistant_65A_20","Point 1","June2026","Research_Assistant_65A_20Point 1June2026",34129.026149999998]
["Research_Assistant_65A_20","Point 2","June2026","Research_Assistant_65A_20Point 2June2026",34966.660863000005]
["Research_Assistant_65A_20","Point 3","June2026","Research_Assistant_65A_20Point 3June2026",35396.296380000007]
["Research_Assistant_65A_20","Point 4","June2026","Research_Assistant_65A_20Point 4June2026",36273.082531]
["Research_Assistant_65A_20","Point 5","June2026","Research_Assistant_65A_20Point 5June2026",37173.565605000003]
["Research_Assistant_65A_20","Point 6","June2026","Research_Assistant_65A_20Point 6June2026",38100.836504999999]
["Research_Assistant_65A_20","Point 7","June2026","Research_Assistant_65A_20Point 7June2026",39061.077037000003]
["Research_Assistant_65A_20","Point 8","June2026","Research_Assistant_65A_20Point 8June2026",39696.772753999998]
["Research_Assistant_65A_20","Point 9","June2026","Research_Assistant_65A_20Point 9June2026",40675.558704000003]
["Research_Assistant_65A_20","Point 10","June2026","Research_Assistant_65A_20Point 10June2026",41501.860106]
["Research_Assistant_65A_20","Point 11","June2026","Research_Assistant_65A_20Point 11June2026",42173.616357999999]
["Research_Assistant_65A_20","Point 12","June2026","Research_Assistant_65A_20Point 12June2026",43226.583980000003]
["Research_Assistant_65A_20","Point 13","June2026","Research_Assistant_65A_20Point 13June2026",44311.490933000001]
["Research_Assistant_Iua_2013_65A_13","Point 1","June2026","Research_Assistant_Iua_2013_65A_13Point 1June2026",31751.091442000001]
["Research_Assistant_Iua_2013_65A_13","Point 2","June2026","Research_Assistant_Iua_2013_65A_13Point 2June2026",32518.665687000001]
["Research_Assistant_Iua_2013_65A_13","Point 3","June2026","Research_Assistant_Iua_2013_65A_13Point 3June2026",33308.906554000001]
["Research_Assistant_Iua_2013_65A_13","Point 4","June2026","Research_Assistant_Iua_2013_65A_13Point 4June2026",34121.814042999998]
["Research_Assistant_Iua_2013_65A_13","Point 5","June2026","Research_Assistant_Iua_2013_65A_13Point 5June2026",34957.388154]
["Research_Assistant_Iua_2013_65A_13","Point 6","June2026","Research_Assistant_Iua_2013_65A_13Point 6June2026",35819.750091000009]
["Research_Assistant_Iua_2013_65A_13","Point 7","June2026",{"$f":"A2386&B2386&C2386","v":"Research_Assistant_Iua_2013_65A_13Point 7June2026"},36707.869553000004]
["Research_Assistant_Iua_2013_65A_13","Point 8","June2026","Research_Assistant_Iua_2013_65A_13Point 8June2026",37623.807141999998]
["Research_Assistant_Iua_2013_65A_13","Point 9","June2026","Research_Assistant_Iua_2013_65A_13Point 9June2026",38565.502256]
["Research_Assistant_Iua_2013_65A_13","Point 10","June2026","Research_Assistant_Iua_2013_65A_13Point 10June2026",39195.016167000002]
["Research_Assistant_Iua_2013_65A_13","Point 11","June2026","Research_Assistant_Iua_2013_65A_13Point 11June2026",40159.377903000001]
["Research_Assistant_Iua_2013_65A_13","Point 12","June2026","Research_Assistant_Iua_2013_65A_13Point 12June2026",41152.588066999997]
["Research_Assistant_Iua_2013_65A_13","Point 13","June2026","Research_Assistant_Iua_2013_65A_13Point 13June2026",42174.646659000005]
["Research_Assistant_Iua_2013_65A_13","Point 14","June2026","Research_Assistant_Iua_2013_65A_13Point 14June2026",43227.614281000002]
["Research_Assistant_Iua_2013_65A_13","Point 15","June2026","Research_Assistant_Iua_2013_65A_13Point 15June2026",44311.490933000001]
["Research_Fellow_67A","Point 1","June2026","Research_Fellow_67APoint 1June2026",76488.315866708508]
["Research_Fellow_67A","Point 2","June2026","Research_Fellow_67APoint 2June2026",82498.511425503602]
["Research_Fellow_67A","Point 3","June2026","Research_Fellow_67APoint 3June2026",87222.921941353823]
["Research_Fellow_67A","Point 4","June2026","Research_Fellow_67APoint 4June2026",93295.598103258773]
["Research_Fellow_67A","Point 5","June2026","Research_Fellow_67APoint 5June2026",99349.639699323918]
["Research_Fellow_Iua_2013_67A_13","Point 1","June2026","Research_Fellow_Iua_2013_67A_13Point 1June2026",67213.782833156569]
["Research_Fellow_Iua_2013_67A_13","Point 2","June2026","Research_Fellow_Iua_2013_67A_13Point 2June2026",69161.643038879512]
["Research_Fellow_Iua_2013_67A_13","Point 3","June2026","Research_Fellow_Iua_2013_67A_13Point 3June2026",71170.887696780555]
["Research_Fellow_Iua_2013_67A_13","Point 4","June2026","Research_Fellow_Iua_2013_67A_13Point 4June2026",73238.228354064442]
["Senior_Research_Fellow_68A","Point 1","June2026","Senior_Research_Fellow_68APoint 1June2026",95812.360642560889]
["Senior_Research_Fellow_68A","Point 2","June2026","Senior_Research_Fellow_68APoint 2June2026",100651.86700624508]
["Senior_Research_Fellow_68A","Point 3","June2026","Senior_Research_Fellow_68APoint 3June2026",105525.35404881356]
["Senior_Research_Fellow_68A","Point 4","June2026","Senior_Research_Fellow_68APoint 4June2026",110362.66811063423]
["Senior_Research_Fellow_68A","Point 5","June2026","Senior_Research_Fellow_68APoint 5June2026",115171.48224822935]
["Fixed_Amount","Point 1","June2026","Fixed_AmountPoint 1June2026",0]
[null,null,null,null,null,null,null,null,null,null,null,null,null,null,null,null,null,null,null,null,null,null,null,null,null,{"$f":"SUM(Z2:Z2409)","v":0},{"$f":"SUM(AA2:AA2409)","v":0},{"$f":"SUM(AB2:AB2409)","v":0},{"$f":"SUM(AC2:AC2409)","v":0},{"$f":"SUM(AD2:AD2409)","v":0}]

{"sheet":"Rates","index":9,"n_rows":5,"n_cols":2,"rows_kept":5,"cut":false,"hidden":true,"merged":[]}
["Item","Rate"]
["Pension Rate",0.2]
["Social Cost %",0]
["% Charged",1]
["Eers PRSI",0.1115]

{"sheet":"PRSI","index":10,"n_rows":7,"n_cols":5,"rows_kept":7,"cut":false,"hidden":true,"merged":[]}
["PRSI Period","StartDate","EndDate","Rate","Ref: https://www.irishexaminer.com/news/politics/arid-41274412.html#:~:text=The%20Government%20has%20signed%20off,and%20then%20again%20in%202025."]
["PRSI_Original","1900-01-01","2024-09-30",11.05]
["PRSI_Oct_2024","2024-10-01","2025-09-30",11.15]
["PRSI_Oct_2025","2025-10-01","2026-09-30",11.25]
["PRSI_Oct_2026","2026-10-01","2027-09-30",11.4]
["PRSI_Oct_2027","2027-10-01","2028-09-30",11.55]
["PRSI_Oct_2028","2028-10-01","2029-09-30",11.75]